account_party,address,code,date,document_number,expense_code_name,expense_code_name_short,id,party_cell,party_cell_code,party_cell_geoobject,purpose,source_bank_account_number,source_bank_account_type,sum,target_legal_personality,target_legal_personality_code,target_type
РПЛ,"Київ, вулиця Миколи Лєскова, 9",70,2018-12-31,bn,Банківські послуги,Інші витрати,234513,Центральний офіс,37279703,Україна,"комісія за вих перекази в національній валюті ""Клієнт-Банк",26006580179,current,188.00,"АТ ""Райффайзен банк Аваль""",14305909,юридична особа
РПЛ,"Київ, вулиця Миколи Лєскова, 9",70,2018-12-31,bn,Банківські послуги,Інші витрати,234512,Центральний офіс,37279703,Україна,Комісія за ведення поточних рахунків клієнта,26006580179,current,250.00,"АТ ""Райффайзен банк Аваль""",14305909,юридична особа
РПЛ,"Київ, вулиця Миколи Лєскова, 9",70,2018-12-31,bn,Банківські послуги,Інші витрати,234511,Центральний офіс,37279703,Україна,"комісія за вих перекази в національній валюті ""Клієнт-Банк",26006580179,current,1394.00,"АТ ""Райффайзен банк Аваль""",14305909,юридична особа
РПЛ,"Київ, вулиця Миколи Лєскова, 9",70,2018-12-29,4415,Банківські послуги,Інші витрати,234510,Центральний офіс,37279703,Україна,Комісія банку за зарахув.коштів на СКР працівників,26006580179,current,9.24,"АТ ""Райффайзен банк Аваль""",14305909,юридична особа
РПЛ,"Київ, вулиця Миколи Лєскова, 4",62,2018-12-29,4413,Сплата ЄСВ,Податкові платежі,234509,Центральний офіс,37279703,Україна,Єдиний соціальний внесок нарахований на доходи громадян- заробітна плата за 2 пол. Грудня 2018р.,26006580179,current,1263.00,ДПІ у Печерському районі ГУ ДФС у м. Києві,39669867,юридична особа
РПЛ,"Київ, вулиця Академіка Туполєва, 28А",63,2018-12-29,4412,Податок на доходи,Податкові платежі,234508,Центральний офіс,37279703,Україна,Податок на доходи фізичних осіб - заробітна плата за 2 пол. грудня 2018р.,26006580179,current,1033.00,УДКСУ у Шевченківському районі м. Києва,37995466,юридична особа
РПЛ,"Київ, вулиця Академіка Туполєва, 28А",61,2018-12-29,4411,Військовий збір,Податкові платежі,234507,Центральний офіс,37279703,Україна,Військовий збір нарахований на доходи громадян-заробітну плату за 2 пол. Грудня 2018р.,26006580179,current,87.00,УДКСУ у Шевченківському районі м. Києва,37995466,юридична особа
РПЛ,"Житомирська область, Житомир",83,2018-12-29,4414,"Виплати працівникам (не зарплата): лікарняні, вагітності, відрядження, компенсації ","Заробітна плата, лікарняні, вагітності, відрядження, компенсації",233625,Центральний офіс,37279703,Україна,компенсація за невикористану відпустку при звільненні,26006580179,current,4618.30,Гнєушев Сергій Вікторович,,фізична особа
РПЛ,"Івано-Франківська область, Івано-Франківськ, вулиця Галицька, 130",79,2018-12-28,4366,"Оренда будинків і приміщень та експлуатаційні витрати (прибирання, страхування орендованих будинків, охорона, сигналізація, ремонт, вивіз сміття, тощо)",Оренда нерухомості,236737,Центральний офіс,37279703,Україна,Орендна плата за оренду нежитлового приміщення за грудень,26009580176,state,570.15,"ПП ""Фармацевтична компанія ""Здорова родина",34078368,юридична особа
РПЛ,"Дніпропетровська область, Дніпро́, вулиця Воскресенська, 14",51,2018-12-28,4409,Оплата ефірного часу на ТБ,Телереклама,234506,Центральний офіс,37279703,Україна,Розміщення відеоматеріалу на 34 телеканалі,26006580179,current,9600.00,"ПрАТ ""Телевізійна служба Дніпропетровська""",20264089,юридична особа
РПЛ,"Запорізька область, Запоріжжя, вулиця Суворова, 4",51,2018-12-28,4408,Оплата ефірного часу на ТБ,Телереклама,234505,Центральний офіс,37279703,Україна,Надання інформаційних послуг,26006580179,current,30000.00,"ТОВ ""Запор.незалеж.те лерадіокомп. ""ТВ-5""",13630346,юридична особа
РПЛ,"Дніпропетровська область, Дніпро́, проспект Олександра Поля, 2",49,2018-12-28,4407,Публікування матеріалів у друкованих ЗМІ,Реклама в друкованих ЗМІ,234504,Центральний офіс,37279703,Україна,інформаційні послуги в газеті,26006580179,current,4920.00,"ТОВ ""Редакція газети ""Зоря""",35497923,юридична особа
РПЛ,"Рівненська область, Рівне, вулиця Вячеслава Чорновола, 14-16",49,2018-12-28,4406,Публікування матеріалів у друкованих ЗМІ,Реклама в друкованих ЗМІ,234503,Центральний офіс,37279703,Україна,"Розміщення інформаційного матеріалу в газеті ""Рівне Ракурс""",26006580179,current,4250.00,"ТОВ ""Видавнича група ""Ракурс""",36922025,юридична особа
РПЛ,"Київ, вулиця Героїв Космосу, 4",51,2018-12-28,4405,Оплата ефірного часу на ТБ,Телереклама,234502,Центральний офіс,37279703,Україна,надання послуг з розміщення інформаційних матеріалів на телебаченні,26006580179,current,528422.31,"ТОВ ""Медіа парнерство баінг""",38990495,юридична особа
РПЛ,"Київ, вулиця Різницька, 11Б",43,2018-12-28,4397,Інші витрати,Інші витрати,234501,Центральний офіс,37279703,Україна,виконавчий збір згідно постанови ВП № 57942200 від 2018-12-19 р.,26006580179,current,176.20,Печерський районний відділ державної виконавчої служби м. Київ Головного територіального управління юстиції у м. Києві,34979022,юридична особа
РПЛ,"Івано-Франківська область, Івано-Франківськ, вулиця Галицька, 130",79,2018-12-28,4395,"Оренда будинків і приміщень та експлуатаційні витрати (прибирання, страхування орендованих будинків, охорона, сигналізація, ремонт, вивіз сміття, тощо)",Оренда нерухомості,234500,Центральний офіс,37279703,Україна,відшкодування витрат за комунальні послуги у листопаді 2018р.,26006580179,current,52.95,"ПП ""Фармацевтична компанія ""Здорова родина",34078368,юридична особа
РПЛ,"Дніпропетровська область, Дніпро́, вулиця Воскресенська, 14",51,2018-12-28,4394,Оплата ефірного часу на ТБ,Телереклама,234499,Центральний офіс,37279703,Україна,Розміщення відеоматеріалу на 34 телеканалі,26006580179,current,9600.00,"ПрАТ ""Телевізійна служба Дніпропетровська""",20264089,юридична особа
РПЛ,"Київська обл., Біла Церква, вулиця Фастівська, 1",51,2018-12-28,4393,Оплата ефірного часу на ТБ,Телереклама,234498,Центральний офіс,37279703,Україна,послуги по виготовленню і розміщенню сюжету,26006580179,current,12000.00,"ТОВ ""ТРК ""Крокус""",24883843,юридична особа
РПЛ,"Сумська область, Суми, вулиця Петропавлівська, 76",49,2018-12-28,4392,Публікування матеріалів у друкованих ЗМІ,Реклама в друкованих ЗМІ,234497,Центральний офіс,37279703,Україна,інформаційні послуги в газеті,26006580179,current,6730.00,"ТОВ ""Торговий Дім ""Петро і Павел""",21111962,юридична особа
РПЛ,"Київ, вулиця Героїв Космосу, 4",51,2018-12-28,4391,Оплата ефірного часу на ТБ,Телереклама,234496,Центральний офіс,37279703,Україна,розміщення відеоматеріалів,26006580179,current,1000000.00,"ТОВ ""Медіа парнерство баінг""",38990495,юридична особа
РПЛ,"Київ, вулиця Героїв Космосу, 4",51,2018-12-28,4390,Оплата ефірного часу на ТБ,Телереклама,234495,Центральний офіс,37279703,Україна,розміщення відеоматеріалів,26006580179,current,942145.02,"ТОВ ""Медіа парнерство баінг""",38990495,юридична особа
РПЛ,"Київ, вулиця Героїв Космосу, 4",52,2018-12-28,4389,Інша реклама (без класифікації),Реклама (без класифікації),234494,Центральний офіс,37279703,Україна,Розміщення інформаційних матеріалів,26006580179,current,273175.92,"ТОВ ""Медіа парнерство баінг""",38990495,юридична особа
РПЛ,"Полтавська область, Полтава, вулиця Європейська, 57",75,2018-12-28,4388,Поштові послуги та поширення друкованих матеріалів,Поштові послуги та поширення друкованих матеріалів,234493,Центральний офіс,37279703,Україна,Організація перевезення відправлень,26006580179,current,98810.10,"ТОВ ""Нова пошта""",31316718,юридична особа
РПЛ,"Дніпропетровська область, Царичанський район, Царичанка, вулиця 14-ї Гвардійської дивізії, 6",49,2018-12-28,4387,Публікування матеріалів у друкованих ЗМІ,Реклама в друкованих ЗМІ,234492,Центральний офіс,37279703,Україна,опублікування в газеті,26006580179,current,1800.00,"КП РРГ ""Приорільська правда""",02471838,юридична особа
РПЛ,"Дніпропетровська область, Криничанський район, Кринички, вулиця Виконкомівська, 1",49,2018-12-28,4386,Публікування матеріалів у друкованих ЗМІ,Реклама в друкованих ЗМІ,234491,Центральний офіс,37279703,Україна,Інформаційні послуги,26006580179,current,1800.00,"Криничанське районне КП РГ ""Нові рубежі""",02471896,юридична особа
РПЛ,"Дніпропетровська область, Васильківський район, Васильківка",49,2018-12-28,4385,Публікування матеріалів у друкованих ЗМІ,Реклама в друкованих ЗМІ,234490,Центральний офіс,37279703,Україна,інформаційні послуги в газеті,26006580179,current,1452.00,"ТОВ ""Васильківський вісник""",02472007,юридична особа
РПЛ,"Тернопільська область, Тернопіль, вулиця Гетьмана Сагайдачного, 9",49,2018-12-28,4384,Публікування матеріалів у друкованих ЗМІ,Реклама в друкованих ЗМІ,234489,Центральний офіс,37279703,Україна,Інформаційні послуги,26006580179,current,2500.00,"ПП ""Вільне життя""",34950862,юридична особа
РПЛ,"Чернівецька область, Хотинський район, Хотин, вулиця Незалежності, 44",49,2018-12-28,4383,Публікування матеріалів у друкованих ЗМІ,Реклама в друкованих ЗМІ,234488,Центральний офіс,37279703,Україна,інформаційні послуги в газеті,26006580179,current,2210.00,"ПП ""Медіа-центр ""Хотинські вісті""",02476333,юридична особа
РПЛ,"Чернівецька область, Сокирянський район, Сокиряни",49,2018-12-28,4382,Публікування матеріалів у друкованих ЗМІ,Реклама в друкованих ЗМІ,234487,Центральний офіс,37279703,Україна,інформаційні послуги в газеті,26006580179,current,1500.00,"ПП РГ ""Дністрові зорі""",02476379,юридична особа
РПЛ,"Донецька область, Маріуполь, вулиця Харлампіївська, 17",51,2018-12-28,4381,Оплата ефірного часу на ТБ,Телереклама,234486,Центральний офіс,37279703,Україна,послуги з розміщення відеоматеріалів,26006580179,current,7200.00,"ТОВ ""Телерадіокомпанія ""Україна""",05744121,юридична особа
РПЛ,"Запорізька область, Запоріжжя, проспект Соборний, 152",49,2018-12-28,4380,Публікування матеріалів у друкованих ЗМІ,Реклама в друкованих ЗМІ,234485,Центральний офіс,37279703,Україна,Інформаційні послуги,26006580179,current,2800.00,"ТДВ ""Редакція газети ""Индустриальное Запорожье",13614672,юридична особа
РПЛ,"Запорізька область, Запоріжжя, проспект Соборний, 152",49,2018-12-28,4379,Публікування матеріалів у друкованих ЗМІ,Реклама в друкованих ЗМІ,234484,Центральний офіс,37279703,Україна,Інформаційні послуги,26006580179,current,2800.00,"ТДВ ""Редакція газети ""Индустриальное Запорожье",13614672,юридична особа
РПЛ,"Дніпропетровська область, Дніпро́, вулиця Воскресенська, 14",51,2018-12-28,4378,Оплата ефірного часу на ТБ,Телереклама,234483,Центральний офіс,37279703,Україна,розміщення відеоматеріалів,26006580179,current,12800.00,"ПрАТ ""Телевізійна служба Дніпропетровська""",20264089,юридична особа
РПЛ,"Дніпропетровська область, Дніпро́, вулиця Воскресенська, 14",51,2018-12-28,4377,Оплата ефірного часу на ТБ,Телереклама,234482,Центральний офіс,37279703,Україна,розміщення відеоматеріалів,26006580179,current,28800.00,"ПрАТ ""Телевізійна служба Дніпропетровська""",20264089,юридична особа
РПЛ,"Запорізька область, Запоріжжя, проспект Соборний, 152",49,2018-12-28,4376,Публікування матеріалів у друкованих ЗМІ,Реклама в друкованих ЗМІ,234481,Центральний офіс,37279703,Україна,Інформаційні послуги,26006580179,current,7200.00,"ТОВ ""Газета ""МИГ""",14298776,юридична особа
РПЛ,"Запорізька область, Запоріжжя, проспект Маяковського, 11",48,2018-12-28,4375,Публікування матеріалів у мережі Інтернет,Реклама в інтернеті,234480,Центральний офіс,37279703,Україна,інформаційні послуги на сайті,26006580179,current,5500.00,"ТОВ ""ТРК ГОЛД""",41294256,юридична особа
РПЛ,"Запорізька область, Запоріжжя, вулиця Сєдова, 8",48,2018-12-28,4374,Публікування матеріалів у мережі Інтернет,Реклама в інтернеті,234479,Центральний офіс,37279703,Україна,інформаційні послуги на сайті,26006580179,current,8800.00,Деркач Світлана Олександрівна,2528600060,фізична особа
РПЛ,"Запорізька область, Запоріжжя, вулиця Богдана Хмельницького, 27, 14",48,2018-12-28,4373,Публікування матеріалів у мережі Інтернет,Реклама в інтернеті,234478,Центральний офіс,37279703,Україна,Інформаційні послуги,26006580179,current,3600.00,Алексеєнко К О,2775211879,фізична особа
РПЛ,"Запорізька область, Запоріжжя, проспект Соборний, 152",49,2018-12-28,4372,Публікування матеріалів у друкованих ЗМІ,Реклама в друкованих ЗМІ,234477,Центральний офіс,37279703,Україна,Інформаційні послуги,26006580179,current,7200.00,"ТОВ ""Газета ""МИГ""",14298776,юридична особа
РПЛ,"Запорізька область, Запоріжжя, проспект Соборний, 152",48,2018-12-28,4371,Публікування матеріалів у мережі Інтернет,Реклама в інтернеті,234476,Центральний офіс,37279703,Україна,інформаційні послуги на сайті,26006580179,current,2000.00,"ТДВ ""Редакція газети ""Индустриальное Запорожье",13614672,юридична особа
РПЛ,"Сумська область, Ромни, бульвар Шевченка, 8",49,2018-12-28,4370,Публікування матеріалів у друкованих ЗМІ,Реклама в друкованих ЗМІ,234475,Центральний офіс,37279703,Україна,інформаційні послуги в газеті,26006580179,current,5562.00,"ТОВ ""Вісті Роменщини""",14001753,юридична особа
РПЛ,"Вінницька область, Іллінецький район, Іллінці, вулиця Соборна, 22",49,2018-12-28,4362,Публікування матеріалів у друкованих ЗМІ,Реклама в друкованих ЗМІ,234474,Центральний офіс,37279703,Україна,Публікація в газеті,26006580179,current,4620.00,"РГ ""Трудова слава""",02471407,юридична особа
РПЛ,"Івано-Франківська область, Івано-Франківськ, вулиця Галицька, 130",79,2018-12-28,4367,"Оренда будинків і приміщень та експлуатаційні витрати (прибирання, страхування орендованих будинків, охорона, сигналізація, ремонт, вивіз сміття, тощо)",Оренда нерухомості,234473,Центральний офіс,37279703,Україна,оренда нежитлового приміщення у грудні,26006580179,current,929.85,"ПП ""Фармацевтична компанія ""Здорова родина",34078368,юридична особа
РПЛ,"Київ, вулиця Юрія Іллєнка, 18Б, 211",68,2018-12-28,4365,Соцдослідження,"Гонорари, в тому числі за надані консультаційні послуги",234472,Центральний офіс,37279703,Україна,Послуги моніторингу громадської думки,26006580179,current,146670.52,"ТОВ ""ГРУПА РОЗРОБКИ ТА ПІДТРИМКИ РІШЕНЬ""",41932517,юридична особа
РПЛ,"Чернівецька область, Глибоцький район, Молодія, вулиця Головна, 72",79,2018-12-28,4364,"Оренда будинків і приміщень та експлуатаційні витрати (прибирання, страхування орендованих будинків, охорона, сигналізація, ремонт, вивіз сміття, тощо)",Оренда нерухомості,234471,Центральний офіс,37279703,Україна,оренда нежитлового приміщення у грудні,26006580179,current,200.04,Центральна районна комунальна аптека №22,01980688,юридична особа
РПЛ,"Чернівецька область, Глибоцький район, Молодія, вулиця Головна, 72",79,2018-12-28,4363,"Оренда будинків і приміщень та експлуатаційні витрати (прибирання, страхування орендованих будинків, охорона, сигналізація, ремонт, вивіз сміття, тощо)",Оренда нерухомості,234470,Центральний офіс,37279703,Україна,оренда нежитлового приміщення у жовтні,26006580179,current,193.98,Центральна районна комунальна аптека №22,01980688,юридична особа
РПЛ,"Київська обл., Переяслав, Шкільна вулиця, 45",49,2018-12-28,4361,Публікування матеріалів у друкованих ЗМІ,Реклама в друкованих ЗМІ,234469,Центральний офіс,37279703,Україна,Надання інформаційних послуг,26006580179,current,3000.00,"ТОВ ""Медіа-центр ""Переяславщина""",02473412,юридична особа
РПЛ,"Рівненська область, Гощанський район, Гоща, вулиця Сагайдачного, 16",49,2018-12-28,4360,Публікування матеріалів у друкованих ЗМІ,Реклама в друкованих ЗМІ,234468,Центральний офіс,37279703,Україна,Розміщення інформаційних матеріалів,26006580179,current,1292.00,"РГ ""Рідний край""",02474848,юридична особа
РПЛ,"Тернопільська область, Кременецький район, Кременець, вулиця Словацького, 2",49,2018-12-28,4359,Публікування матеріалів у друкованих ЗМІ,Реклама в друкованих ЗМІ,234467,Центральний офіс,37279703,Україна,публікація в газеті № 52,26006580179,current,3000.00,"ТОВ ""Інформаційний центр ""Діалог""",36993179,юридична особа
РПЛ,"Черкаська область, Черкаси, вулиця Новопречистенська, 1",49,2018-12-28,4356,Публікування матеріалів у друкованих ЗМІ,Реклама в друкованих ЗМІ,234466,Центральний офіс,37279703,Україна,"Інформаційні послуги в газеті ""7 днів Черкаси""",26006580179,current,3000.00,"ТОВ ""Агентство ""Сова""",40915691,юридична особа
РПЛ,"Черкаська область, Кам'янський район, Кам'янка, вулиця Героїв Майдану, 12",49,2018-12-28,4355,Публікування матеріалів у друкованих ЗМІ,Реклама в друкованих ЗМІ,234465,Центральний офіс,37279703,Україна,інформаційні послуги в газеті,26006580179,current,1064.88,"ПП ""Медіа-центр ""Надросся""",02475977,юридична особа
РПЛ,"Вінницька область, Вінниця, проспект Космонавтів, 23",49,2018-12-28,4354,Публікування матеріалів у друкованих ЗМІ,Реклама в друкованих ЗМІ,234464,Центральний офіс,37279703,Україна,Інформаційні послуги,26006580179,current,9000.00,"ТОВ ""Регіна ЛТД""",13331299,юридична особа
РПЛ,"Чернігівська область, Чернігів, вулиця Шевченка, 106",49,2018-12-28,4353,Публікування матеріалів у друкованих ЗМІ,Реклама в друкованих ЗМІ,234463,Центральний офіс,37279703,Україна,Інформаційні послуги,26006580179,current,4500.00,"ТОВ ""Чернігівський край""",02476089,юридична особа
РПЛ,"Донецька область, Бахмут, вулиця Миру, 49",49,2018-12-28,4352,Публікування матеріалів у друкованих ЗМІ,Реклама в друкованих ЗМІ,234462,Центральний офіс,37279703,Україна,Інформаційні послуги,26006580179,current,2100.00,"РГ ""Вперед""",31680401,юридична особа
РПЛ,"Харківська область, Харківський район, Безлюдівка, проспект Гагаріна, 15",49,2018-12-28,4351,Публікування матеріалів у друкованих ЗМІ,Реклама в друкованих ЗМІ,234461,Центральний офіс,37279703,Україна,"Інформаційні послуги в газеті ""Зміївський кур'єр""",26006580179,current,2800.00,"РГ ""Зміївський курʼєр""",22642532,юридична особа
РПЛ,"Харківська область, Краснокутський район, Краснокутськ",49,2018-12-28,4350,Публікування матеріалів у друкованих ЗМІ,Реклама в друкованих ЗМІ,234460,Центральний офіс,37279703,Україна,опублікування в газеті №№ 117-119,26006580179,current,2632.50,"ТОВ ""Медіа-центр ""Промінь""",02476630,юридична особа
РПЛ,"Полтавська область, Шишацький район, Шишаки, вулиця Легейди, 4А",49,2018-12-28,4349,Публікування матеріалів у друкованих ЗМІ,Реклама в друкованих ЗМІ,234459,Центральний офіс,37279703,Україна,Інформаційні послуги,26006580179,current,1500.00,"ТОВ ""Редакція Шишацької газети ""Сільське життя""",02474707,юридична особа
РПЛ,"Київська обл., Білоцерківський район, Яблунівка, вулиця Центральна, 66",49,2018-12-28,4348,Публікування матеріалів у друкованих ЗМІ,Реклама в друкованих ЗМІ,234458,Центральний офіс,37279703,Україна,Інформаційні послуги,26006580179,current,940.00,"Редакція газети ""Замкова гора""",02473211,юридична особа
РПЛ,"Рівненська область, Рівне, вулиця Степана Бандери, 1",49,2018-12-28,4347,Публікування матеріалів у друкованих ЗМІ,Реклама в друкованих ЗМІ,234457,Центральний офіс,37279703,Україна,інформаційні послуги в газеті,26006580179,current,4400.00,Насенюк Д М,3351010679,фізична особа
РПЛ,"Вінницька область, Тиврівський район, Тиврів, вулиця Тиверська, 59",49,2018-12-28,4346,Публікування матеріалів у друкованих ЗМІ,Реклама в друкованих ЗМІ,234456,Центральний офіс,37279703,Україна,Інформаційні послуги,26006580179,current,3000.00,"ТОВ ""Маяк-медіа+""",02471502,юридична особа
РПЛ,"Донецька область, Маріуполь, проспект Миру, 19",49,2018-12-28,4344,Публікування матеріалів у друкованих ЗМІ,Реклама в друкованих ЗМІ,234455,Центральний офіс,37279703,Україна,Розміщення інформації в газеті,26006580179,current,2940.00,"ПрАТ ""Газета ""Приазовський робочий""",02472200,юридична особа
РПЛ,"Волинська область, Ковель, вулиця Михайла Грушевського, 2",49,2018-12-28,4338,Публікування матеріалів у друкованих ЗМІ,Реклама в друкованих ЗМІ,234454,Центральний офіс,37279703,Україна,Інформаційні послуги,26006580179,current,2550.00,"РГ ""Вісті Ковельщини""",02471672,юридична особа
РПЛ,"Тернопільська область, Збаразький район, Збараж, вулиця Шолом-Алейхема, 19",49,2018-12-28,4358,Публікування матеріалів у друкованих ЗМІ,Реклама в друкованих ЗМІ,234453,Центральний офіс,37279703,Україна,інформаційні послуги в газеті,26006580179,current,3000.00,"ТОВ ""Редакція Збаразької газети ""Народне слово""",02475262,юридична особа
РПЛ,"Черкаська область, Лисянський район, Лисянка, Миру, 27",49,2018-12-28,4357,Публікування матеріалів у друкованих ЗМІ,Реклама в друкованих ЗМІ,234452,Центральний офіс,37279703,Україна,Інформаційні послуги,26006580179,current,1630.00,"РГ ""Понад Тікичем""",30904189,юридична особа
РПЛ,"Вінницька область, Калинівський район, Калинівка, вулиця Незалежності, 2",49,2018-12-28,4345,Публікування матеріалів у друкованих ЗМІ,Реклама в друкованих ЗМІ,234451,Центральний офіс,37279703,Україна,Інформаційні послуги,26006580179,current,1200.00,"ПП ""Калинівська редакція районної газети ""Прапор перемоги""",02471399,юридична особа
РПЛ,"Херсонська область, Генічеський район, Генічеськ, проспект Миру, 35",49,2018-12-28,4342,Публікування матеріалів у друкованих ЗМІ,Реклама в друкованих ЗМІ,234450,Центральний офіс,37279703,Україна,розміщення інформації в газеті №52,26006580179,current,2100.00,"ТОВ ""Редакція зазети ""Вісник Приазовʼя""",39665511,юридична особа
РПЛ,"Волинська область, Володимир-Волинський, вулиця Драгоманова, 18",49,2018-12-28,4341,Публікування матеріалів у друкованих ЗМІ,Реклама в друкованих ЗМІ,234449,Центральний офіс,37279703,Україна,Інформаційні послуги,26006580179,current,1395.00,"РГ ""Слово правди""",02471761,юридична особа
РПЛ,"Волинська область, Нововолинськ, проспект Дружби, 27",49,2018-12-28,4340,Публікування матеріалів у друкованих ЗМІ,Реклама в друкованих ЗМІ,234448,Центральний офіс,37279703,Україна,Інформаційні послуги,26006580179,current,1200.00,"РГ ""Наше місто""",20128222,юридична особа
РПЛ,"Волинська область, Луцьк, вулиця Лесі Українки, 9",49,2018-12-28,4339,Публікування матеріалів у друкованих ЗМІ,Реклама в друкованих ЗМІ,234447,Центральний офіс,37279703,Україна,Інформаційні послуги,26006580179,current,2400.00,"ТОВ ""Редакція обласної громадсько-політичної газети ""Волинська газета""",21733250,юридична особа
РПЛ,,66,2018-12-28,4404,Повернення внесків приватних внесків (донорам),Повернення приватних внесків (донорам),233623,Центральний офіс,37279703,Україна,ч.7ст 15 З У Про пол.партії,26006580179,current,49504.95,Лісовол Юлія Анатоліївна,,фізична особа
РПЛ,,66,2018-12-28,4403,Повернення внесків приватних внесків (донорам),Повернення приватних внесків (донорам),233622,Центральний офіс,37279703,Україна,ч.7ст 15 З У Про пол.партії,26006580179,current,99000.00,Лісовол Юлія Анатоліївна,,фізична особа
РПЛ,,66,2018-12-28,4402,Повернення внесків приватних внесків (донорам),Повернення приватних внесків (донорам),233621,Центральний офіс,37279703,Україна,ч.7ст 15 З У Про пол.партії,26006580179,current,99000.00,Бабич Юрій Віталійович,,фізична особа
РПЛ,,66,2018-12-28,4401,Повернення внесків приватних внесків (донорам),Повернення приватних внесків (донорам),233620,Центральний офіс,37279703,Україна,ч.7ст 15 З У Про пол.партії,26006580179,current,14000.00,Воронкін Андрій Петрович,,фізична особа
РПЛ,"Кіровоградська область, Гайворонський район, Гайворон",66,2018-12-28,4400,Повернення внесків приватних внесків (донорам),Повернення приватних внесків (донорам),233619,Центральний офіс,37279703,Україна,ч.7ст 15 З У Про пол.партії,26006580179,current,1000.00,Бевзенко Михайло Валентинович,,фізична особа
РПЛ,,66,2018-12-28,4399,Повернення внесків приватних внесків (донорам),Повернення приватних внесків (донорам),233618,Центральний офіс,37279703,Україна,ч.7ст 15 З У Про пол.партії,26006580179,current,1000.00,Зелінська Сніжана Михайлівна,,фізична особа
РПЛ,"Кіровоградська область, Гайворонський район, Гайворон",66,2018-12-28,4398,Повернення внесків приватних внесків (донорам),Повернення приватних внесків (донорам),233617,Центральний офіс,37279703,Україна,ч.7ст 15 З У Про пол.партії,26006580179,current,1000.00,Тімуш Роман Сергійович,,фізична особа
РПЛ,,66,2018-12-28,4369,Повернення внесків приватних внесків (донорам),Повернення приватних внесків (донорам),233616,Центральний офіс,37279703,Україна,ч.7ст 15 З У Про пол.партії,26006580179,current,1000.00,Санченко Олександр Миколайович,,фізична особа
РПЛ,,66,2018-12-28,4368,Повернення внесків приватних внесків (донорам),Повернення приватних внесків (донорам),233615,Центральний офіс,37279703,Україна,ч.7ст 15 З У Про пол.партії,26006580179,current,99009.00,Хромова Лілія Георгіївна,,фізична особа
РПЛ,"Рівненська область, Рівне",43,2018-12-27,4264,Інші витрати,Інші витрати,236736,Центральний офіс,37279703,Україна,Відрахування із зп за жовтень Конєва Володимира Леонідовича згідно виконавчого листа,26009580176,state,762.91,Рівненський міський відділ ДВС ГТУЮ у Рівненській обл.,35007146,юридична особа
РПЛ,"Рівненська область, Рівне",43,2018-12-27,4263,Інші витрати,Інші витрати,236735,Центральний офіс,37279703,Україна,Відрахування із зп за грудень Конєва Володимира Леонідовича згідно виконавчого листа,26009580176,state,13.13,Рівненський міський відділ ДВС ГТУЮ у Рівненській обл.,35007146,юридична особа
РПЛ,"Рівненська область, Рівне",43,2018-12-27,4262,Інші витрати,Інші витрати,236734,Центральний офіс,37279703,Україна,Відрахування із зп за грудень Конєва Володимира Леонідовича згідно виконавчого листа,26009580176,state,13.13,Рівненський міський відділ ДВС ГТУЮ у Рівненській обл.,35007146,юридична особа
РПЛ,"Київ, вулиця Миколи Лєскова, 9",70,2018-12-27,4257,Банківські послуги,Інші витрати,236733,Центральний офіс,37279703,Україна,Комісія банку за зарахування коштів на СКР працівників,26009580176,state,1209.89,"АТ ""Райффайзен банк Аваль""",14305909,юридична особа
РПЛ,"Київ, вулиця Академіка Туполєва, 28А",63,2018-12-27,4269,Податок на доходи,Податкові платежі,236732,Центральний офіс,37279703,Україна,Податок на доходи фізичних осіб- заробітна плата за 2 пол. Грудня,26009580176,state,75000.00,УДКСУ у Шевченківському районі м. Києва,37995466,юридична особа
РПЛ,"Херсонська область, Херсон",43,2018-12-27,4267,Інші витрати,Інші витрати,236731,Центральний офіс,37279703,Україна,Відрахування із зар.пл. за грудень Іванова Романа Анатолійовича згідно викон.листа,26009580176,state,1127.00,ВДВС Корабельного РУЮ м. Херсон,34906677,юридична особа
РПЛ,"Рівненська область, Рівне",43,2018-12-27,4266,Інші витрати,Інші витрати,236730,Центральний офіс,37279703,Україна,Відрахування із зп за грудень Конєва Володимира Леонідовича згідно виконавчого листа,26009580176,state,1.37,Рівненський міський відділ ДВС ГТУЮ у Рівненській обл.,35007146,юридична особа
РПЛ,"Рівненська область, Рівне",43,2018-12-27,4265,Інші витрати,Інші витрати,236729,Центральний офіс,37279703,Україна,Відрахування із зп за грудень Конєва Володимира Леонідовича згідно виконавчого листа,26009580176,state,171.08,Рівненський міський відділ ДВС ГТУЮ у Рівненській обл.,35007146,юридична особа
РПЛ,"Рівненська область, Рівне",43,2018-12-27,4261,Інші витрати,Інші витрати,236728,Центральний офіс,37279703,Україна,Відрахування із зп за грудень Конєва Володимира Леонідовича згідно виконавчого листа,26009580176,state,447.13,Рівненський міський відділ ДВС ГТУЮ у Рівненській обл.,35007146,юридична особа
РПЛ,"Київ, вулиця Миколи Лєскова, 9",70,2018-12-27,4253,Банківські послуги,Інші витрати,236727,Центральний офіс,37279703,Україна,Комісія банку за зарахування коштів на СКР працівників,26009580176,state,1.12,"АТ ""Райффайзен банк Аваль""",14305909,юридична особа
РПЛ,"Черкаська область, Черкаси",84,2018-12-27,4260,"Заробітна плата, премії","Заробітна плата, лікарняні, вагітності, відрядження, компенсації",235921,Центральний офіс,37279703,Україна,Заробітна плата за 2 пол. грудня,26009580176,state,1811.25,Лянна Тетяна Валеріївна,,фізична особа
РПЛ,"Дніпропетровська область, Дніпро́",84,2018-12-27,4259,"Заробітна плата, премії","Заробітна плата, лікарняні, вагітності, відрядження, компенсації",235920,Центральний офіс,37279703,Україна,Заробітна плата за 2 пол. грудня,26009580176,state,2068.17,Холодний Вячеслав Анатолійович,,фізична особа
РПЛ,"Львівська область, Львів",84,2018-12-27,4258,"Заробітна плата, премії","Заробітна плата, лікарняні, вагітності, відрядження, компенсації",235919,Центральний офіс,37279703,Україна,Заробітна плата за 2 пол. грудня,26009580176,state,2213.75,Маліновський Володимир Степанович,,фізична особа
РПЛ,Київ,84,2018-12-27,4256,"Заробітна плата, премії","Заробітна плата, лікарняні, вагітності, відрядження, компенсації",235918,Центральний офіс,37279703,Україна,Заробітна плата за 2 пол. грудня,26009580176,state,3622.50,Яковлєва Вероніка Павлівна,,фізична особа
РПЛ,"Чернівецька область, Чернівці",84,2018-12-27,4256,"Заробітна плата, премії","Заробітна плата, лікарняні, вагітності, відрядження, компенсації",235917,Центральний офіс,37279703,Україна,Заробітна плата за 2 пол. грудня,26009580176,state,2817.50,Юхимець Олександр Олександрович,,фізична особа
РПЛ,"Запорізька область, Запорізький район, Степне",84,2018-12-27,4256,"Заробітна плата, премії","Заробітна плата, лікарняні, вагітності, відрядження, компенсації",235916,Центральний офіс,37279703,Україна,Заробітна плата за 2 пол. грудня,26009580176,state,2269.42,Юргіна Юлія Володимирівна,,фізична особа
РПЛ,м. Кропивницький,84,2018-12-27,4256,"Заробітна плата, премії","Заробітна плата, лікарняні, вагітності, відрядження, компенсації",235915,Центральний офіс,37279703,Україна,Заробітна плата за 2 пол. грудня,26009580176,state,2269.42,Щуцька Тетяна Григорівна,,фізична особа
РПЛ,"Дніпропетровська область, Дніпро́",84,2018-12-27,4256,"Заробітна плата, премії","Заробітна плата, лікарняні, вагітності, відрядження, компенсації",235914,Центральний офіс,37279703,Україна,Заробітна плата за 2 пол. грудня,26009580176,state,2772.55,Штогрін Тетяна Миколаївна,,фізична особа
РПЛ,Київ,84,2018-12-27,4256,"Заробітна плата, премії","Заробітна плата, лікарняні, вагітності, відрядження, компенсації",235913,Центральний офіс,37279703,Україна,Заробітна плата за 2 пол. грудня,26009580176,state,2817.50,Шищенко Наталка Олександрівна,,фізична особа
РПЛ,м. Кропивницький,84,2018-12-27,4256,"Заробітна плата, премії","Заробітна плата, лікарняні, вагітності, відрядження, компенсації",235912,Центральний офіс,37279703,Україна,Заробітна плата за 2 пол. грудня,26009580176,state,2817.50,Шевченко Максим Леонідович,,фізична особа
РПЛ,"Донецька область, Донецьк",84,2018-12-27,4256,"Заробітна плата, премії","Заробітна плата, лікарняні, вагітності, відрядження, компенсації",235911,Центральний офіс,37279703,Україна,Заробітна плата за 2 пол. грудня,26009580176,state,6158.25,Чухляк Ольга Олегівна,,фізична особа
РПЛ,Івано-Франківська область,84,2018-12-27,4256,"Заробітна плата, премії","Заробітна плата, лікарняні, вагітності, відрядження, компенсації",235910,Центральний офіс,37279703,Україна,Заробітна плата за 2 пол. грудня,26009580176,state,1866.92,Цуркан Ольга Іванівна,,фізична особа
РПЛ,"Херсонська область, Херсон",84,2018-12-27,4256,"Заробітна плата, премії","Заробітна плата, лікарняні, вагітності, відрядження, компенсації",235909,Центральний офіс,37279703,Україна,Заробітна плата за 2 пол. грудня,26009580176,state,3074.42,Цивільський Андрій Миколайович,,фізична особа
РПЛ,"Дніпропетровська область, Дніпро́",84,2018-12-27,4256,"Заробітна плата, премії","Заробітна плата, лікарняні, вагітності, відрядження, компенсації",235908,Центральний офіс,37279703,Україна,Заробітна плата за 2 пол. грудня,26009580176,state,2873.17,Цаплін Євген Костянтинович,,фізична особа
РПЛ,"Чернівецька область, Кіцманський район, Витилівка",84,2018-12-27,4256,"Заробітна плата, премії","Заробітна плата, лікарняні, вагітності, відрядження, компенсації",235907,Центральний офіс,37279703,Україна,Заробітна плата за 2 пол. грудня,26009580176,state,2269.42,Худик Ірина Іванівна,,фізична особа
РПЛ,"Запорізька область, Запоріжжя",84,2018-12-27,4256,"Заробітна плата, премії","Заробітна плата, лікарняні, вагітності, відрядження, компенсації",235906,Центральний офіс,37279703,Україна,Заробітна плата за 2 пол. грудня,26009580176,state,2873.17,Хохлов Юрій Станіславович,,фізична особа
РПЛ,Київ,84,2018-12-27,4256,"Заробітна плата, премії","Заробітна плата, лікарняні, вагітності, відрядження, компенсації",235905,Центральний офіс,37279703,Україна,Заробітна плата за 2 пол. грудня,26009580176,state,2772.55,Хоменко Клим Миколайович,,фізична особа
РПЛ,"Чернівецька область, Чернівці",84,2018-12-27,4256,"Заробітна плата, премії","Заробітна плата, лікарняні, вагітності, відрядження, компенсації",235904,Центральний офіс,37279703,Україна,Заробітна плата за 2 пол. грудня,26009580176,state,1866.92,Фостій Олександр Олександрович,,фізична особа
РПЛ,"Донецька область, Маріуполь",84,2018-12-27,4256,"Заробітна плата, премії","Заробітна плата, лікарняні, вагітності, відрядження, компенсації",235903,Центральний офіс,37279703,Україна,Заробітна плата за 2 пол. грудня,26009580176,state,2817.50,Фіголь Ірина Петрівна,,фізична особа
РПЛ,"Київська обл., Бориспіль",84,2018-12-27,4256,"Заробітна плата, премії","Заробітна плата, лікарняні, вагітності, відрядження, компенсації",235902,Центральний офіс,37279703,Україна,Заробітна плата за 2 пол. грудня,26009580176,state,6721.75,Федун Юрій Степанович,,фізична особа
РПЛ,"Вінницька область, Вінниця",84,2018-12-27,4256,"Заробітна плата, премії","Заробітна плата, лікарняні, вагітності, відрядження, компенсації",235901,Центральний офіс,37279703,Україна,Заробітна плата за 2 пол. грудня,26009580176,state,2873.17,Федорова Ольга Іванівна,,фізична особа
РПЛ,"Івано-Франківська область, Долинський район, Долина",84,2018-12-27,4256,"Заробітна плата, премії","Заробітна плата, лікарняні, вагітності, відрядження, компенсації",235900,Центральний офіс,37279703,Україна,Заробітна плата за 2 пол. грудня,26009580176,state,2873.17,Федів Іван Ігорович,,фізична особа
РПЛ,"Луганська область, Сєвєродонецьк",84,2018-12-27,4256,"Заробітна плата, премії","Заробітна плата, лікарняні, вагітності, відрядження, компенсації",235899,Центральний офіс,37279703,Україна,Заробітна плата за 2 пол. грудня,26009580176,state,2269.42,Трощій Світлана Леонідівна,,фізична особа
РПЛ,Київ,84,2018-12-27,4256,"Заробітна плата, премії","Заробітна плата, лікарняні, вагітності, відрядження, компенсації",235898,Центральний офіс,37279703,Україна,Заробітна плата за 2 пол. грудня,26009580176,state,6842.50,Торговець Юлія Василівна,,фізична особа
РПЛ,"Чернігівська область, Чернігів",84,2018-12-27,4256,"Заробітна плата, премії","Заробітна плата, лікарняні, вагітності, відрядження, компенсації",235897,Центральний офіс,37279703,Україна,Заробітна плата за 2 пол. грудня,26009580176,state,1866.92,Ткаченко Тетяна Вадимівна,,фізична особа
РПЛ,Київ,84,2018-12-27,4256,"Заробітна плата, премії","Заробітна плата, лікарняні, вагітності, відрядження, компенсації",235896,Центральний офіс,37279703,Україна,Заробітна плата за 2 пол. грудня,26009580176,state,1358.43,Ткаченко Катерина Станіславівна,,фізична особа
РПЛ,"Київська обл., Володарський район, Володарка",84,2018-12-27,4256,"Заробітна плата, премії","Заробітна плата, лікарняні, вагітності, відрядження, компенсації",235895,Центральний офіс,37279703,Україна,Заробітна плата за 2 пол. грудня,26009580176,state,2772.55,Тихонова Світлана Ігорівна,,фізична особа
РПЛ,"Львівська область, Львів",84,2018-12-27,4256,"Заробітна плата, премії","Заробітна плата, лікарняні, вагітності, відрядження, компенсації",235894,Центральний офіс,37279703,Україна,Заробітна плата за 2 пол. грудня,26009580176,state,2716.88,Тернавський Віталій Богданович,,фізична особа
РПЛ,"Хмельницька область, Хмельницький",84,2018-12-27,4256,"Заробітна плата, премії","Заробітна плата, лікарняні, вагітності, відрядження, компенсації",235893,Центральний офіс,37279703,Україна,Заробітна плата за 2 пол. грудня,26009580176,state,1106.88,Тарасюк Валентина Михайлівна,,фізична особа
РПЛ,"Чернігівська область, Чернігів",84,2018-12-27,4256,"Заробітна плата, премії","Заробітна плата, лікарняні, вагітності, відрядження, компенсації",235892,Центральний офіс,37279703,Україна,Заробітна плата за 2 пол. грудня,26009580176,state,2873.17,Сухін Павло Сергійович,,фізична особа
РПЛ,"Полтавська область, Полтавський район, Розсошенці",84,2018-12-27,4256,"Заробітна плата, премії","Заробітна плата, лікарняні, вагітності, відрядження, компенсації",235891,Центральний офіс,37279703,Україна,Заробітна плата за 2 пол. грудня,26009580176,state,2269.42,Сухіна Юлія Олегівна,,фізична особа
РПЛ,"Чернігівська область, Корюківський район, Корюківка",84,2018-12-27,4256,"Заробітна плата, премії","Заробітна плата, лікарняні, вагітності, відрядження, компенсації",235890,Центральний офіс,37279703,Україна,Заробітна плата за 2 пол. грудня,26009580176,state,4789.75,Стукало Світлана Анатоліївна,,фізична особа
РПЛ,"Кіровоградська область, Кропивницький",84,2018-12-27,4256,"Заробітна плата, премії","Заробітна плата, лікарняні, вагітності, відрядження, компенсації",235889,Центральний офіс,37279703,Україна,Заробітна плата за 2 пол. грудня,26009580176,state,3074.42,Сторчаус Віталій Сергійович,,фізична особа
РПЛ,"Тернопільська область, Тернопіль",84,2018-12-27,4256,"Заробітна плата, премії","Заробітна плата, лікарняні, вагітності, відрядження, компенсації",235888,Центральний офіс,37279703,Україна,Заробітна плата за 2 пол. грудня,26009580176,state,2873.17,Стець Сергій Романович,,фізична особа
РПЛ,"Миколаївська область, Миколаїв",84,2018-12-27,4256,"Заробітна плата, премії","Заробітна плата, лікарняні, вагітності, відрядження, компенсації",235887,Центральний офіс,37279703,Україна,Заробітна плата за 2 пол. грудня,26009580176,state,3074.42,Степчик Лариса Володимирівна,,фізична особа
РПЛ,"Миколаївська область, Миколаїв",84,2018-12-27,4256,"Заробітна плата, премії","Заробітна плата, лікарняні, вагітності, відрядження, компенсації",235886,Центральний офіс,37279703,Україна,Заробітна плата за 2 пол. грудня,26009580176,state,1811.25,Стебліна Яна Валентинівна,,фізична особа
РПЛ,"Запорізька область, Запоріжжя",84,2018-12-27,4256,"Заробітна плата, премії","Заробітна плата, лікарняні, вагітності, відрядження, компенсації",235885,Центральний офіс,37279703,Україна,Заробітна плата за 2 пол. грудня,26009580176,state,1866.92,Статьєва Лілія Андріївна,,фізична особа
РПЛ,"Луганська область, Луганськ",84,2018-12-27,4256,"Заробітна плата, премії","Заробітна плата, лікарняні, вагітності, відрядження, компенсації",235884,Центральний офіс,37279703,Україна,Заробітна плата за 2 пол. грудня,26009580176,state,2873.17,Старицький Владислав Олександрович,,фізична особа
РПЛ,"Миколаївська область, Миколаїв",84,2018-12-27,4256,"Заробітна плата, премії","Заробітна плата, лікарняні, вагітності, відрядження, компенсації",235883,Центральний офіс,37279703,Україна,Заробітна плата за 2 пол. грудня,26009580176,state,2213.75,Спиридонова Тетяна Василівна,,фізична особа
РПЛ,"Кіровоградська область, Кропивницький",84,2018-12-27,4256,"Заробітна плата, премії","Заробітна плата, лікарняні, вагітності, відрядження, компенсації",235882,Центральний офіс,37279703,Україна,Заробітна плата за 2 пол. грудня,26009580176,state,1811.25,Софієнко Наталія Володимирівна,,фізична особа
РПЛ,"Чернігівська область, Чернігів",84,2018-12-27,4256,"Заробітна плата, премії","Заробітна плата, лікарняні, вагітності, відрядження, компенсації",235881,Центральний офіс,37279703,Україна,Заробітна плата за 2 пол. грудня,26009580176,state,2269.42,Соломаха Сергій Васильович,,фізична особа
РПЛ,"Вінницька область, Вінниця",84,2018-12-27,4256,"Заробітна плата, премії","Заробітна плата, лікарняні, вагітності, відрядження, компенсації",235880,Центральний офіс,37279703,Україна,Заробітна плата за 2 пол. грудня,26009580176,state,3074.42,Сокур Микола Миколайович,,фізична особа
РПЛ,"Чернігівська область, Чернігів",84,2018-12-27,4256,"Заробітна плата, премії","Заробітна плата, лікарняні, вагітності, відрядження, компенсації",235879,Центральний офіс,37279703,Україна,Заробітна плата за 2 пол. грудня,26009580176,state,2873.17,Соколова Ольга Вікторівна,,фізична особа
РПЛ,"Чернігівська область, Чернігів",84,2018-12-27,4256,"Заробітна плата, премії","Заробітна плата, лікарняні, вагітності, відрядження, компенсації",235878,Центральний офіс,37279703,Україна,Заробітна плата за 2 пол. грудня,26009580176,state,6721.75,Соколова Анжеліка Артурівна,,фізична особа
РПЛ,"Сумська область, Сумський район, Суми",84,2018-12-27,4256,"Заробітна плата, премії","Заробітна плата, лікарняні, вагітності, відрядження, компенсації",235877,Центральний офіс,37279703,Україна,Заробітна плата за 2 пол. грудня,26009580176,state,2873.17,Скляров Олександр Павлович,,фізична особа
РПЛ,Київ,84,2018-12-27,4256,"Заробітна плата, премії","Заробітна плата, лікарняні, вагітності, відрядження, компенсації",235876,Центральний офіс,37279703,Україна,Заробітна плата за 2 пол. грудня,26009580176,state,1501.33,Сірик Тетяна Василівна,,фізична особа
РПЛ,"Сумська область, Сумський район, Сад",84,2018-12-27,4256,"Заробітна плата, премії","Заробітна плата, лікарняні, вагітності, відрядження, компенсації",235875,Центральний офіс,37279703,Україна,Заробітна плата за 2 пол. грудня,26009580176,state,1811.25,Сич Ірина Олександрівна,,фізична особа
РПЛ,"Черкаська область, Черкаський район, Свидівок",84,2018-12-27,4256,"Заробітна плата, премії","Заробітна плата, лікарняні, вагітності, відрядження, компенсації",235874,Центральний офіс,37279703,Україна,Заробітна плата за 2 пол. грудня,26009580176,state,2269.42,Сирота Ігор Васильович,,фізична особа
РПЛ,"Івано-Франківська область, Тлумацький район, Нижнів",84,2018-12-27,4256,"Заробітна плата, премії","Заробітна плата, лікарняні, вагітності, відрядження, компенсації",235873,Центральний офіс,37279703,Україна,Заробітна плата за 2 пол. грудня,26009580176,state,2213.75,Симанишин Наталія Михайлівна,,фізична особа
РПЛ,"Сумська область, Сумський район, Суми",84,2018-12-27,4256,"Заробітна плата, премії","Заробітна плата, лікарняні, вагітності, відрядження, компенсації",235872,Центральний офіс,37279703,Україна,Заробітна плата за 2 пол. грудня,26009580176,state,3074.42,Сидоренко Дарʼя Олександрівна,,фізична особа
РПЛ,"Львівська область, Львів",84,2018-12-27,4256,"Заробітна плата, премії","Заробітна плата, лікарняні, вагітності, відрядження, компенсації",235871,Центральний офіс,37279703,Україна,Заробітна плата за 2 пол. грудня,26009580176,state,2873.17,Сидор Адріана Ігорівна,,фізична особа
РПЛ,"Волинська область, Луцьк",84,2018-12-27,4256,"Заробітна плата, премії","Заробітна плата, лікарняні, вагітності, відрядження, компенсації",235870,Центральний офіс,37279703,Україна,Заробітна плата за 2 пол. грудня,26009580176,state,3074.42,Семчук Юрій Анатолійович,,фізична особа
РПЛ,"Луганська область, Сєвєродонецьк",84,2018-12-27,4256,"Заробітна плата, премії","Заробітна плата, лікарняні, вагітності, відрядження, компенсації",235869,Центральний офіс,37279703,Україна,Заробітна плата за 2 пол. грудня,26009580176,state,2873.17,Семенюк Володимир Миколайович,,фізична особа
РПЛ,"Київ, вулиця Максима Берлинського, 6",84,2018-12-27,4256,"Заробітна плата, премії","Заробітна плата, лікарняні, вагітності, відрядження, компенсації",235868,Центральний офіс,37279703,Україна,Заробітна плата за 2 пол. грудня,26009580176,state,6213.92,Самсонова Аліна Вікторівна,2947606863,фізична особа
РПЛ,"Луганська область, Сєвєродонецьк",84,2018-12-27,4256,"Заробітна плата, премії","Заробітна плата, лікарняні, вагітності, відрядження, компенсації",235867,Центральний офіс,37279703,Україна,Заробітна плата за 2 пол. грудня,26009580176,state,3074.42,Руденко Ганна Володимирівна,,фізична особа
РПЛ,"Черкаська область, Черкаси",84,2018-12-27,4256,"Заробітна плата, премії","Заробітна плата, лікарняні, вагітності, відрядження, компенсації",235866,Центральний офіс,37279703,Україна,Заробітна плата за 2 пол. грудня,26009580176,state,2873.17,Романча Андрій Юрійович,,фізична особа
РПЛ,"Одеська область, Одеса",84,2018-12-27,4256,"Заробітна плата, премії","Заробітна плата, лікарняні, вагітності, відрядження, компенсації",235865,Центральний офіс,37279703,Україна,Заробітна плата за 2 пол. грудня,26009580176,state,2213.75,Розманін Олександр Петрович,,фізична особа
РПЛ,"Тернопільська область, Тернопільський район, Довжанка",84,2018-12-27,4256,"Заробітна плата, премії","Заробітна плата, лікарняні, вагітності, відрядження, компенсації",235864,Центральний офіс,37279703,Україна,Заробітна плата за 2 пол. грудня,26009580176,state,2269.42,Репко Євгенія Олексіївна,,фізична особа
РПЛ,"Дніпропетровська область, Дніпро́",84,2018-12-27,4256,"Заробітна плата, премії","Заробітна плата, лікарняні, вагітності, відрядження, компенсації",235863,Центральний офіс,37279703,Україна,Заробітна плата за 2 пол. грудня,26009580176,state,2873.17,Ревенко Юлія Сергіївна,,фізична особа
РПЛ,"Кіровоградська область, Кропивницький",84,2018-12-27,4256,"Заробітна плата, премії","Заробітна плата, лікарняні, вагітності, відрядження, компенсації",235862,Центральний офіс,37279703,Україна,Заробітна плата за 2 пол. грудня,26009580176,state,2213.75,Пустовойт Марина Едуардівна,,фізична особа
РПЛ,Київ,84,2018-12-27,4256,"Заробітна плата, премії","Заробітна плата, лікарняні, вагітності, відрядження, компенсації",235861,Центральний офіс,37279703,Україна,Заробітна плата за 2 пол. грудня,26009580176,state,6721.75,Пугачова Ярослава Павлівна,,фізична особа
РПЛ,"Донецька область, Маріуполь",84,2018-12-27,4256,"Заробітна плата, премії","Заробітна плата, лікарняні, вагітності, відрядження, компенсації",235860,Центральний офіс,37279703,Україна,Заробітна плата за 2 пол. грудня,26009580176,state,2873.17,Прудніченко Алла Дмитрівна,,фізична особа
РПЛ,"Хмельницька область, Красилівський район, Красилів",84,2018-12-27,4256,"Заробітна плата, премії","Заробітна плата, лікарняні, вагітності, відрядження, компенсації",235859,Центральний офіс,37279703,Україна,Заробітна плата за 2 пол. грудня,26009580176,state,1261.88,Процюк Наталія Юріївна,,фізична особа
РПЛ,"Київська обл., Обухівський район, Обухів",84,2018-12-27,4256,"Заробітна плата, премії","Заробітна плата, лікарняні, вагітності, відрядження, компенсації",235858,Центральний офіс,37279703,Україна,Заробітна плата за 2 пол. грудня,26009580176,state,6213.92,Потеряйко Вадим Юрійович,,фізична особа
РПЛ,Київ,84,2018-12-27,4256,"Заробітна плата, премії","Заробітна плата, лікарняні, вагітності, відрядження, компенсації",235857,Центральний офіс,37279703,Україна,Заробітна плата за 2 пол. грудня,26009580176,state,6238.75,Поліщук Анна Валентинівна,,фізична особа
РПЛ,"Рівненська область, Рівне",84,2018-12-27,4256,"Заробітна плата, премії","Заробітна плата, лікарняні, вагітності, відрядження, компенсації",235856,Центральний офіс,37279703,Україна,Заробітна плата за 2 пол. грудня,26009580176,state,3018.75,Пікарська Оксана Миколаївна,,фізична особа
РПЛ,"Одеська область, Одеса",84,2018-12-27,4256,"Заробітна плата, премії","Заробітна плата, лікарняні, вагітності, відрядження, компенсації",235855,Центральний офіс,37279703,Україна,Заробітна плата за 2 пол. грудня,26009580176,state,2772.55,Перчеклій Микола Васильович,,фізична особа
РПЛ,"Херсонська область, Херсон",84,2018-12-27,4256,"Заробітна плата, премії","Заробітна плата, лікарняні, вагітності, відрядження, компенсації",235854,Центральний офіс,37279703,Україна,Заробітна плата за 2 пол. грудня,26009580176,state,1866.92,Пермінов Артем Георгійович,,фізична особа
РПЛ,Київ,84,2018-12-27,4256,"Заробітна плата, премії","Заробітна плата, лікарняні, вагітності, відрядження, компенсації",235853,Центральний офіс,37279703,Україна,Заробітна плата за 2 пол. грудня,26009580176,state,2772.55,Пархоменко Аліна Петрівна,,фізична особа
РПЛ,Київ,84,2018-12-27,4256,"Заробітна плата, премії","Заробітна плата, лікарняні, вагітності, відрядження, компенсації",235852,Центральний офіс,37279703,Україна,Заробітна плата за 2 пол. грудня,26009580176,state,2873.17,Парака Ярослава Володимирівна,,фізична особа
РПЛ,"Київська обл., Васильків",84,2018-12-27,4256,"Заробітна плата, премії","Заробітна плата, лікарняні, вагітності, відрядження, компенсації",235851,Центральний офіс,37279703,Україна,Заробітна плата за 2 пол. грудня,26009580176,state,6475.35,Падурець Людмила Володимирівна,,фізична особа
РПЛ,"Харківська область, Харків",84,2018-12-27,4256,"Заробітна плата, премії","Заробітна плата, лікарняні, вагітності, відрядження, компенсації",235850,Центральний офіс,37279703,Україна,Заробітна плата за 2 пол. грудня,26009580176,state,2213.75,Павленко Олена Валеріївна,,фізична особа
РПЛ,"Дніпропетровська область, Дніпро́",84,2018-12-27,4256,"Заробітна плата, премії","Заробітна плата, лікарняні, вагітності, відрядження, компенсації",235849,Центральний офіс,37279703,Україна,Заробітна плата за 2 пол. грудня,26009580176,state,2716.88,Осташевська Наталія Василівна,,фізична особа
РПЛ,"Київська обл., Біла Церква",84,2018-12-27,4256,"Заробітна плата, премії","Заробітна плата, лікарняні, вагітності, відрядження, компенсації",235848,Центральний офіс,37279703,Україна,Заробітна плата за 2 пол. грудня,26009580176,state,2394.88,Остапенко Сергій Анатолійович,,фізична особа
РПЛ,"Рівненська область, Рівненський район, Кустин",84,2018-12-27,4256,"Заробітна плата, премії","Заробітна плата, лікарняні, вагітності, відрядження, компенсації",235847,Центральний офіс,37279703,Україна,Заробітна плата за 2 пол. грудня,26009580176,state,3431.98,Оксенюк Антон Олексійович,,фізична особа
РПЛ,Київ,84,2018-12-27,4256,"Заробітна плата, премії","Заробітна плата, лікарняні, вагітності, відрядження, компенсації",235846,Центральний офіс,37279703,Україна,Заробітна плата за 2 пол. грудня,26009580176,state,5474.00,Новохацька Олександра Вікторівна,,фізична особа
РПЛ,Київ,84,2018-12-27,4256,"Заробітна плата, премії","Заробітна плата, лікарняні, вагітності, відрядження, компенсації",235845,Центральний офіс,37279703,Україна,Заробітна плата за 2 пол. грудня,26009580176,state,6777.42,Нещерет Олександр Володимирович,,фізична особа
РПЛ,Київ,84,2018-12-27,4256,"Заробітна плата, премії","Заробітна плата, лікарняні, вагітності, відрядження, компенсації",235844,Центральний офіс,37279703,Україна,Заробітна плата за 2 пол. грудня,26009580176,state,6842.50,Нечипорук Олександр Григорович,,фізична особа
РПЛ,"Запорізька область, Запорізький район, Кушугум",84,2018-12-27,4256,"Заробітна плата, премії","Заробітна плата, лікарняні, вагітності, відрядження, компенсації",235843,Центральний офіс,37279703,Україна,Заробітна плата за 2 пол. грудня,26009580176,state,3074.42,Нежура Діана Андріївна,,фізична особа
РПЛ,"Одеська область, Одеса",84,2018-12-27,4256,"Заробітна плата, премії","Заробітна плата, лікарняні, вагітності, відрядження, компенсації",235842,Центральний офіс,37279703,Україна,Заробітна плата за 2 пол. грудня,26009580176,state,2269.42,Неводчікова Ганна Ігорівна,,фізична особа
РПЛ,"Рівненська область, Рівненський район, Городок",84,2018-12-27,4256,"Заробітна плата, премії","Заробітна плата, лікарняні, вагітності, відрядження, компенсації",235841,Центральний офіс,37279703,Україна,Заробітна плата за 2 пол. грудня,26009580176,state,1866.92,Наумець Надія Стефанівна,,фізична особа
РПЛ,"Рівненська область, Рівне",84,2018-12-27,4256,"Заробітна плата, премії","Заробітна плата, лікарняні, вагітності, відрядження, компенсації",235840,Центральний офіс,37279703,Україна,Заробітна плата за 2 пол. грудня,26009580176,state,2873.17,Назарчук Юлія Юріївна,,фізична особа
РПЛ,"Львівська область, Городоцький район, Керниця",84,2018-12-27,4256,"Заробітна плата, премії","Заробітна плата, лікарняні, вагітності, відрядження, компенсації",235839,Центральний офіс,37279703,Україна,Заробітна плата за 2 пол. грудня,26009580176,state,3260.25,Назарчук Наталія Андріївна,,фізична особа
РПЛ,"Рівненська область, Рівне",84,2018-12-27,4256,"Заробітна плата, премії","Заробітна плата, лікарняні, вагітності, відрядження, компенсації",235838,Центральний офіс,37279703,Україна,Заробітна плата за 2 пол. грудня,26009580176,state,1408.75,Нагорна Олександра Олегівна,,фізична особа
РПЛ,"Полтавська область, Полтава",84,2018-12-27,4256,"Заробітна плата, премії","Заробітна плата, лікарняні, вагітності, відрядження, компенсації",235837,Центральний офіс,37279703,Україна,Заробітна плата за 2 пол. грудня,26009580176,state,1866.92,Мунтян Катерина Олександрівна,,фізична особа
РПЛ,"Полтавська область, Полтава",84,2018-12-27,4256,"Заробітна плата, премії","Заробітна плата, лікарняні, вагітності, відрядження, компенсації",235836,Центральний офіс,37279703,Україна,Заробітна плата за 2 пол. грудня,26009580176,state,2213.75,Мороз Максим Вікторович,,фізична особа
РПЛ,"Полтавська область, Лубенський район, Новооріхівка",84,2018-12-27,4256,"Заробітна плата, премії","Заробітна плата, лікарняні, вагітності, відрядження, компенсації",235835,Центральний офіс,37279703,Україна,Заробітна плата за 2 пол. грудня,26009580176,state,1509.38,Моренко Лідія Сергіївна,,фізична особа
РПЛ,"Волинська область, Луцьк",84,2018-12-27,4256,"Заробітна плата, премії","Заробітна плата, лікарняні, вагітності, відрядження, компенсації",235834,Центральний офіс,37279703,Україна,Заробітна плата за 2 пол. грудня,26009580176,state,2213.75,Мозоль Віктор Володимирович,,фізична особа
РПЛ,"Полтавська область, Лубенський район, Новооріхівка",84,2018-12-27,4256,"Заробітна плата, премії","Заробітна плата, лікарняні, вагітності, відрядження, компенсації",235833,Центральний офіс,37279703,Україна,Заробітна плата за 2 пол. грудня,26009580176,state,1509.38,Мірошниченко Віталій Григорович,,фізична особа
РПЛ,"Запорізька область, Запоріжжя",84,2018-12-27,4256,"Заробітна плата, премії","Заробітна плата, лікарняні, вагітності, відрядження, компенсації",235832,Центральний офіс,37279703,Україна,Заробітна плата за 2 пол. грудня,26009580176,state,1106.88,Міненко Ірина Анатоліївна,,фізична особа
РПЛ,"Вінницька область, Вінниця",84,2018-12-27,4256,"Заробітна плата, премії","Заробітна плата, лікарняні, вагітності, відрядження, компенсації",235831,Центральний офіс,37279703,Україна,Заробітна плата за 2 пол. грудня,26009580176,state,1697.67,Мисака Дарʼя Вячеславівна,,фізична особа
РПЛ,Київ,84,2018-12-27,4256,"Заробітна плата, премії","Заробітна плата, лікарняні, вагітності, відрядження, компенсації",235830,Центральний офіс,37279703,Україна,Заробітна плата за 2 пол. грудня,26009580176,state,6158.25,Мельник Дмитро Романович,,фізична особа
РПЛ,Київ,84,2018-12-27,4256,"Заробітна плата, премії","Заробітна плата, лікарняні, вагітності, відрядження, компенсації",235829,Центральний офіс,37279703,Україна,Заробітна плата за 2 пол. грудня,26009580176,state,9217.25,Мелещук Наталія Володимирівна,,фізична особа
РПЛ,Київ,84,2018-12-27,4256,"Заробітна плата, премії","Заробітна плата, лікарняні, вагітності, відрядження, компенсації",235828,Центральний офіс,37279703,Україна,Заробітна плата за 2 пол. грудня,26009580176,state,6777.42,Машир Олександр Іванович,,фізична особа
РПЛ,"Полтавська область, Полтава",84,2018-12-27,4256,"Заробітна плата, премії","Заробітна плата, лікарняні, вагітності, відрядження, компенсації",235827,Центральний офіс,37279703,Україна,Заробітна плата за 2 пол. грудня,26009580176,state,3694.95,Матяш Руслан Анатолійович,,фізична особа
РПЛ,"Волинська область, Любешівський район, Бірки",84,2018-12-27,4256,"Заробітна плата, премії","Заробітна плата, лікарняні, вагітності, відрядження, компенсації",235826,Центральний офіс,37279703,Україна,Заробітна плата за 2 пол. грудня,26009580176,state,1811.25,Матвійчук Олеся Федорівна,,фізична особа
РПЛ,"Черкаська область, Черкаси",84,2018-12-27,4256,"Заробітна плата, премії","Заробітна плата, лікарняні, вагітності, відрядження, компенсації",235825,Центральний офіс,37279703,Україна,Заробітна плата за 2 пол. грудня,26009580176,state,3074.42,Мартюшева Наталія Вікторівна,,фізична особа
РПЛ,Київ,84,2018-12-27,4256,"Заробітна плата, премії","Заробітна плата, лікарняні, вагітності, відрядження, компенсації",235824,Центральний офіс,37279703,Україна,Заробітна плата за 2 пол. грудня,26009580176,state,6158.25,Макарова Юлія Миколаївна,,фізична особа
РПЛ,"Кіровоградська область, Новомиргородський район, Мартоноша",84,2018-12-27,4256,"Заробітна плата, премії","Заробітна плата, лікарняні, вагітності, відрядження, компенсації",235823,Центральний офіс,37279703,Україна,Заробітна плата за 2 пол. грудня,26009580176,state,2873.17,Лягур Ірина Василівна,,фізична особа
РПЛ,"Харківська область, Харків",84,2018-12-27,4256,"Заробітна плата, премії","Заробітна плата, лікарняні, вагітності, відрядження, компенсації",235822,Центральний офіс,37279703,Україна,Заробітна плата за 2 пол. грудня,26009580176,state,1866.92,Ліщенко Анна Андріївна,,фізична особа
РПЛ,"Одеська область, Одеса",84,2018-12-27,4256,"Заробітна плата, премії","Заробітна плата, лікарняні, вагітності, відрядження, компенсації",235821,Центральний офіс,37279703,Україна,Заробітна плата за 2 пол. грудня,26009580176,state,3074.42,Лисейко Оксана Вікторівна,,фізична особа
РПЛ,"Одеська область, Одеса",84,2018-12-27,4256,"Заробітна плата, премії","Заробітна плата, лікарняні, вагітності, відрядження, компенсації",235820,Центральний офіс,37279703,Україна,Заробітна плата за 2 пол. грудня,26009580176,state,1866.92,Литвинець Руслана Василівна,,фізична особа
РПЛ,Київ,84,2018-12-27,4256,"Заробітна плата, премії","Заробітна плата, лікарняні, вагітності, відрядження, компенсації",235819,Центральний офіс,37279703,Україна,Заробітна плата за 2 пол. грудня,26009580176,state,5529.67,Линовицький Ігор Олександрович,,фізична особа
РПЛ,"Харківська область, Харків",84,2018-12-27,4256,"Заробітна плата, премії","Заробітна плата, лікарняні, вагітності, відрядження, компенсації",235818,Центральний офіс,37279703,Україна,Заробітна плата за 2 пол. грудня,26009580176,state,2716.87,Левченко Дарина Олександрівна,,фізична особа
РПЛ,"Львівська область, Турківський район, Турка",84,2018-12-27,4256,"Заробітна плата, премії","Заробітна плата, лікарняні, вагітності, відрядження, компенсації",235817,Центральний офіс,37279703,Україна,Заробітна плата за 2 пол. грудня,26009580176,state,1811.25,Левченко Анастасія Едуардівна,,фізична особа
РПЛ,"Сумська область, Сумський район, Суми",84,2018-12-27,4256,"Заробітна плата, премії","Заробітна плата, лікарняні, вагітності, відрядження, компенсації",235816,Центральний офіс,37279703,Україна,Заробітна плата за 2 пол. грудня,26009580176,state,2817.50,Левенко Марина Володимирівна,,фізична особа
РПЛ,"Дніпропетровська область, Дніпро́",84,2018-12-27,4256,"Заробітна плата, премії","Заробітна плата, лікарняні, вагітності, відрядження, компенсації",235815,Центральний офіс,37279703,Україна,Заробітна плата за 2 пол. грудня,26009580176,state,2269.42,Лашкевич Олена Леонідівна,,фізична особа
РПЛ,Київ,84,2018-12-27,4256,"Заробітна плата, премії","Заробітна плата, лікарняні, вагітності, відрядження, компенсації",235814,Центральний офіс,37279703,Україна,Заробітна плата за 2 пол. грудня,26009580176,state,6721.75,Куц Тарас Федорович,,фізична особа
РПЛ,"Черкаська область, Черкаський район, Дубіївка",84,2018-12-27,4256,"Заробітна плата, премії","Заробітна плата, лікарняні, вагітності, відрядження, компенсації",235813,Центральний офіс,37279703,Україна,Заробітна плата за 2 пол. грудня,26009580176,state,6721.75,Кутілова Вікторія Володимирівна,,фізична особа
РПЛ,"Львівська область, Городоцький район",84,2018-12-27,4256,"Заробітна плата, премії","Заробітна плата, лікарняні, вагітності, відрядження, компенсації",235812,Центральний офіс,37279703,Україна,Заробітна плата за 2 пол. грудня,26009580176,state,3074.42,Кузьмин Марина Миколаївна,,фізична особа
РПЛ,"Харківська область, Харків",84,2018-12-27,4256,"Заробітна плата, премії","Заробітна плата, лікарняні, вагітності, відрядження, компенсації",235811,Центральний офіс,37279703,Україна,Заробітна плата за 2 пол. грудня,26009580176,state,2213.75,Кудрявцев Валентин Володимирович,,фізична особа
РПЛ,"Івано-Франківська область, Тисменицький район, Чукалівка",84,2018-12-27,4256,"Заробітна плата, премії","Заробітна плата, лікарняні, вагітності, відрядження, компенсації",235810,Центральний офіс,37279703,Україна,Заробітна плата за 2 пол. грудня,26009580176,state,3074.42,Кривченко Тетяна Миколаївна,,фізична особа
РПЛ,"Київська обл., Васильків",84,2018-12-27,4256,"Заробітна плата, премії","Заробітна плата, лікарняні, вагітності, відрядження, компенсації",235809,Центральний офіс,37279703,Україна,Заробітна плата за 2 пол. грудня,26009580176,state,6213.92,Криворучко Ігор Олегович,,фізична особа
РПЛ,"Київська обл., Вишгородський район, Тарасівщина",84,2018-12-27,4256,"Заробітна плата, премії","Заробітна плата, лікарняні, вагітності, відрядження, компенсації",235808,Центральний офіс,37279703,Україна,Заробітна плата за 2 пол. грудня,26009580176,state,4789.75,Крамар Оксана Станіславівна,,фізична особа
РПЛ,"Чернігівська область, Ічнянський район, Ічня",84,2018-12-27,4256,"Заробітна плата, премії","Заробітна плата, лікарняні, вагітності, відрядження, компенсації",235807,Центральний офіс,37279703,Україна,Заробітна плата за 2 пол. грудня,26009580176,state,452.82,Крамаренко Сергій Миколайович,,фізична особа
РПЛ,Київ,84,2018-12-27,4256,"Заробітна плата, премії","Заробітна плата, лікарняні, вагітності, відрядження, компенсації",235806,Центральний офіс,37279703,Україна,Заробітна плата за 2 пол. грудня,26009580176,state,3178.64,Кравченко Сергій Вікторович,,фізична особа
РПЛ,"Київська обл., Бровари",84,2018-12-27,4256,"Заробітна плата, премії","Заробітна плата, лікарняні, вагітності, відрядження, компенсації",235805,Центральний офіс,37279703,Україна,Заробітна плата за 2 пол. грудня,26009580176,state,2873.17,Кравченко Олександр Миколайович,,фізична особа
РПЛ,"Івано-Франківська область, Івано-Франківськ",84,2018-12-27,4256,"Заробітна плата, премії","Заробітна плата, лікарняні, вагітності, відрядження, компенсації",235804,Центральний офіс,37279703,Україна,Заробітна плата за 2 пол. грудня,26009580176,state,2269.42,Кочержук Вячеслав Володимирович,,фізична особа
РПЛ,Київ,84,2018-12-27,4256,"Заробітна плата, премії","Заробітна плата, лікарняні, вагітності, відрядження, компенсації",235803,Центральний офіс,37279703,Україна,Заробітна плата за 2 пол. грудня,26009580176,state,6721.75,Короткий Геннадій Леонідович,,фізична особа
РПЛ,"Черкаська область, Черкаси",84,2018-12-27,4256,"Заробітна плата, премії","Заробітна плата, лікарняні, вагітності, відрядження, компенсації",235802,Центральний офіс,37279703,Україна,Заробітна плата за 2 пол. грудня,26009580176,state,1408.75,Короп Наталія Іванівна,,фізична особа
РПЛ,"Житомирська область, Житомир",84,2018-12-27,4256,"Заробітна плата, премії","Заробітна плата, лікарняні, вагітності, відрядження, компенсації",235801,Центральний офіс,37279703,Україна,Заробітна плата за 2 пол. грудня,26009580176,state,1866.92,Короп Лідія Володимирівна,,фізична особа
РПЛ,"Донецька область, Маріуполь",84,2018-12-27,4256,"Заробітна плата, премії","Заробітна плата, лікарняні, вагітності, відрядження, компенсації",235800,Центральний офіс,37279703,Україна,Заробітна плата за 2 пол. грудня,26009580176,state,1866.94,Коробських Сергій Олександрович,,фізична особа
РПЛ,"Донецька область, Маріуполь",84,2018-12-27,4256,"Заробітна плата, премії","Заробітна плата, лікарняні, вагітності, відрядження, компенсації",235799,Центральний офіс,37279703,Україна,Заробітна плата за 2 пол. грудня,26009580176,state,1866.92,Корицька Крістіна Анатоліївна,,фізична особа
РПЛ,Київ,84,2018-12-27,4256,"Заробітна плата, премії","Заробітна плата, лікарняні, вагітності, відрядження, компенсації",235798,Центральний офіс,37279703,Україна,Заробітна плата за 2 пол. грудня,26009580176,state,3074.42,Кондюх Андрій Олегович,,фізична особа
РПЛ,"Рівненська область, Рівне",84,2018-12-27,4256,"Заробітна плата, премії","Заробітна плата, лікарняні, вагітності, відрядження, компенсації",235797,Центральний офіс,37279703,Україна,Заробітна плата за 2 пол. грудня,26009580176,state,55.67,Конєв Володимир Леонідович,,фізична особа
РПЛ,"Житомирська область, Житомир",84,2018-12-27,4256,"Заробітна плата, премії","Заробітна плата, лікарняні, вагітності, відрядження, компенсації",235796,Центральний офіс,37279703,Україна,Заробітна плата за 2 пол. грудня,26009580176,state,2873.17,Ковнацька Юлія Володимирівна,,фізична особа
РПЛ,"Чернігівська область, Чернігів",84,2018-12-27,4256,"Заробітна плата, премії","Заробітна плата, лікарняні, вагітності, відрядження, компенсації",235795,Центральний офіс,37279703,Україна,Заробітна плата за 2 пол. грудня,26009580176,state,3074.42,Коверзнева Марина Віталіївна,,фізична особа
РПЛ,"Тернопільська область, Тернопіль",84,2018-12-27,4256,"Заробітна плата, премії","Заробітна плата, лікарняні, вагітності, відрядження, компенсації",235794,Центральний офіс,37279703,Україна,Заробітна плата за 2 пол. грудня,26009580176,state,1866.92,Ковальчук Віталія Валеріївна,,фізична особа
РПЛ,"Миколаївська область, Миколаїв",84,2018-12-27,4256,"Заробітна плата, премії","Заробітна плата, лікарняні, вагітності, відрядження, компенсації",235793,Центральний офіс,37279703,Україна,Заробітна плата за 2 пол. грудня,26009580176,state,2269.42,Коваль Лариса Миколаївна,,фізична особа
РПЛ,"Харківська область, Харків",84,2018-12-27,4256,"Заробітна плата, премії","Заробітна плата, лікарняні, вагітності, відрядження, компенсації",235792,Центральний офіс,37279703,Україна,Заробітна плата за 2 пол. грудня,26009580176,state,3074.42,Ключник Оксана Василівна,,фізична особа
РПЛ,"Чернігівська область, Городнянський район, Городня",84,2018-12-27,4256,"Заробітна плата, премії","Заробітна плата, лікарняні, вагітності, відрядження, компенсації",235791,Центральний офіс,37279703,Україна,Заробітна плата за 2 пол. грудня,26009580176,state,1565.05,Климович Тетяна Вікторівна,,фізична особа
РПЛ,Київ,84,2018-12-27,4256,"Заробітна плата, премії","Заробітна плата, лікарняні, вагітності, відрядження, компенсації",235790,Центральний офіс,37279703,Україна,Заробітна плата за 2 пол. грудня,26009580176,state,2772.55,Кітаєв Роман Русланович,,фізична особа
РПЛ,"Одеська область, Тарутинський район, Тарутине",84,2018-12-27,4256,"Заробітна плата, премії","Заробітна плата, лікарняні, вагітності, відрядження, компенсації",235789,Центральний офіс,37279703,Україна,Заробітна плата за 2 пол. грудня,26009580176,state,2873.17,Кисса Святослав Вікторович,,фізична особа
РПЛ,"Донецька область, Донецьк",84,2018-12-27,4256,"Заробітна плата, премії","Заробітна плата, лікарняні, вагітності, відрядження, компенсації",235788,Центральний офіс,37279703,Україна,Заробітна плата за 2 пол. грудня,26009580176,state,5433.75,Карачік Олександр Валентинович,,фізична особа
РПЛ,"Херсонська область, Херсон",84,2018-12-27,4256,"Заробітна плата, премії","Заробітна плата, лікарняні, вагітності, відрядження, компенсації",235787,Центральний офіс,37279703,Україна,Заробітна плата за 2 пол. грудня,26009580176,state,1746.17,Іванов Роман Анатолійович,,фізична особа
РПЛ,"Полтавська область, Полтава",84,2018-12-27,4256,"Заробітна плата, премії","Заробітна плата, лікарняні, вагітності, відрядження, компенсації",235786,Центральний офіс,37279703,Україна,Заробітна плата за 2 пол. грудня,26009580176,state,1866.92,Іваненко Аліна Василівна,,фізична особа
РПЛ,"Одеська область, Одеса",84,2018-12-27,4256,"Заробітна плата, премії","Заробітна плата, лікарняні, вагітності, відрядження, компенсації",235785,Центральний офіс,37279703,Україна,Заробітна плата за 2 пол. грудня,26009580176,state,2772.55,Зубов Михайло Леонідович,,фізична особа
РПЛ,"Дніпропетровська область, Дніпро́",84,2018-12-27,4256,"Заробітна плата, премії","Заробітна плата, лікарняні, вагітності, відрядження, компенсації",235784,Центральний офіс,37279703,Україна,Заробітна плата за 2 пол. грудня,26009580176,state,2068.17,Зиков Сергій Олександрович,,фізична особа
РПЛ,"Чернівецька область, Чернівці",84,2018-12-27,4256,"Заробітна плата, премії","Заробітна плата, лікарняні, вагітності, відрядження, компенсації",235783,Центральний офіс,37279703,Україна,Заробітна плата за 2 пол. грудня,26009580176,state,6842.50,Закієв Артур Вячеславович,,фізична особа
РПЛ,Київська обл.,84,2018-12-27,4256,"Заробітна плата, премії","Заробітна плата, лікарняні, вагітності, відрядження, компенсації",235782,Центральний офіс,37279703,Україна,Заробітна плата за 2 пол. грудня,26009580176,state,2873.17,Заваліна Ксенія Валеріївна,,фізична особа
РПЛ,"Запорізька область, Запоріжжя",84,2018-12-27,4256,"Заробітна плата, премії","Заробітна плата, лікарняні, вагітності, відрядження, компенсації",235781,Центральний офіс,37279703,Україна,Заробітна плата за 2 пол. грудня,26009580176,state,2269.42,Єршова Надія Геннадіївна,,фізична особа
РПЛ,Київ,84,2018-12-27,4256,"Заробітна плата, премії","Заробітна плата, лікарняні, вагітності, відрядження, компенсації",235780,Центральний офіс,37279703,Україна,Заробітна плата за 2 пол. грудня,26009580176,state,6394.85,Євтушенко Наталія Федорівна,,фізична особа
РПЛ,"Луганська область, Сєвєродонецьк",84,2018-12-27,4256,"Заробітна плата, премії","Заробітна плата, лікарняні, вагітності, відрядження, компенсації",235779,Центральний офіс,37279703,Україна,Заробітна плата за 2 пол. грудня,26009580176,state,1866.92,Дроздова Олена Михайлівна,,фізична особа
РПЛ,"Київська обл., Біла Церква",84,2018-12-27,4256,"Заробітна плата, премії","Заробітна плата, лікарняні, вагітності, відрядження, компенсації",235778,Центральний офіс,37279703,Україна,Заробітна плата за 2 пол. грудня,26009580176,state,6777.42,Дністрян Володимир Семенович,,фізична особа
РПЛ,"Сумська область, Сумський район, Суми",84,2018-12-27,4256,"Заробітна плата, премії","Заробітна плата, лікарняні, вагітності, відрядження, компенсації",235777,Центральний офіс,37279703,Україна,Заробітна плата за 2 пол. грудня,26009580176,state,2269.42,Демеха Сергій Васильович,,фізична особа
РПЛ,"Хмельницька область, Хмельницький",84,2018-12-27,4256,"Заробітна плата, премії","Заробітна плата, лікарняні, вагітності, відрядження, компенсації",235776,Центральний офіс,37279703,Україна,Заробітна плата за 2 пол. грудня,26009580176,state,1866.92,Данілкова Марина Юріївна,,фізична особа
РПЛ,"Хмельницька область, Хмельницький",84,2018-12-27,4256,"Заробітна плата, премії","Заробітна плата, лікарняні, вагітності, відрядження, компенсації",235775,Центральний офіс,37279703,Україна,Заробітна плата за 2 пол. грудня,26009580176,state,1509.38,Данілкова Анастасія Юріївна,,фізична особа
РПЛ,"Чернігівська область, Сновський район, Сновськ",84,2018-12-27,4256,"Заробітна плата, премії","Заробітна плата, лікарняні, вагітності, відрядження, компенсації",235774,Центральний офіс,37279703,Україна,Заробітна плата за 2 пол. грудня,26009580176,state,3421.25,Данильченко Ніна Василівна,,фізична особа
РПЛ,Київ,84,2018-12-27,4256,"Заробітна плата, премії","Заробітна плата, лікарняні, вагітності, відрядження, компенсації",235773,Центральний офіс,37279703,Україна,Заробітна плата за 2 пол. грудня,26009580176,state,7245.00,Даниленко Антон Олександрович,,фізична особа
РПЛ,"Запорізька область, Запоріжжя",84,2018-12-27,4256,"Заробітна плата, премії","Заробітна плата, лікарняні, вагітності, відрядження, компенсації",235772,Центральний офіс,37279703,Україна,Заробітна плата за 2 пол. грудня,26009580176,state,2873.17,Гусейнова Марія Юріївна,,фізична особа
РПЛ,"Київська обл., Броварський район, Світильня",84,2018-12-27,4256,"Заробітна плата, премії","Заробітна плата, лікарняні, вагітності, відрядження, компенсації",235771,Центральний офіс,37279703,Україна,Заробітна плата за 2 пол. грудня,26009580176,state,10314.73,Гринчук Тетяна Володимирівна,,фізична особа
РПЛ,"Донецька область, Маріуполь",84,2018-12-27,4256,"Заробітна плата, премії","Заробітна плата, лікарняні, вагітності, відрядження, компенсації",235770,Центральний офіс,37279703,Україна,Заробітна плата за 2 пол. грудня,26009580176,state,2269.42,Горох Юрій Анатолійович,,фізична особа
РПЛ,Київ,84,2018-12-27,4256,"Заробітна плата, премії","Заробітна плата, лікарняні, вагітності, відрядження, компенсації",235769,Центральний офіс,37279703,Україна,Заробітна плата за 2 пол. грудня,26009580176,state,2772.55,Городенко Ольга Борисівна,,фізична особа
РПЛ,"Дніпропетровська область, Нікополь, вулиця Патріотів України, 175",84,2018-12-27,4256,"Заробітна плата, премії","Заробітна плата, лікарняні, вагітності, відрядження, компенсації",235768,Центральний офіс,37279703,Україна,Заробітна плата за 2 пол. грудня,26009580176,state,3074.42,Горобець Сергій Геннадійович,,фізична особа
РПЛ,"Чернівецька область, Заставнівський район, Заставна",84,2018-12-27,4256,"Заробітна плата, премії","Заробітна плата, лікарняні, вагітності, відрядження, компенсації",235767,Центральний офіс,37279703,Україна,Заробітна плата за 2 пол. грудня,26009580176,state,2269.42,Гольцов Леонід Петрович,,фізична особа
РПЛ,"Дніпропетровська область, Дніпро́",84,2018-12-27,4256,"Заробітна плата, премії","Заробітна плата, лікарняні, вагітності, відрядження, компенсації",235766,Центральний офіс,37279703,Україна,Заробітна плата за 2 пол. грудня,26009580176,state,2269.42,Головченко Віктор Іванович,,фізична особа
РПЛ,"Івано-Франківська область, Тисменицький район, Старий Лисець",84,2018-12-27,4256,"Заробітна плата, премії","Заробітна плата, лікарняні, вагітності, відрядження, компенсації",235765,Центральний офіс,37279703,Україна,Заробітна плата за 2 пол. грудня,26009580176,state,2873.17,Голинський Ігор Михайлович,,фізична особа
РПЛ,"Житомирська область, Житомир",84,2018-12-27,4256,"Заробітна плата, премії","Заробітна плата, лікарняні, вагітності, відрядження, компенсації",235764,Центральний офіс,37279703,Україна,Заробітна плата за 2 пол. грудня,26009580176,state,3074.42,Гнєушев Сергій Вікторович,,фізична особа
РПЛ,"Донецька область, Маріуполь",84,2018-12-27,4256,"Заробітна плата, премії","Заробітна плата, лікарняні, вагітності, відрядження, компенсації",235763,Центральний офіс,37279703,Україна,Заробітна плата за 2 пол. грудня,26009580176,state,2772.55,Глєбова Яна Олександрівна,,фізична особа
РПЛ,Київ,84,2018-12-27,4256,"Заробітна плата, премії","Заробітна плата, лікарняні, вагітності, відрядження, компенсації",235762,Центральний офіс,37279703,Україна,Заробітна плата за 2 пол. грудня,26009580176,state,6158.25,Герасименко Євгеній Юрійович,,фізична особа
РПЛ,"Хмельницька область, Хмельницький",84,2018-12-27,4256,"Заробітна плата, премії","Заробітна плата, лікарняні, вагітності, відрядження, компенсації",235761,Центральний офіс,37279703,Україна,Заробітна плата за 2 пол. грудня,26009580176,state,2269.42,Герас Ігор Богданович,,фізична особа
РПЛ,"Чернігівська область, Чернігів",84,2018-12-27,4256,"Заробітна плата, премії","Заробітна плата, лікарняні, вагітності, відрядження, компенсації",235760,Центральний офіс,37279703,Україна,Заробітна плата за 2 пол. грудня,26009580176,state,2269.42,Галаган Ольга Сергіївна,,фізична особа
РПЛ,"Вінницька область, Вінниця",84,2018-12-27,4256,"Заробітна плата, премії","Заробітна плата, лікарняні, вагітності, відрядження, компенсації",235759,Центральний офіс,37279703,Україна,Заробітна плата за 2 пол. грудня,26009580176,state,2269.42,Гавриш Юлія Костянтинівна,,фізична особа
РПЛ,"Полтавська область, Полтава",84,2018-12-27,4256,"Заробітна плата, премії","Заробітна плата, лікарняні, вагітності, відрядження, компенсації",235758,Центральний офіс,37279703,Україна,Заробітна плата за 2 пол. грудня,26009580176,state,2873.17,Гавриш Світлана Іванівна,,фізична особа
РПЛ,"Волинська область, Рожищенський район, Копачівка",84,2018-12-27,4256,"Заробітна плата, премії","Заробітна плата, лікарняні, вагітності, відрядження, компенсації",235757,Центральний офіс,37279703,Україна,Заробітна плата за 2 пол. грудня,26009580176,state,2873.17,Воробйова Жанна Миколаївна,,фізична особа
РПЛ,"Вінницька область, Чернівецький район, Шендерівка",84,2018-12-27,4256,"Заробітна плата, премії","Заробітна плата, лікарняні, вагітності, відрядження, компенсації",235756,Центральний офіс,37279703,Україна,Заробітна плата за 2 пол. грудня,26009580176,state,3074.42,Войцех Юлія Миколаївна,,фізична особа
РПЛ,"Львівська область, Львів",84,2018-12-27,4256,"Заробітна плата, премії","Заробітна плата, лікарняні, вагітності, відрядження, компенсації",235755,Центральний офіс,37279703,Україна,Заробітна плата за 2 пол. грудня,26009580176,state,1106.88,Вітик Оксана Петрівна,,фізична особа
РПЛ,"Тернопільська область, Тернопіль",84,2018-12-27,4256,"Заробітна плата, премії","Заробітна плата, лікарняні, вагітності, відрядження, компенсації",235754,Центральний офіс,37279703,Україна,Заробітна плата за 2 пол. грудня,26009580176,state,2817.50,Вінницька Ольга Анатоліївна,,фізична особа
РПЛ,Київ,84,2018-12-27,4256,"Заробітна плата, премії","Заробітна плата, лікарняні, вагітності, відрядження, компенсації",235753,Центральний офіс,37279703,Україна,Заробітна плата за 2 пол. грудня,26009580176,state,3421.25,Відмиш Євген Аркадійович,,фізична особа
РПЛ,"Сумська область, Сумський район, Суми",84,2018-12-27,4256,"Заробітна плата, премії","Заробітна плата, лікарняні, вагітності, відрядження, компенсації",235752,Центральний офіс,37279703,Україна,Заробітна плата за 2 пол. грудня,26009580176,state,1106.88,Бунаас Людмила Михайлівна,,фізична особа
РПЛ,Київ,84,2018-12-27,4256,"Заробітна плата, премії","Заробітна плата, лікарняні, вагітності, відрядження, компенсації",235751,Центральний офіс,37279703,Україна,Заробітна плата за 2 пол. грудня,26009580176,state,3018.75,Бугринець Дарʼя Русланівна,,фізична особа
РПЛ,"Хмельницька область, Хмельницький",84,2018-12-27,4256,"Заробітна плата, премії","Заробітна плата, лікарняні, вагітності, відрядження, компенсації",235750,Центральний офіс,37279703,Україна,Заробітна плата за 2 пол. грудня,26009580176,state,2873.17,Брезденюк Аліна Олегівна,,фізична особа
РПЛ,Київ,84,2018-12-27,4256,"Заробітна плата, премії","Заробітна плата, лікарняні, вагітності, відрядження, компенсації",235749,Центральний офіс,37279703,Україна,Заробітна плата за 2 пол. грудня,26009580176,state,6721.75,Бондаренко Юрій Леонідович,,фізична особа
РПЛ,Київ,84,2018-12-27,4256,"Заробітна плата, премії","Заробітна плата, лікарняні, вагітності, відрядження, компенсації",235748,Центральний офіс,37279703,Україна,Заробітна плата за 2 пол. грудня,26009580176,state,2772.55,Бондаренко Владислав Юрійович,,фізична особа
РПЛ,"Київська обл., Києво-Святошинський район, Святопетрівське",84,2018-12-27,4256,"Заробітна плата, премії","Заробітна плата, лікарняні, вагітності, відрядження, компенсації",235747,Центральний офіс,37279703,Україна,Заробітна плата за 2 пол. грудня,26009580176,state,6213.92,Бойко Олена Іванівна,,фізична особа
РПЛ,"Хмельницька область, Віньковецький район, Станіславівка",84,2018-12-27,4256,"Заробітна плата, премії","Заробітна плата, лікарняні, вагітності, відрядження, компенсації",235746,Центральний офіс,37279703,Україна,Заробітна плата за 2 пол. грудня,26009580176,state,2873.17,Богачик Яна Валентинівна,,фізична особа
РПЛ,"Тернопільська область, Тернопіль",84,2018-12-27,4256,"Заробітна плата, премії","Заробітна плата, лікарняні, вагітності, відрядження, компенсації",235745,Центральний офіс,37279703,Україна,Заробітна плата за 2 пол. грудня,26009580176,state,3074.42,Білецький Володимир Ярославович,,фізична особа
РПЛ,Київ,84,2018-12-27,4256,"Заробітна плата, премії","Заробітна плата, лікарняні, вагітності, відрядження, компенсації",235744,Центральний офіс,37279703,Україна,Заробітна плата за 2 пол. грудня,26009580176,state,6898.17,Бистрякова Юлія Ігорівна,,фізична особа
РПЛ,Київ,84,2018-12-27,4256,"Заробітна плата, премії","Заробітна плата, лікарняні, вагітності, відрядження, компенсації",235743,Центральний офіс,37279703,Україна,Заробітна плата за 2 пол. грудня,26009580176,state,5514.25,Бєлов Ігор Ігорович,,фізична особа
РПЛ,"Харківська область, Харків",84,2018-12-27,4256,"Заробітна плата, премії","Заробітна плата, лікарняні, вагітності, відрядження, компенсації",235742,Центральний офіс,37279703,Україна,Заробітна плата за 2 пол. грудня,26009580176,state,2873.17,Беляєва Анна Ігорівна,,фізична особа
РПЛ,"Харківська область, Харків",84,2018-12-27,4256,"Заробітна плата, премії","Заробітна плата, лікарняні, вагітності, відрядження, компенсації",235741,Центральний офіс,37279703,Україна,Заробітна плата за 2 пол. грудня,26009580176,state,2817.50,Бела Катерина Олегівна,,фізична особа
РПЛ,Київ,84,2018-12-27,4256,"Заробітна плата, премії","Заробітна плата, лікарняні, вагітності, відрядження, компенсації",235740,Центральний офіс,37279703,Україна,Заробітна плата за 2 пол. грудня,26009580176,state,6213.92,Безпалько Вʼячеслав Андрійович,,фізична особа
РПЛ,"Київська обл., Бородянський район, Шибене",84,2018-12-27,4256,"Заробітна плата, премії","Заробітна плата, лікарняні, вагітності, відрядження, компенсації",235739,Центральний офіс,37279703,Україна,Заробітна плата за 2 пол. грудня,26009580176,state,6842.50,Бардаш Олег Миколайович,,фізична особа
РПЛ,"Київська обл., Обухівський район, Українка",84,2018-12-27,4256,"Заробітна плата, премії","Заробітна плата, лікарняні, вагітності, відрядження, компенсації",235738,Центральний офіс,37279703,Україна,Заробітна плата за 2 пол. грудня,26009580176,state,2772.55,Байбула Юрій Михайлович,,фізична особа
РПЛ,"Київська обл., Броварський район, Зазим'є",84,2018-12-27,4256,"Заробітна плата, премії","Заробітна плата, лікарняні, вагітності, відрядження, компенсації",235737,Центральний офіс,37279703,Україна,Заробітна плата за 2 пол. грудня,26009580176,state,2269.42,Бадюл Андрій Костянтинович,,фізична особа
РПЛ,"Київська обл., Броварський район, Зазим'є",84,2018-12-27,4256,"Заробітна плата, премії","Заробітна плата, лікарняні, вагітності, відрядження, компенсації",235736,Центральний офіс,37279703,Україна,Заробітна плата за 2 пол. грудня,26009580176,state,1866.92,Бадюл Анастасія Анатоліївна,,фізична особа
РПЛ,"Херсонська область, Олешківський район, Привітне",84,2018-12-27,4256,"Заробітна плата, премії","Заробітна плата, лікарняні, вагітності, відрядження, компенсації",235735,Центральний офіс,37279703,Україна,Заробітна плата за 2 пол. грудня,26009580176,state,2873.17,Ахтулова Альона Олександрівна,,фізична особа
РПЛ,"Черкаська область, Черкаси",84,2018-12-27,4256,"Заробітна плата, премії","Заробітна плата, лікарняні, вагітності, відрядження, компенсації",235734,Центральний офіс,37279703,Україна,Заробітна плата за 2 пол. грудня,26009580176,state,2817.50,Асанова Інна Володимирівна,,фізична особа
РПЛ,"Волинська область, Луцьк",84,2018-12-27,4256,"Заробітна плата, премії","Заробітна плата, лікарняні, вагітності, відрядження, компенсації",235733,Центральний офіс,37279703,Україна,Заробітна плата за 2 пол. грудня,26009580176,state,2873.17,Андрейчук Наталія Василівна,,фізична особа
РПЛ,"Херсонська область, Херсон",84,2018-12-27,4256,"Заробітна плата, премії","Заробітна плата, лікарняні, вагітності, відрядження, компенсації",235732,Центральний офіс,37279703,Україна,Заробітна плата за 2 пол. грудня,26009580176,state,2269.42,Адаменко Аліна Михайлівна,,фізична особа
РПЛ,Київ,83,2018-12-27,4252,"Виплати працівникам (не зарплата): лікарняні, вагітності, відрядження, компенсації ","Заробітна плата, лікарняні, вагітності, відрядження, компенсації",235731,Центральний офіс,37279703,Україна,Аванс на відрядження,26009580176,state,562.06,Мелещук Наталія Володимирівна,,фізична особа
РПЛ,"Київська обл., Макарівський район, Макарів, вулиця Пушкіна",49,2018-12-27,4337,Публікування матеріалів у друкованих ЗМІ,Реклама в друкованих ЗМІ,234446,Центральний офіс,37279703,Україна,надання інформаційних послуг в №49,26006580179,current,2400.00,"ТОВ ""Макарівські вісті""",02473286,юридична особа
РПЛ,"Сумська область, Суми, вулиця Харківська, 4",51,2018-12-27,4336,Оплата ефірного часу на ТБ,Телереклама,234445,Центральний офіс,37279703,Україна,Інформаційні послуги в ефірі,26006580179,current,2400.00,"ТОВ ""Телерадіокомпапія ""ВІДІКОН""",21107661,юридична особа
РПЛ,"Сумська область, Суми, вулиця Кооперативна, 19",49,2018-12-27,4335,Публікування матеріалів у друкованих ЗМІ,Реклама в друкованих ЗМІ,234444,Центральний офіс,37279703,Україна,Розміщення інформаційних матеріалів,26006580179,current,5250.00,"Сумська громадсько-ділова газета ""Ваш шанс""",21120470,юридична особа
РПЛ,"Кіровоградська область, Кропивницький, вулиця Євгена Чикаленка, 1А",51,2018-12-27,4334,Оплата ефірного часу на ТБ,Телереклама,234443,Центральний офіс,37279703,Україна,інформаційні послуги на ТТV,26006580179,current,2592.00,"ТОВ ""Телерадіокомпанія ТТV""",13745760,юридична особа
РПЛ,"Івано-Франківська область, Івано-Франківськ, вулиця Михайла Грушевського, 21",51,2018-12-27,4333,Оплата ефірного часу на ТБ,Телереклама,234442,Центральний офіс,37279703,Україна,Інформаційні послуги,26006580179,current,3240.00,"Івано-Франківське обласне телебачення ""Галичина""",13641427,юридична особа
РПЛ,"Закарпатська область, Ужгород, вулиця Крилова, 10",51,2018-12-27,4332,Оплата ефірного часу на ТБ,Телереклама,234441,Центральний офіс,37279703,Україна,розміщення відеоматеріалів,26006580179,current,2916.00,"Приватне мале підприємство ""Телерадіокомпанія ДАНІО""",20430464,юридична особа
РПЛ,"Київська обл., Васильків, провулок Гетьманський, 3",51,2018-12-27,4331,Оплата ефірного часу на ТБ,Телереклама,234440,Центральний офіс,37279703,Україна,послуги з розміщення в ефірі програм,26006580179,current,1350.00,"ТОВ Телерадіокомпанія ""Грант""",30161258,юридична особа
РПЛ,"Хмельницька область, Хмельницький, Кам'янецька вулиця, 21",51,2018-12-27,4330,Оплата ефірного часу на ТБ,Телереклама,234439,Центральний офіс,37279703,Україна,надання інформаційних послуг з розміщення відеоматеріалів,26006580179,current,3000.00,"ДП ""Дитяче телевізійне агентство""",23843362,юридична особа
РПЛ,"Харківська область, Харків, вулиця Римарська, 23А",51,2018-12-27,4329,Оплата ефірного часу на ТБ,Телереклама,234438,Центральний офіс,37279703,Україна,Інформаційні послуги,26006580179,current,13800.00,"ПрАТ ""Регіональна телемовна компанія ""Тоніс-Центр""",14059592,юридична особа
РПЛ,"Чернівецька область, Чернівці, вулиця Емінеску, 2",51,2018-12-27,4328,Оплата ефірного часу на ТБ,Телереклама,234437,Центральний офіс,37279703,Україна,виготовлення відеопродукції,26006580179,current,12857.14,"ТОВ ""Міська телерадіокомпанія ""Чернівці""",31561607,юридична особа
РПЛ,"Тернопільська область, Тернопіль, вулиця Гетьмана Сагайдачного, 2",51,2018-12-27,4327,Оплата ефірного часу на ТБ,Телереклама,234436,Центральний офіс,37279703,Україна,розміщення відеоматеріалів в ефірі,26006580179,current,7280.00,"ТОВ ""TV-4""",14029496,юридична особа
РПЛ,"Дніпропетровська область, Дніпро́, вулиця Набережна Перемоги, 50",51,2018-12-27,4326,Оплата ефірного часу на ТБ,Телереклама,234435,Центральний офіс,37279703,Україна,розміщення відеоматеріалів в ефірі,26006580179,current,3600.00,"ТОВ ""ТЕЛЕВІЗІЙНА КОМПАНІЯ ""ПРИВАТ ТБ ДНІПРО""",23376587,юридична особа
РПЛ,"Черкаська область, Черкаси, вулиця Юрія Іллєнка, 27",51,2018-12-27,4325,Оплата ефірного часу на ТБ,Телереклама,234434,Центральний офіс,37279703,Україна,розміщення відеоматеріалів,26006580179,current,2250.00,"ТОВ ""ТРК ""Вікка""",21385292,юридична особа
РПЛ,"Житомирська область, Житомир, проспект Миру, 11",51,2018-12-27,4324,Оплата ефірного часу на ТБ,Телереклама,234433,Центральний офіс,37279703,Україна,Розміщення інформаційних матеріалів,26006580179,current,2100.00,"ТОВ ""ТРК ""СОЮЗ-ТВ""",25304801,юридична особа
РПЛ,"Запорізька область, Запоріжжя, проспект Моторобудівників, 48",51,2018-12-27,4323,Оплата ефірного часу на ТБ,Телереклама,234432,Центральний офіс,37279703,Україна,надання інформаційних послуг з розміщення відеоматеріалів,26006580179,current,15750.00,"ТОВ ""ТРК ""АЛЕКС""",23286602,юридична особа
РПЛ,"Волинська область, Луцьк, вулиця Електроапаратна, 3",51,2018-12-27,4322,Оплата ефірного часу на ТБ,Телереклама,234431,Центральний офіс,37279703,Україна,Розміщення інформаційних матеріалів,26006580179,current,13786.20,"ТРК ""Аверс""",21755180,юридична особа
РПЛ,"Полтавська область, Полтава, вулиця Соборності, 77А",51,2018-12-27,4321,Оплата ефірного часу на ТБ,Телереклама,234430,Центральний офіс,37279703,Україна,виготовлення інформаційних відеоматеріалів,26006580179,current,3000.00,"ТОВ ""Студія ""Місто""",31495587,юридична особа
РПЛ,"Миколаївська область, Миколаїв, вулиця Чкалова, 30",51,2018-12-27,4320,Оплата ефірного часу на ТБ,Телереклама,234429,Центральний офіс,37279703,Україна,інформаційні послуги з розміщення відеоматеріалів,26006580179,current,3760.00,"ТОВ ТРК ""НІС-ТВ""",20874043,юридична особа
РПЛ,"Чернігівська область, Чернігів",51,2018-12-27,4319,Оплата ефірного часу на ТБ,Телереклама,234428,Центральний офіс,37279703,Україна,Розміщення інформаційних матеріалів,26006580179,current,8100.00,"КП ""Телерадіоагенство ""Новий Чернігів"" Чернігівської міської ради",21397527,юридична особа
РПЛ,"Львівська область, Львів, вулиця Володимира Винниченка, 6",51,2018-12-27,4318,Оплата ефірного часу на ТБ,Телереклама,234427,Центральний офіс,37279703,Україна,інформаційні послуги з розміщення відеоматеріалів,26006580179,current,20000.00,"ПП ""НТА-Незалежне телевізійне агенство""",30053161,юридична особа
РПЛ,"Рівненська область, Рівне, вулиця Соломії Крушельницької, 19",51,2018-12-27,4317,Оплата ефірного часу на ТБ,Телереклама,234426,Центральний офіс,37279703,Україна,інформаційні послуги в ефірі телеканалу,26006580179,current,13000.00,Ваврик Марина Олександрівна,3086020149,фізична особа
РПЛ,"Запорізька область, Запоріжжя, вулиця Суворова, 4",51,2018-12-27,4316,Оплата ефірного часу на ТБ,Телереклама,234425,Центральний офіс,37279703,Україна,Інформаційні послуги,26006580179,current,40701.44,"ТОВ ""Запор.незалеж.те лерадіокомп. ""ТВ-5""",13630346,юридична особа
РПЛ,"Тернопільська область, Тернопіль, вулиця Оболоня, 11",49,2018-12-27,4315,Публікування матеріалів у друкованих ЗМІ,Реклама в друкованих ЗМІ,234424,Центральний офіс,37279703,Україна,Інформаційні послуги,26006580179,current,3000.00,"ПП ""Агенство Тернопільських новин""",33706065,юридична особа
РПЛ,"Тернопільська область, Тернопіль, вулиця Анатолія Живова, 11",49,2018-12-27,4314,Публікування матеріалів у друкованих ЗМІ,Реклама в друкованих ЗМІ,234423,Центральний офіс,37279703,Україна,інформаційні послуги в газеті,26006580179,current,2998.80,"РГ ""Свобода""",21157527,юридична особа
РПЛ,"Одеська область, Одеса, вулиця Канатна, 83",49,2018-12-27,4313,Публікування матеріалів у друкованих ЗМІ,Реклама в друкованих ЗМІ,234422,Центральний офіс,37279703,Україна,Інформаційні послуги,26006580179,current,1600.00,"РГ ""ОДЕСЬКІ ВІСТІ""",32751682,юридична особа
РПЛ,"Запорізька область, Запоріжжя, вулиця Героїв 37-го батальйону, 32",49,2018-12-27,4312,Публікування матеріалів у друкованих ЗМІ,Реклама в друкованих ЗМІ,234421,Центральний офіс,37279703,Україна,Інформаційні послуги,26006580179,current,2100.00,"РГ ""Червоний прмінь""",05428234,юридична особа
РПЛ,"Львівська область, Буський район, Буськ",49,2018-12-27,4311,Публікування матеріалів у друкованих ЗМІ,Реклама в друкованих ЗМІ,234420,Центральний офіс,37279703,Україна,інформаційні послуги в газеті,26006580179,current,2250.00,"ПП ""Медіа-центр ""Над Бугом""",02474021,юридична особа
РПЛ,"Миколаївська область, Миколаїв, вулиця Адміральська, 20",49,2018-12-27,4310,Публікування матеріалів у друкованих ЗМІ,Реклама в друкованих ЗМІ,234419,Центральний офіс,37279703,Україна,Інформаційні послуги,26006580179,current,2700.00,"ПП РГ ""Николаевские ноости""",23088693,юридична особа
РПЛ,"Луганська область, Лисичанськ, проспект Перемоги, 60",49,2018-12-27,4309,Публікування матеріалів у друкованих ЗМІ,Реклама в друкованих ЗМІ,234418,Центральний офіс,37279703,Україна,інформаційні послуги в газеті,26006580179,current,1566.00,"РКП ""РГ ""Сільські новини""",02476818,юридична особа
РПЛ,"Черкаська область, Тальнівський район, Тальне, вулиця Гагаріна, 4",49,2018-12-27,4308,Публікування матеріалів у друкованих ЗМІ,Реклама в друкованих ЗМІ,234417,Центральний офіс,37279703,Україна,інформаційні послуги в газеті,26006580179,current,1050.00,КП РГ Тальнівщина,34522445,юридична особа
РПЛ,"Тернопільська область, Тернопіль, вулиця Анатолія Живова, 11",49,2018-12-27,4307,Публікування матеріалів у друкованих ЗМІ,Реклама в друкованих ЗМІ,234416,Центральний офіс,37279703,Україна,інформаційні послуги в газеті,26006580179,current,700.00,"РГ ""Свобода""",21157527,юридична особа
РПЛ,"Харківська область, Люботин, вулиця Слобожанська, 11",49,2018-12-27,4306,Публікування матеріалів у друкованих ЗМІ,Реклама в друкованих ЗМІ,234415,Центральний офіс,37279703,Україна,інформаційні послуги в газеті,26006580179,current,1310.00,"РГ ""Дворічанський край""",02476563,юридична особа
РПЛ,"Івано-Франківська область, Галицький район, Галич, вулиця Євгена Коновальця, 5",49,2018-12-27,4305,Публікування матеріалів у друкованих ЗМІ,Реклама в друкованих ЗМІ,234414,Центральний офіс,37279703,Україна,Інформаційні послуги,26006580179,current,2100.00,"РГ ""Галицьке слово""",25597973,юридична особа
РПЛ,"Дніпропетровська область, Дніпро́, проспект Дмитра Яворницького, 76",49,2018-12-27,4304,Публікування матеріалів у друкованих ЗМІ,Реклама в друкованих ЗМІ,234413,Центральний офіс,37279703,Україна,Розміщення інформаційних матеріалів,26006580179,current,6760.00,"РГ ""Наше місто""",19087191,юридична особа
РПЛ,"Львівська область, Червоноград, вулиця Будівельна, 22",49,2018-12-27,4303,Публікування матеріалів у друкованих ЗМІ,Реклама в друкованих ЗМІ,234412,Центральний офіс,37279703,Україна,інформаційні послуги в газеті,26006580179,current,1600.00,"КП РГ ""Новини Прибужжя""",02474015,юридична особа
РПЛ,"Івано-Франківська область, Рогатинський район, Рогатин, вулиця Галицька, 67",49,2018-12-27,4302,Публікування матеріалів у друкованих ЗМІ,Реклама в друкованих ЗМІ,234411,Центральний офіс,37279703,Україна,інформаційні послуги в газеті,26006580179,current,750.00,"ТОВ ""Голос Опілля""-медіа+""",20553505,юридична особа
РПЛ,"м. Кропивницький, просп. Перемоги, буд. 12, кв. 85",49,2018-12-27,4301,Публікування матеріалів у друкованих ЗМІ,Реклама в друкованих ЗМІ,234410,Центральний офіс,37279703,Україна,"інформаційні послуги в ""Селянській газеті""",26006580179,current,1100.00,Іщенко Ірина Григорівна,2132417387,фізична особа
РПЛ,"Запорізька область, Запоріжжя, вулиця Героїв 37-го батальйону, 32",49,2018-12-27,4300,Публікування матеріалів у друкованих ЗМІ,Реклама в друкованих ЗМІ,234409,Центральний офіс,37279703,Україна,Інформаційні послуги,26006580179,current,1610.00,"РГ ""Червоний прмінь""",05428234,юридична особа
РПЛ,"Львівська область, Радехівський район, Радехів, вулиця Богдана Хмельницького, 22",49,2018-12-27,4299,Публікування матеріалів у друкованих ЗМІ,Реклама в друкованих ЗМІ,234408,Центральний офіс,37279703,Україна,інформаційні послуги в газеті,26006580179,current,600.00,"РГ ""Народна справа""""",02473903,юридична особа
РПЛ,"Львівська область, Львів, вулиця Січових Стрільців, 3",49,2018-12-27,4298,Публікування матеріалів у друкованих ЗМІ,Реклама в друкованих ЗМІ,234407,Центральний офіс,37279703,Україна,інформаційні послуги в газеті,26006580179,current,2000.00,"ТОВ ""Видавничий дім ""Новий Львів""",31977813,юридична особа
РПЛ,"Донецька область, Маріуполь, проспект Миру, 19",49,2018-12-27,4297,Публікування матеріалів у друкованих ЗМІ,Реклама в друкованих ЗМІ,234406,Центральний офіс,37279703,Україна,Інформаційні послуги,26006580179,current,1050.00,"ПрАТ ""Газета ""Приазовський робочий""",02472200,юридична особа
РПЛ,"Тернопільська область, Гусятинський район, Гусятин, проспект Незалежності, 1",49,2018-12-27,4296,Публікування матеріалів у друкованих ЗМІ,Реклама в друкованих ЗМІ,234405,Центральний офіс,37279703,Україна,інформаційні послуги в газеті,26006580179,current,2100.00,"РГ ""Вісник Надзбруччя""",02475243,юридична особа
РПЛ,"Рівненська область, Рівне, вулиця Паркова, 6",48,2018-12-27,4295,Публікування матеріалів у мережі Інтернет,Реклама в інтернеті,234404,Центральний офіс,37279703,Україна,Інформаційні послуги,26006580179,current,2400.00,Гляйх Ігор Вікторович,3160509719,фізична особа
РПЛ,"Харківська область, Харків, вулиця Клочківська, 197Б, 26",49,2018-12-27,4294,Публікування матеріалів у друкованих ЗМІ,Реклама в друкованих ЗМІ,234403,Центральний офіс,37279703,Україна,Публікація в газеті,26006580179,current,11000.00,Касьяненко Р Ю,2622018290,фізична особа
РПЛ,"Харківська область, Харків, вулиця Клочківська, 197Б, 26",49,2018-12-27,4293,Публікування матеріалів у друкованих ЗМІ,Реклама в друкованих ЗМІ,234402,Центральний офіс,37279703,Україна,Публікація в газеті,26006580179,current,11000.00,Касьяненко Р Ю,2622018290,фізична особа
РПЛ,"Харківська область, Харків, майдан Свободи, 5",49,2018-12-27,4292,Публікування матеріалів у друкованих ЗМІ,Реклама в друкованих ЗМІ,234401,Центральний офіс,37279703,Україна,Інформаційні послуги,26006580179,current,10881.00,"РГ ""Слобідський край""",21188137,юридична особа
РПЛ,"Харківська область, Харків, вулиця Римарська, 25, 42",48,2018-12-27,4291,Публікування матеріалів у мережі Інтернет,Реклама в інтернеті,234400,Центральний офіс,37279703,Україна,інформаційні послуги на порталі,26006580179,current,12800.00,"ТОВ ""ЕФЕКТИВНИЙ РОЗУМ""",39607093,юридична особа
РПЛ,"Харківська область, Харків, Театральний провулок, 4",48,2018-12-27,4290,Публікування матеріалів у мережі Інтернет,Реклама в інтернеті,234399,Центральний офіс,37279703,Україна,розміщеня інформації на сайті,26006580179,current,6260.00,"ТОВ ""Компанія АТН""",24270655,юридична особа
РПЛ,"Харківська область, Харків, Театральний провулок, 4",48,2018-12-27,4289,Публікування матеріалів у мережі Інтернет,Реклама в інтернеті,234398,Центральний офіс,37279703,Україна,розміщеня інформації на сайті,26006580179,current,6260.00,"ТОВ ""Компанія АТН""",24270655,юридична особа
РПЛ,"Харківська область, Харків, Театральний провулок, 4",51,2018-12-27,4288,Оплата ефірного часу на ТБ,Телереклама,234397,Центральний офіс,37279703,Україна,право на показ твору в ефірі,26006580179,current,24000.00,"ТОВ ""Компанія АТН""",24270655,юридична особа
РПЛ,"Харківська область, Харків, Театральний провулок, 4",51,2018-12-27,1143,Оплата ефірного часу на ТБ,Телереклама,234396,Центральний офіс,37279703,Україна,право на показ твору в ефірі,26006580179,current,24000.00,"ТОВ ""Компанія АТН""",24270655,юридична особа
РПЛ,"Харківська область, Харків, майдан Свободи, 7",51,2018-12-27,4286,Оплата ефірного часу на ТБ,Телереклама,234395,Центральний офіс,37279703,Україна,за надання ефірного часу,26006580179,current,16000.00,"ТОВ ""Телерадіокомпанія ""Сімон""",21217525,юридична особа
РПЛ,"Харківська область, Харків, майдан Свободи, 7",51,2018-12-27,4285,Оплата ефірного часу на ТБ,Телереклама,234394,Центральний офіс,37279703,Україна,за надання ефірного часу,26006580179,current,16000.00,"ТОВ ""Телерадіокомпанія ""Сімон""",21217525,юридична особа
РПЛ,"Харківська область, Харків, вулиця Сергія Грицевця, 48Б, 38",48,2018-12-27,4284,Публікування матеріалів у мережі Інтернет,Реклама в інтернеті,234393,Центральний офіс,37279703,Україна,розміщення матеріалів на сайті,26006580179,current,10000.00,Сєріков Олександр Вікторович,3088908776,фізична особа
РПЛ,"Одеська область, Савранський район, Саврань",49,2018-12-27,4283,Публікування матеріалів у друкованих ЗМІ,Реклама в друкованих ЗМІ,234392,Центральний офіс,37279703,Україна,Розміщення оголошення,26006580179,current,3367.00,"КП ""РГ ""Сільські новини""",31630806,юридична особа
РПЛ,"Рівненська область, Рівне, вулиця Млинівська, 41, 66",52,2018-12-27,4282,Інша реклама (без класифікації),Реклама (без класифікації),234391,Центральний офіс,37279703,Україна,Інформаційні послуги,26006580179,current,2500.00,Ричко Вікторія Юріївна,3329615526,фізична особа
РПЛ,"Рівненська область, Рівне, вулиця Степана Бандери, 1",49,2018-12-27,4281,Публікування матеріалів у друкованих ЗМІ,Реклама в друкованих ЗМІ,234390,Центральний офіс,37279703,Україна,інформаційні послуги в газеті,26006580179,current,6000.00,Насенюк Д М,3351010679,фізична особа
РПЛ,"Рівненська область, Рівне, вулиця Степана Бандери, 1",49,2018-12-27,4280,Публікування матеріалів у друкованих ЗМІ,Реклама в друкованих ЗМІ,234389,Центральний офіс,37279703,Україна,інформаційні послуги в газеті,26006580179,current,4400.00,Насенюк Д М,3351010679,фізична особа
РПЛ,"Рівненська область, Рівне, вулиця Степана Бандери, 1",49,2018-12-27,4279,Публікування матеріалів у друкованих ЗМІ,Реклама в друкованих ЗМІ,234388,Центральний офіс,37279703,Україна,інформаційні послуги в газеті,26006580179,current,6000.00,Насенюк Д М,3351010679,фізична особа
РПЛ,"Рівненська область, Рівне, вулиця Вячеслава Чорновола, 14-16",48,2018-12-27,4278,Публікування матеріалів у мережі Інтернет,Реклама в інтернеті,234387,Центральний офіс,37279703,Україна,інформаційні послуги на сайті,26006580179,current,850.00,"ТОВ ""Видавнича група ""Ракурс""",36922025,юридична особа
РПЛ,"Рівненська область, Рівне, вулиця Вячеслава Чорновола, 14-16",49,2018-12-27,4277,Публікування матеріалів у друкованих ЗМІ,Реклама в друкованих ЗМІ,234386,Центральний офіс,37279703,Україна,інформаційні послуги в газеті,26006580179,current,3400.00,"ТОВ ""Видавнича група ""Ракурс""",36922025,юридична особа
РПЛ,"Рівненська область, Рівне, вулиця Соломії Крушельницької, 19",52,2018-12-27,4276,Інша реклама (без класифікації),Реклама (без класифікації),234385,Центральний офіс,37279703,Україна,Інформаційні послуги,26006580179,current,73000.00,Ваврик Марина Олександрівна,3086020149,фізична особа
РПЛ,"Рівненська область, Рівне, вулиця Міцкевича, 11",51,2018-12-27,4275,Оплата ефірного часу на ТБ,Телереклама,234384,Центральний офіс,37279703,Україна,Інформаційні послуги,26006580179,current,12000.00,"ТРК ""Сфера-ТВ2""",33910609,юридична особа
РПЛ,"Київ, вулиця Героїв Космосу, 4",53,2018-12-27,4272,Витрати на розміщення зовнішньої реклами,Зовнішня реклама,234383,Центральний офіс,37279703,Україна,розміщення інформаційних матеріалів на спеціальних конструкціях,26006580179,current,2000000.00,"ТОВ ""Медіа парнерство баінг""",38990495,юридична особа
РПЛ,"Вінницька область, Вінниця, вулиця Академіка Янгеля, 45",79,2018-12-27,4254,"Оренда будинків і приміщень та експлуатаційні витрати (прибирання, страхування орендованих будинків, охорона, сигналізація, ремонт, вивіз сміття, тощо)",Оренда нерухомості,234382,Центральний офіс,37279703,Україна,вода питна,26006580179,current,350.00,"ТОВ ""Еко-сфера""",32320552,юридична особа
РПЛ,"Київ, вулиця Миколи Лєскова, 4",62,2018-12-27,4271,Сплата ЄСВ,Податкові платежі,234381,Центральний офіс,37279703,Україна,Єдиний соціальний внесок нарахований на доходи громадян- заробітна плата за 2 пол. Грудня 2018р.,26006580179,current,153130.00,ДПІ у Печерському районі ГУ ДФС у м. Києві,39669867,юридична особа
РПЛ,"Київ, вулиця Академіка Туполєва, 28А",63,2018-12-27,4270,Податок на доходи,Податкові платежі,234380,Центральний офіс,37279703,Україна,Податок на доходи фізичних осіб - заробітна плата за 2 пол. грудня 2018р.,26006580179,current,59385.00,УДКСУ у Шевченківському районі м. Києва,37995466,юридична особа
РПЛ,"Київ, вулиця Академіка Туполєва, 28А",61,2018-12-27,4268,Військовий збір,Податкові платежі,234379,Центральний офіс,37279703,Україна,Військовий збір нарахований на доходи громадян-заробітну плату за 2 пол. Грудня 2018р.,26006580179,current,11212.00,УДКСУ у Шевченківському районі м. Києва,37995466,юридична особа
РПЛ,"Вінницька область, Вінниця, вулиця Академіка Янгеля, 45",79,2018-12-27,4255,"Оренда будинків і приміщень та експлуатаційні витрати (прибирання, страхування орендованих будинків, охорона, сигналізація, ремонт, вивіз сміття, тощо)",Оренда нерухомості,234378,Центральний офіс,37279703,Україна,вода питна,26006580179,current,650.00,"ТОВ ""Еко-сфера""",32320552,юридична особа
РПЛ,"Рівненська область, Зарічненський район, Зарічне, вулиця Центральна, 59",49,2018-12-27,4251,Публікування матеріалів у друкованих ЗМІ,Реклама в друкованих ЗМІ,234377,Центральний офіс,37279703,Україна,інформаційні послуги в газеті,26006580179,current,2700.00,"ПП ""Газета ""Полісся""",30563142,юридична особа
РПЛ,"Одеська область, Одеса",49,2018-12-27,4249,Публікування матеріалів у друкованих ЗМІ,Реклама в друкованих ЗМІ,234376,Центральний офіс,37279703,Україна,інформаційні послуги в газеті,26006580179,current,4608.00,"ТОВ ""Фірюза""",34801897,юридична особа
РПЛ,"Донецька область, Бахмут",49,2018-12-27,4248,Публікування матеріалів у друкованих ЗМІ,Реклама в друкованих ЗМІ,234375,Центральний офіс,37279703,Україна,інформаційні послуги в газеті,26006580179,current,1950.00,"ДП РГ ""Собитія""",31132825,юридична особа
РПЛ,"Рівненська область, Рівне, вулиця Степана Бандери, 1",49,2018-12-27,4247,Публікування матеріалів у друкованих ЗМІ,Реклама в друкованих ЗМІ,234374,Центральний офіс,37279703,Україна,інформаційні послуги в газеті,26006580179,current,4500.00,Насенюк Д М,3351010679,фізична особа
РПЛ,"Донецька область, Дружківка, вул. Восточна",49,2018-12-27,4246,Публікування матеріалів у друкованих ЗМІ,Реклама в друкованих ЗМІ,234373,Центральний офіс,37279703,Україна,інформаційні послуги в газеті,26006580179,current,2400.00,Фіалко Є Б,1924602714,фізична особа
РПЛ,"Хмельницька область, Хмельницький, вулиця Подільська, 22",49,2018-12-27,4245,Публікування матеріалів у друкованих ЗМІ,Реклама в друкованих ЗМІ,234372,Центральний офіс,37279703,Україна,Інформаційні послуги,26006580179,current,1500.00,"РГ ""Наддністрянська правда""",02475635,юридична особа
РПЛ,,66,2018-12-27,4274,Повернення внесків приватних внесків (донорам),Повернення приватних внесків (донорам),233614,Центральний офіс,37279703,Україна,ч.7ст 15 З У Про пол.партії,26006580179,current,1000.00,Коцкович Ігор Васильович,,фізична особа
РПЛ,"Одеська область, Одеса",66,2018-12-27,4273,Повернення внесків приватних внесків (донорам),Повернення приватних внесків (донорам),233613,Центральний офіс,37279703,Україна,ч.7ст 15 З У Про пол.партії,26006580179,current,99000.00,Хромов В Н,,фізична особа
РПЛ,"Київ, вулиця Миколи Лєскова, 9",70,2018-12-26,4188,Банківські послуги,Інші витрати,236726,Центральний офіс,37279703,Україна,Комісія банку за зарахування коштів на СКР працівників,26009580176,state,5.16,"АТ ""Райффайзен банк Аваль""",14305909,юридична особа
РПЛ,"Київ, вулиця Миколи Лєскова, 9",70,2018-12-26,4186,Банківські послуги,Інші витрати,236725,Центральний офіс,37279703,Україна,Комісія банку за зарахування коштів на СКР працівників,26009580176,state,55.22,"АТ ""Райффайзен банк Аваль""",14305909,юридична особа
РПЛ,"Київ, вулиця Миколи Лєскова, 4",62,2018-12-26,4184,Сплата ЄСВ,Податкові платежі,236724,Центральний офіс,37279703,Україна,Єдиний соціальний внесок нарахований на доходи громадян - відпускні за грудень,26009580176,state,7546.00,ДПІ у Печерському районі ГУ ДФС у м. Києві,39669867,юридична особа
РПЛ,"Київ, вулиця Академіка Туполєва, 28А",63,2018-12-26,4183,Податок на доходи,Податкові платежі,236723,Центральний офіс,37279703,Україна,Податок на доходи фізичних осіб- відпускні за грудень,26009580176,state,6174.00,УДКСУ у Шевченківському районі м. Києва,37995466,юридична особа
РПЛ,"Київ, вулиця Академіка Туполєва, 28А",61,2018-12-26,4182,Військовий збір,Податкові платежі,236722,Центральний офіс,37279703,Україна,Військовий збір нарахований на доходи громадян- відпускні за грудень,26009580176,state,515.00,УДКСУ у Шевченківському районі м. Києва,37995466,юридична особа
РПЛ,"Закарпатська область, Ужгород",84,2018-12-26,4185,"Заробітна плата, премії","Заробітна плата, лікарняні, вагітності, відрядження, компенсації",235730,Центральний офіс,37279703,Україна,Заробітна плата за 2 пол. грудня,26009580176,state,3228.72,Яворський Володимир Іванович,,фізична особа
РПЛ,"Закарпатська область, Ужгород",84,2018-12-26,4185,"Заробітна плата, премії","Заробітна плата, лікарняні, вагітності, відрядження, компенсації",235729,Центральний офіс,37279703,Україна,Заробітна плата за 2 пол. грудня,26009580176,state,4094.09,Цуперяк Світлана Степанівна,,фізична особа
РПЛ,"Закарпатська область, Ужгород",84,2018-12-26,4185,"Заробітна плата, премії","Заробітна плата, лікарняні, вагітності, відрядження, компенсації",235728,Центральний офіс,37279703,Україна,Заробітна плата за 2 пол. грудня,26009580176,state,5003.25,Попадюк Надія Іванівна,,фізична особа
РПЛ,"Закарпатська область, Ужгородський район, Дубрівка",84,2018-12-26,4185,"Заробітна плата, премії","Заробітна плата, лікарняні, вагітності, відрядження, компенсації",235727,Центральний офіс,37279703,Україна,Заробітна плата за 2 пол. грудня,26009580176,state,2651.80,Машкаринець Павло Іванович,,фізична особа
РПЛ,"Закарпатська область, Ужгородський район, Часлівці",84,2018-12-26,4185,"Заробітна плата, премії","Заробітна плата, лікарняні, вагітності, відрядження, компенсації",235726,Центральний офіс,37279703,Україна,Заробітна плата за 2 пол. грудня,26009580176,state,5613.60,Лютянський Сергій Іванович,,фізична особа
РПЛ,"Закарпатська область, Ужгород",84,2018-12-26,4185,"Заробітна плата, премії","Заробітна плата, лікарняні, вагітності, відрядження, компенсації",235725,Центральний офіс,37279703,Україна,Заробітна плата за 2 пол. грудня,26009580176,state,2785.97,Ігнатьо Оксана Миколаївна,,фізична особа
РПЛ,"Закарпатська область, Ужгород",84,2018-12-26,4185,"Заробітна плата, премії","Заробітна плата, лікарняні, вагітності, відрядження, компенсації",235724,Центральний офіс,37279703,Україна,Заробітна плата за 2 пол. грудня,26009580176,state,4232.43,Іваненко Олександр Володимирович,,фізична особа
РПЛ,"Київська обл., Обухівський район, Обухів",83,2018-12-26,4187,"Виплати працівникам (не зарплата): лікарняні, вагітності, відрядження, компенсації ","Заробітна плата, лікарняні, вагітності, відрядження, компенсації",235723,Центральний офіс,37279703,Україна,Аванс на відрядження,26009580176,state,628.32,Потеряйко Вадим Юрійович,,фізична особа
РПЛ,"Київ, вулиця Максима Берлинського, 6",83,2018-12-26,4187,"Виплати працівникам (не зарплата): лікарняні, вагітності, відрядження, компенсації ","Заробітна плата, лікарняні, вагітності, відрядження, компенсації",235722,Центральний офіс,37279703,Україна,Аванс на відрядження,26009580176,state,1081.08,Самсонова Аліна Вікторівна,2947606863,фізична особа
РПЛ,"Київська обл., Бориспіль",83,2018-12-26,4187,"Виплати працівникам (не зарплата): лікарняні, вагітності, відрядження, компенсації ","Заробітна плата, лікарняні, вагітності, відрядження, компенсації",235721,Центральний офіс,37279703,Україна,Аванс на відрядження,26009580176,state,868.11,Федун Юрій Степанович,,фізична особа
РПЛ,"Кіровоградська область, Долинський район, Долинська, вулиця Шевченка, 59",49,2018-12-26,4250,Публікування матеріалів у друкованих ЗМІ,Реклама в друкованих ЗМІ,234371,Центральний офіс,37279703,Україна,Інформаційні послуги,26006580179,current,2400.00,"КП РГ ""Долинські новини""",34753566,юридична особа
РПЛ,"Закарпатська область, Тячівський район, Тячів, вулиця Незалежності, 41",49,2018-12-26,4235,Публікування матеріалів у друкованих ЗМІ,Реклама в друкованих ЗМІ,234370,Центральний офіс,37279703,Україна,інформаційні послуги в газеті,26006580179,current,2700.00,"Редакція газети ""Дружба""",02472588,юридична особа
РПЛ,"Житомирська область, Олевський район, Олевськ, вул. Свято-МиколаЇвська, 4",49,2018-12-26,4244,Публікування матеріалів у друкованих ЗМІ,Реклама в друкованих ЗМІ,234369,Центральний офіс,37279703,Україна,Інформаційні послуги,26006580179,current,1949.15,"ТОВ ""Редакція газети ""Зорі над Убортю""",02472559,юридична особа
РПЛ,"Житомирська область, Новоград-Волинський, вулиця Переяславська, 55",49,2018-12-26,4243,Публікування матеріалів у друкованих ЗМІ,Реклама в друкованих ЗМІ,234368,Центральний офіс,37279703,Україна,Інформаційні послуги,26006580179,current,2292.00,Гембарська Лариса Володимирівна,2652310362,фізична особа
РПЛ,"Житомирська область, Новоград-Волинський, вулиця Героїв Майдану, 146",49,2018-12-26,4242,Публікування матеріалів у друкованих ЗМІ,Реклама в друкованих ЗМІ,234367,Центральний офіс,37279703,Україна,Інформаційні послуги,26006580179,current,1200.00,"КП РГ ""Чуднівська фортеця""",34868527,юридична особа
РПЛ,"Херсонська область, Новотроїцький район, Новотроїцьке, вулиця Соборна, 96",49,2018-12-26,4241,Публікування матеріалів у друкованих ЗМІ,Реклама в друкованих ЗМІ,234366,Центральний офіс,37279703,Україна,інформаційні послуги в газеті,26006580179,current,1820.00,"ПП ""МЕДІА-ЦЕНТР ""ТРУДОВА СЛАВА""",02475457,юридична особа
РПЛ,"Кіровоградська область, Олександрія, вулиця 6-го Грудня, 74",49,2018-12-26,4240,Публікування матеріалів у друкованих ЗМІ,Реклама в друкованих ЗМІ,234365,Центральний офіс,37279703,Україна,інформаційні послуги в газеті,26006580179,current,3600.00,"ПП ""Рекламно-комерційне агентство ""Україна""",20640730,юридична особа
РПЛ,"Сумська область, Суми, Покровська площа, 6",49,2018-12-26,4239,Публікування матеріалів у друкованих ЗМІ,Реклама в друкованих ЗМІ,234364,Центральний офіс,37279703,Україна,інформаційні послуги в газеті,26006580179,current,1440.00,"ТОВ ""Всі Суми Панорама-Медіа""",36898197,юридична особа
РПЛ,"Херсонська область, Херсон, вулиця Університетська, 31",49,2018-12-26,4238,Публікування матеріалів у друкованих ЗМІ,Реклама в друкованих ЗМІ,234363,Центральний офіс,37279703,Україна,інформаційні послуги в газеті,26006580179,current,9468.00,"ПП ""Компроміс-медіа""",24951639,юридична особа
РПЛ,"Запорізька область, Запоріжжя, проспект Соборний, 152",49,2018-12-26,4237,Публікування матеріалів у друкованих ЗМІ,Реклама в друкованих ЗМІ,234362,Центральний офіс,37279703,Україна,інформаційні послуги в газеті,26006580179,current,2100.00,"ТДВ ""Редакція газети ""Индустриальное Запорожье",13614672,юридична особа
РПЛ,"Запорізька область, Мелітополь, вулиця Михайла Грушевського, 21",49,2018-12-26,4236,Публікування матеріалів у друкованих ЗМІ,Реклама в друкованих ЗМІ,234361,Центральний офіс,37279703,Україна,інформаційні послуги в газеті,26006580179,current,1800.00,"ТОВ ""Редакція міськрайонної газети ""Новий день""",02472803,юридична особа
РПЛ,"Закарпатська область, Мукачево, вулиця Ярослава Мудрого, 5",49,2018-12-26,4234,Публікування матеріалів у друкованих ЗМІ,Реклама в друкованих ЗМІ,234360,Центральний офіс,37279703,Україна,інформаційні послуги в газеті,26006580179,current,700.00,Дворниченко Сергій Вікторович,2785704255,фізична особа
РПЛ,"Закарпатська область, Міжгірський район, Міжгір'я, вулиця Тараса Шевченка, 80",49,2018-12-26,4233,Публікування матеріалів у друкованих ЗМІ,Реклама в друкованих ЗМІ,234359,Центральний офіс,37279703,Україна,Інформаційні послуги,26006580179,current,2400.00,"РГ ""Верховина""",02472720,юридична особа
РПЛ,"Івано-Франківська область, Тлумацький район, Тлумач, вул. Кармелюка, 10",49,2018-12-26,4232,Публікування матеріалів у друкованих ЗМІ,Реклама в друкованих ЗМІ,234358,Центральний офіс,37279703,Україна,інформаційні послуги в газеті,26006580179,current,3600.00,"ТОВ ""Редакційно-видавничий комплекс ""Злагода""",02472950,юридична особа
РПЛ,"Одеська область, Ананьївський район, Ананьїв",49,2018-12-26,4231,Публікування матеріалів у друкованих ЗМІ,Реклама в друкованих ЗМІ,234357,Центральний офіс,37279703,Україна,інформаційні послуги в газеті,26006580179,current,3120.00,"КП ""Редакція газети ""Вісті Ананьївщини""",02474328,юридична особа
РПЛ,"Одеська область, Роздільнянський район, Роздільна, вулиця Леніна, 44",49,2018-12-26,4230,Публікування матеріалів у друкованих ЗМІ,Реклама в друкованих ЗМІ,234356,Центральний офіс,37279703,Україна,Інформаційні послуги,26006580179,current,1800.00,"ТОВ ""Роздільнянське видавництво ""ВПЕРЕД""",37530836,юридична особа
РПЛ,"Сумська область, Великописарівський район, Велика Писарівка",49,2018-12-26,4229,Публікування матеріалів у друкованих ЗМІ,Реклама в друкованих ЗМІ,234355,Центральний офіс,37279703,Україна,інформаційні послуги в газеті,26006580179,current,3900.00,"ТОВ ""Великописарівська газета ""Ворскла""",02475055,юридична особа
РПЛ,"Хмельницька область, Нетішин, проспект Незалежності, 31",49,2018-12-26,4228,Публікування матеріалів у друкованих ЗМІ,Реклама в друкованих ЗМІ,234354,Центральний офіс,37279703,Україна,інформаційні послуги в газеті,26006580179,current,3600.00,"РГ ""Нетішинський вісник""",21324617,юридична особа
РПЛ,"Сумська область, Охтирка, провулок Сковороди, 2",49,2018-12-26,4227,Публікування матеріалів у друкованих ЗМІ,Реклама в друкованих ЗМІ,234353,Центральний офіс,37279703,Україна,інформаційні послуги в газеті,26006580179,current,3264.00,Легеньковська Людмила Петрівна,2140210761,фізична особа
РПЛ,"Сумська область, Суми, вулиця Герасима Кондратьєва, 27",49,2018-12-26,4226,Публікування матеріалів у друкованих ЗМІ,Реклама в друкованих ЗМІ,234352,Центральний офіс,37279703,Україна,Інформаційні послуги,26006580179,current,4800.00,"КП РГ ""Сумщина""",02475078,юридична особа
РПЛ,"Хмельницька область, Полонський район, Полонне, вулиця Лесі Українки, 103",49,2018-12-26,4225,Публікування матеріалів у друкованих ЗМІ,Реклама в друкованих ЗМІ,234351,Центральний офіс,37279703,Україна,інформаційні послуги в газеті,26006580179,current,3150.00,"РГ ""Новий шлях""",02475747,юридична особа
РПЛ,"Івано-Франківська область, Івано-Франківськ, вулиця Січових стрільців, 2",49,2018-12-26,4224,Публікування матеріалів у друкованих ЗМІ,Реклама в друкованих ЗМІ,234350,Центральний офіс,37279703,Україна,Інформаційні послуги,26006580179,current,4320.00,"РГ ""Галичина’",13644704,юридична особа
РПЛ,"Івано-Франківська область, Рожнятівський район, Рожнятів, площа Єдності, 31",49,2018-12-26,4223,Публікування матеріалів у друкованих ЗМІ,Реклама в друкованих ЗМІ,234349,Центральний офіс,37279703,Україна,Інформаційні послуги,26006580179,current,2860.00,"РГ ""Новини Підгірʼя""",02472973,юридична особа
РПЛ,"Чернігівська область, Прилуки, вулиця Незалежності, 78, 55",49,2018-12-26,4222,Публікування матеріалів у друкованих ЗМІ,Реклама в друкованих ЗМІ,234348,Центральний офіс,37279703,Україна,інформаційні послуги в газеті,26006580179,current,1800.00,"ПП ""Авеста""",30447160,юридична особа
РПЛ,"Полтавська область, Лохвицький район, Лохвиця",49,2018-12-26,4221,Публікування матеріалів у друкованих ЗМІ,Реклама в друкованих ЗМІ,234347,Центральний офіс,37279703,Україна,Інформаційні послуги,26006580179,current,2100.00,"РГ ""Зоря""",02474662,юридична особа
РПЛ,"Чернігівська область, Менський район, Мена",49,2018-12-26,4220,Публікування матеріалів у друкованих ЗМІ,Реклама в друкованих ЗМІ,234346,Центральний офіс,37279703,Україна,Інформаційні послуги,26006580179,current,3000.00,"ТОВ ""Медіа-центр ""Наше слово""",02476095,юридична особа
РПЛ,"Чернігівська область, Чернігів",49,2018-12-26,4219,Публікування матеріалів у друкованих ЗМІ,Реклама в друкованих ЗМІ,234345,Центральний офіс,37279703,Україна,Інформаційні послуги,26006580179,current,9101.40,"ТОВ ""РГ ""Чернігівський вісник""",31188511,юридична особа
РПЛ,"Івано-Франківська область, Коломия, вулиця Левка Дольницького",49,2018-12-26,4218,Публікування матеріалів у друкованих ЗМІ,Реклама в друкованих ЗМІ,234344,Центральний офіс,37279703,Україна,Інформаційні послуги,26006580179,current,3000.00,Базюк Олександр Маркіянович,2169622580,фізична особа
РПЛ,"Полтавська область, Полтава, вулиця Пушкіна, 115",49,2018-12-26,4217,Публікування матеріалів у друкованих ЗМІ,Реклама в друкованих ЗМІ,234343,Центральний офіс,37279703,Україна,інформаційні послуги в газеті,26006580179,current,2970.00,"ПП ""Зоря Полтавщини""",02474794,юридична особа
РПЛ,"Луганська область, Білокуракинський район, Білокуракине",49,2018-12-26,4216,Публікування матеріалів у друкованих ЗМІ,Реклама в друкованих ЗМІ,234342,Центральний офіс,37279703,Україна,інформаційні послуги в газеті,26006580179,current,500.50,"ПП ""Редакція газети ""Життя Білокуракинщини""",02476860,юридична особа
РПЛ,Луганська область,49,2018-12-26,4215,Публікування матеріалів у друкованих ЗМІ,Реклама в друкованих ЗМІ,234341,Центральний офіс,37279703,Україна,інформаційні послуги в газеті,26006580179,current,2511.60,"ПП ""Редакція газети ""Вісті Біловодщини""",02476847,юридична особа
РПЛ,"Луганська область, Старобільський район, Старобільськ, вулиця Миру, 22",49,2018-12-26,4214,Публікування матеріалів у друкованих ЗМІ,Реклама в друкованих ЗМІ,234340,Центральний офіс,37279703,Україна,Інформаційні послуги,26006580179,current,2550.00,"ТОВ ""Рекламно-інформаційне агентство ""К&К""",24184140,юридична особа
РПЛ,"Київська обл., Переяслав, Шкільна вулиця, 45",49,2018-12-26,4213,Публікування матеріалів у друкованих ЗМІ,Реклама в друкованих ЗМІ,234339,Центральний офіс,37279703,Україна,інформаційні послуги в газеті,26006580179,current,3600.00,"ТОВ ""Медіа-центр ""Переяславщина""",02473412,юридична особа
РПЛ,"Житомирська область, Коростишівський район, Коростишів, Соборна площа, 18",49,2018-12-26,4212,Публікування матеріалів у друкованих ЗМІ,Реклама в друкованих ЗМІ,234338,Центральний офіс,37279703,Україна,Інформаційні послуги,26006580179,current,1800.00,"ТОВ ""Редакція ""Коростишівської газети""",13574613,юридична особа
РПЛ,"Полтавська область, Миргородський район, Слобідка",49,2018-12-26,4211,Публікування матеріалів у друкованих ЗМІ,Реклама в друкованих ЗМІ,234337,Центральний офіс,37279703,Україна,інформаційні послуги в газеті,26006580179,current,2400.00,"КП ""Інформаційний центр "" Миргородщина""",36475336,юридична особа
РПЛ,"Київська обл., Рокитнянський район, Рокитне, Леніна вулиця, 1",49,2018-12-26,4210,Публікування матеріалів у друкованих ЗМІ,Реклама в друкованих ЗМІ,234336,Центральний офіс,37279703,Україна,Інформаційні послуги,26006580179,current,3000.00,"РГ ""Вісник Рокитнянщини""",02473323,юридична особа
РПЛ,"Миколаївська область, Миколаїв, вулиця Нікольська, 46",49,2018-12-26,4209,Публікування матеріалів у друкованих ЗМІ,Реклама в друкованих ЗМІ,234335,Центральний офіс,37279703,Україна,Інформаційні послуги,26006580179,current,1296.00,"Редакція газети ""Рідне Прибужжя""",20877099,юридична особа
РПЛ,"Миколаївська область, Миколаїв, вулиця Нікольська, 46",49,2018-12-26,4208,Публікування матеріалів у друкованих ЗМІ,Реклама в друкованих ЗМІ,234334,Центральний офіс,37279703,Україна,Інформаційні послуги,26006580179,current,3456.00,"Редакція газети ""Рідне Прибужжя""",20877099,юридична особа
РПЛ,"Чернівецька область, Кельменецький район, Кельменці, вулиця Довженка, 7",49,2018-12-26,4207,Публікування матеріалів у друкованих ЗМІ,Реклама в друкованих ЗМІ,234333,Центральний офіс,37279703,Україна,Інформаційні послуги,26006580179,current,1020.00,"ПП ""Газета ""Рідне слово""",02476356,юридична особа
РПЛ,"Київ, бульвар Вацлава Гавела, 4",49,2018-12-26,4206,Публікування матеріалів у друкованих ЗМІ,Реклама в друкованих ЗМІ,234332,Центральний офіс,37279703,Україна,інформаційні послуги в газеті,26006580179,current,6825.00,"ТОВ ""Рекламно-інформаційна агенція ""КРАЇНА""",41693663,юридична особа
РПЛ,"Сумська область, Суми, вулиця Кооперативна, 19",49,2018-12-26,4205,Публікування матеріалів у друкованих ЗМІ,Реклама в друкованих ЗМІ,234331,Центральний офіс,37279703,Україна,Розміщення інформаційних матеріалів в газеті,26006580179,current,4600.00,"Сумська громадсько-ділова газета ""Ваш шанс""",21120470,юридична особа
РПЛ,"Сумська область, Суми, вулиця Кооперативна, 19",48,2018-12-26,4204,Публікування матеріалів у мережі Інтернет,Реклама в інтернеті,234330,Центральний офіс,37279703,Україна,розміщення інформаційних матеріалів на сайті,26006580179,current,2000.00,"Сумська громадсько-ділова газета ""Ваш шанс""",21120470,юридична особа
РПЛ,"Житомирська область, Житомир, вулиця Чуднівська, 1, 74",48,2018-12-26,4203,Публікування матеріалів у мережі Інтернет,Реклама в інтернеті,234329,Центральний офіс,37279703,Україна,розміщення інформаційних матеріалів на сайті,26006580179,current,3900.00,"ТОВ ""РА ""Житомир інфо""",33732896,юридична особа
РПЛ,"Вінницька область, Козятин, вулиця Героїв Майдану, 33, 2",52,2018-12-26,4202,Інша реклама (без класифікації),Реклама (без класифікації),234328,Центральний офіс,37279703,Україна,Інформаційні послуги,26006580179,current,5819.00,"ПП ""Медіа Ресурс""",39005226,юридична особа
РПЛ,"Житомирська область, Житомир, вулиця Старогончарна, 7, 4",48,2018-12-26,4201,Публікування матеріалів у мережі Інтернет,Реклама в інтернеті,234327,Центральний офіс,37279703,Україна,розміщення інформаційних матеріалів на сайті,26006580179,current,1200.00,Харчук Сергій Валерійович,3307617930,юридична особа
РПЛ,"Житомирська область, Житомир, майдан С.П. Корольова, 4/2",49,2018-12-26,4200,Публікування матеріалів у друкованих ЗМІ,Реклама в друкованих ЗМІ,234326,Центральний офіс,37279703,Україна,Інформаційні послуги,26006580179,current,5400.00,"ТОВ ""Редакція газети ""Житомирщина""",02472499,юридична особа
РПЛ,"Житомирська область, Житомир, вулиця Велика Бердичівська, 72",48,2018-12-26,4199,Публікування матеріалів у мережі Інтернет,Реклама в інтернеті,234325,Центральний офіс,37279703,Україна,розміщення інформаційних матеріалів на сайті,26006580179,current,1200.00,"ТОВ ""Медіа-проспект""",38500053,юридична особа
РПЛ,"Сумська область, Суми, вулиця Харківська, 4",51,2018-12-26,4198,Оплата ефірного часу на ТБ,Телереклама,234324,Центральний офіс,37279703,Україна,Інформаційні послуги в ефірі,26006580179,current,20000.00,"ТОВ ""Телерадіокомпапія ""ВІДІКОН""",21107661,юридична особа
РПЛ,"Сумська область, Суми, вулиця Харківська, 4",51,2018-12-26,4197,Оплата ефірного часу на ТБ,Телереклама,234323,Центральний офіс,37279703,Україна,Інформаційні послуги в ефірі,26006580179,current,20000.00,"ТОВ ""Телерадіокомпапія ""ВІДІКОН""",21107661,юридична особа
РПЛ,"Сумська область, Суми, вулиця Харківська, 4",51,2018-12-26,9196,Оплата ефірного часу на ТБ,Телереклама,234322,Центральний офіс,37279703,Україна,Інформаційні послуги в ефірі,26006580179,current,60000.00,"ТОВ ""Телерадіокомпанія ""Академ TV""",32185841,юридична особа
РПЛ,"Сумська область, Суми, вулиця Петропавлівська, 76",49,2018-12-26,4195,Публікування матеріалів у друкованих ЗМІ,Реклама в друкованих ЗМІ,234321,Центральний офіс,37279703,Україна,інформаційні послуги в газеті,26006580179,current,6730.00,"ТОВ ""Торговий Дім ""Петро і Павел""",21111962,юридична особа
РПЛ,"Сумська, Липоводолинський район, Липова Долина, вулиця Горького, 1",49,2018-12-26,4194,Публікування матеріалів у друкованих ЗМІ,Реклама в друкованих ЗМІ,234320,Центральний офіс,37279703,Україна,інформаційні послуги в газеті,26006580179,current,4800.00,"РГ ""Наш край""",02475014,юридична особа
РПЛ,"Сумська область, Суми, вулиця Петропавлівська, 70",48,2018-12-26,4193,Публікування матеріалів у мережі Інтернет,Реклама в інтернеті,234319,Центральний офіс,37279703,Україна,розміщення інформаційних матеріалів на сайті,26006580179,current,5820.00,Даніленко І П,2160316253,фізична особа
РПЛ,"Херсонська область, Нова Каховка, проспект Днiпровський, 23",49,2018-12-26,4192,Публікування матеріалів у друкованих ЗМІ,Реклама в друкованих ЗМІ,234318,Центральний офіс,37279703,Україна,інформаційні послуги в газеті,26006580179,current,3600.00,"ТОВ ""Редакція газети ""Нова Каховка""",22752321,юридична особа
РПЛ,"Кіровоградська область, Кропивницький",49,2018-12-26,4191,Публікування матеріалів у друкованих ЗМІ,Реклама в друкованих ЗМІ,234317,Центральний офіс,37279703,Україна,інформаційні послуги в газеті,26006580179,current,9424.80,"КП РГ ""Діалог""",20652667,юридична особа
РПЛ,"Закарпатська область, Ужгород, площа Корятовича, 2",49,2018-12-26,4190,Публікування матеріалів у друкованих ЗМІ,Реклама в друкованих ЗМІ,234316,Центральний офіс,37279703,Україна,"інформаційні послуги в газеті ""НЕДІЛЯ""",26006580179,current,5100.00,Тимошенко Володимир Миколайович,1906922990,фізична особа
РПЛ,"Закарпатська область, Ужгород, вулиця Легоцького, 50",49,2018-12-26,4189,Публікування матеріалів у друкованих ЗМІ,Реклама в друкованих ЗМІ,234315,Центральний офіс,37279703,Україна,інформаційні послуги в газеті,26006580179,current,1650.00,Кольяков Ратмір Олександрович,2846316999,фізична особа
РПЛ,"Донецька область, Маріуполь, вулиця Харлампіївська, 17",51,2018-12-26,4178,Оплата ефірного часу на ТБ,Телереклама,234314,Центральний офіс,37279703,Україна,послуги зі створення аудіовізуальних творів,26006580179,current,20000.00,"ТОВ ""Телерадіокомпанія ""Україна""",05744121,юридична особа
РПЛ,"Київ, вулиця Юрія Іллєнка, 12",52,2018-12-26,4177,Інша реклама (без класифікації),Реклама (без класифікації),234313,Центральний офіс,37279703,Україна,розміщення рекламних матеріалів,26006580179,current,180390.00,"ПП ""АРТКОМ""",32711215,юридична особа
РПЛ,"Дніпропетровська область, Дніпро́, вулиця Воскресенська, 14",51,2018-12-26,4176,Оплата ефірного часу на ТБ,Телереклама,234312,Центральний офіс,37279703,Україна,виробництво та розміщення відеоматеріалу,26006580179,current,219500.00,"ПрАТ ""Телевізійна служба Дніпропетровська""",20264089,юридична особа
РПЛ,,66,2018-12-26,4174,Повернення внесків приватних внесків (донорам),Повернення приватних внесків (донорам),233624,Центральний офіс,37279703,Україна,ч.7ст 15 З У Про пол.партії,26006580179,current,247700.00,"ТОВ ""ВІЛЛА-ФАРМ""",39793954,юридична особа
РПЛ,,66,2018-12-26,4181,Повернення внесків приватних внесків (донорам),Повернення приватних внесків (донорам),233612,Центральний офіс,37279703,Україна,ч.7ст 15 З У Про пол.партії,26006580179,current,49500.00,Сладкевич Юлія Вʼячеславівна,,фізична особа
РПЛ,,66,2018-12-26,4180,Повернення внесків приватних внесків (донорам),Повернення приватних внесків (донорам),233611,Центральний офіс,37279703,Україна,ч.7ст 15 З У Про пол.партії,26006580179,current,49504.95,Бабич Юрій Віталійович,,фізична особа
РПЛ,,66,2018-12-26,4179,Повернення внесків приватних внесків (донорам),Повернення приватних внесків (донорам),233610,Центральний офіс,37279703,Україна,ч.7ст 15 З У Про пол.партії,26006580179,current,49500.00,Сушіцька Яна Сергіївна,,фізична особа
РПЛ,"Чернігівська область, Ніжин",66,2018-12-26,4175,Повернення внесків приватних внесків (донорам),Повернення приватних внесків (донорам),233609,Центральний офіс,37279703,Україна,ч.7ст 15 З У Про пол.партії,26006580179,current,100000.00,Гаврилей Геннадій Віталійович,,фізична особа
РПЛ,,66,2018-12-26,4173,Повернення внесків приватних внесків (донорам),Повернення приватних внесків (донорам),233608,Центральний офіс,37279703,Україна,ч.7ст 15 З У Про пол.партії,26006580179,current,49000.00,Рибалко Сергій Вікторович,,фізична особа
РПЛ,,66,2018-12-26,4172,Повернення внесків приватних внесків (донорам),Повернення приватних внесків (донорам),233607,Центральний офіс,37279703,Україна,ч.7ст 15 З У Про пол.партії,26006580179,current,49000.00,Рибалко Сергій Вікторович,,фізична особа
РПЛ,,66,2018-12-26,4171,Повернення внесків приватних внесків (донорам),Повернення приватних внесків (донорам),233606,Центральний офіс,37279703,Україна,ч.7ст 15 З У Про пол.партії,26006580179,current,49000.00,Рибалко Сергій Вікторович,,фізична особа
РПЛ,,66,2018-12-26,4170,Повернення внесків приватних внесків (донорам),Повернення приватних внесків (донорам),233605,Центральний офіс,37279703,Україна,ч.7ст 15 З У Про пол.партії,26006580179,current,49000.00,Рибалко Сергій Вікторович,,фізична особа
РПЛ,,66,2018-12-26,4169,Повернення внесків приватних внесків (донорам),Повернення приватних внесків (донорам),233604,Центральний офіс,37279703,Україна,ч.7ст 15 З У Про пол.партії,26006580179,current,49000.00,Рибалко Сергій Вікторович,,фізична особа
РПЛ,,66,2018-12-26,4168,Повернення внесків приватних внесків (донорам),Повернення приватних внесків (донорам),233603,Центральний офіс,37279703,Україна,ч.7ст 15 З У Про пол.партії,26006580179,current,49000.00,Рибалко Сергій Вікторович,,фізична особа
РПЛ,,66,2018-12-26,4167,Повернення внесків приватних внесків (донорам),Повернення приватних внесків (донорам),233602,Центральний офіс,37279703,Україна,ч.7ст 15 З У Про пол.партії,26006580179,current,49000.00,Рибалко Сергій Вікторович,,фізична особа
РПЛ,,66,2018-12-26,4166,Повернення внесків приватних внесків (донорам),Повернення приватних внесків (донорам),233601,Центральний офіс,37279703,Україна,ч.7ст 15 З У Про пол.партії,26006580179,current,49000.00,Рибалко Сергій Вікторович,,фізична особа
РПЛ,,66,2018-12-26,4165,Повернення внесків приватних внесків (донорам),Повернення приватних внесків (донорам),233600,Центральний офіс,37279703,Україна,ч.7ст 15 З У Про пол.партії,26006580179,current,49000.00,Рибалко Сергій Вікторович,,фізична особа
РПЛ,,66,2018-12-26,4164,Повернення внесків приватних внесків (донорам),Повернення приватних внесків (донорам),233599,Центральний офіс,37279703,Україна,ч.7ст 15 З У Про пол.партії,26006580179,current,49000.00,Рибалко Сергій Вікторович,,фізична особа
РПЛ,"Київ, вулиця Миколи Лєскова, 9",70,2018-12-22,4148,Банківські послуги,Інші витрати,236721,Центральний офіс,37279703,Україна,Комісія банку за зарахування коштів на СКР працівників,26009580176,state,4.91,"АТ ""Райффайзен банк Аваль""",14305909,юридична особа
РПЛ,"Київ, вулиця Миколи Лєскова, 4",62,2018-12-22,4146,Сплата ЄСВ,Податкові платежі,236720,Центральний офіс,37279703,Україна,Єдиний соціальний внесок нарахований на доходи громадян - відпускні за грудень,26009580176,state,671.00,ДПІ у Печерському районі ГУ ДФС у м. Києві,39669867,юридична особа
РПЛ,"Київ, вулиця Академіка Туполєва, 28А",61,2018-12-22,4145,Військовий збір,Податкові платежі,236719,Центральний офіс,37279703,Україна,Військовий збір нарахований на доходи громадян- відпускні за грудень,26009580176,state,46.00,УДКСУ у Шевченківському районі м. Києва,37995466,юридична особа
РПЛ,"Київ, вулиця Академіка Туполєва, 28А",63,2018-12-22,4144,Податок на доходи,Податкові платежі,236718,Центральний офіс,37279703,Україна,Податок на доходи фізичних осіб- відпускні за грудень,26009580176,state,550.00,УДКСУ у Шевченківському районі м. Києва,37995466,юридична особа
РПЛ,"Полтавська область, Полтава",83,2018-12-22,4147,"Виплати працівникам (не зарплата): лікарняні, вагітності, відрядження, компенсації ","Заробітна плата, лікарняні, вагітності, відрядження, компенсації",235720,Центральний офіс,37279703,Україна,Відпускні за грудень,26009580176,state,1682.59,Матяш Руслан Анатолійович,,фізична особа
РПЛ,"Донецька область, Маріуполь",83,2018-12-22,4147,"Виплати працівникам (не зарплата): лікарняні, вагітності, відрядження, компенсації ","Заробітна плата, лікарняні, вагітності, відрядження, компенсації",235719,Центральний офіс,37279703,Україна,Відпускні за грудень,26009580176,state,771.87,Коробських Сергій Олександрович,,фізична особа
РПЛ,"Київ, вулиця Ярославська, 4Б, 37",53,2018-12-22,4143,Витрати на розміщення зовнішньої реклами,Зовнішня реклама,234311,Центральний офіс,37279703,Україна,розміщення зовнішньої реклами,26006580179,current,1397541.00,"ТОВ ""РК ІДЕЯ ОУШЕН""",38536933,юридична особа
РПЛ,"Київ, вулиця Героїв Космосу, 4",53,2018-12-22,4142,Витрати на розміщення зовнішньої реклами,Зовнішня реклама,234310,Центральний офіс,37279703,Україна,розміщення інформаційних матеріалів на спеціальних конструкціях,26006580179,current,1364356.36,"ТОВ ""Медіа парнерство баінг""",38990495,юридична особа
РПЛ,"Львівська область, Бродівський район, Броди, вулиця Юридика, 17",49,2018-12-22,4137,Публікування матеріалів у друкованих ЗМІ,Реклама в друкованих ЗМІ,234309,Центральний офіс,37279703,Україна,Інформаційні послуги,26006580179,current,800.00,"КП Районна газета ""Голос відродження""",02474038,юридична особа
РПЛ,"Одеська область, Одеса, площадь Бориса Деревянко, 1",49,2018-12-22,4141,Публікування матеріалів у друкованих ЗМІ,Реклама в друкованих ЗМІ,234308,Центральний офіс,37279703,Україна,Інформаційні послуги,26006580179,current,2100.00,"ТОВ РГ ""Вечірня Одеса""",13912323,юридична особа
РПЛ,"Київ, вулиця Героїв Космосу, 4",51,2018-12-22,4140,Оплата ефірного часу на ТБ,Телереклама,234307,Центральний офіс,37279703,Україна,розміщення інформаційних матеріалів на телебаченні,26006580179,current,1731772.04,"ТОВ ""Медіа парнерство баінг""",38990495,юридична особа
РПЛ,"Луганська область, Рубіжне",49,2018-12-22,4139,Публікування матеріалів у друкованих ЗМІ,Реклама в друкованих ЗМІ,234306,Центральний офіс,37279703,Україна,інформаційні послуги в № 49,26006580179,current,1600.00,"КП ""Редакція газети ""Рубіжанські новини""",02476770,юридична особа
РПЛ,"Львівська область, Буський район, Буськ",49,2018-12-22,4138,Публікування матеріалів у друкованих ЗМІ,Реклама в друкованих ЗМІ,234305,Центральний офіс,37279703,Україна,"інформаційні послуги в газеті ""Воля народу""",26006580179,current,2142.00,"ПП ""Медіа-центр ""Над Бугом""",02474021,юридична особа
РПЛ,"Львівська область, Львів, вулиця Наливайка, 5",49,2018-12-22,4136,Публікування матеріалів у друкованих ЗМІ,Реклама в друкованих ЗМІ,234304,Центральний офіс,37279703,Україна,"інформаційні послуги в газеті ""Львівська Пошта""",26006580179,current,4200.00,"ТОВ ""Професійна ліга""",22350812,юридична особа
РПЛ,"Миколаївська область, Миколаїв, вулиця Адміральська, 20",49,2018-12-22,4135,Публікування матеріалів у друкованих ЗМІ,Реклама в друкованих ЗМІ,234303,Центральний офіс,37279703,Україна,Надання інформаційних послуг,26006580179,current,5712.00,"РГ ""Вечерний Николаев""",20882700,юридична особа
РПЛ,"Миколаївська область, Миколаїв, вулиця Адміральська, 20",49,2018-12-22,4134,Публікування матеріалів у друкованих ЗМІ,Реклама в друкованих ЗМІ,234302,Центральний офіс,37279703,Україна,Надання інформаційних послуг,26006580179,current,4284.00,"РГ ""Вечерний Николаев""",20882700,юридична особа
РПЛ,"Луганська область, Білокуракинський район, Білокуракине",49,2018-12-22,4133,Публікування матеріалів у друкованих ЗМІ,Реклама в друкованих ЗМІ,234301,Центральний офіс,37279703,Україна,Публікація статті в газеті,26006580179,current,569.71,"ПП ""Редакція газети ""Життя Білокуракинщини""",02476860,юридична особа
РПЛ,"Одеська область, Іванівський район, Іванівка",49,2018-12-22,4132,Публікування матеріалів у друкованих ЗМІ,Реклама в друкованих ЗМІ,234300,Центральний офіс,37279703,Україна,розміщення матеріалу в газеті №48,26006580179,current,600.00,"Редакція газети ""СТЕПОВІ ЗОРІ""",02474386,юридична особа
РПЛ,"Дніпропетровська область, Дніпро́, вулиця Шевченка, 7",49,2018-12-22,4131,Публікування матеріалів у друкованих ЗМІ,Реклама в друкованих ЗМІ,234299,Центральний офіс,37279703,Україна,Публікація статті в газеті,26006580179,current,1600.00,"Редакція газети ""Присамарська Нива""",20295109,юридична особа
РПЛ,"Волинська область, Старовижівський район, Стара Вижівка",49,2018-12-22,4130,Публікування матеріалів у друкованих ЗМІ,Реклама в друкованих ЗМІ,234298,Центральний офіс,37279703,Україна,Інформаційні послуги,26006580179,current,700.00,Редакція газети 'Сільські новини',02471755,юридична особа
РПЛ,"Одеська область, Ізмаїл, проспект Суворова, 62",49,2018-12-22,4129,Публікування матеріалів у друкованих ЗМІ,Реклама в друкованих ЗМІ,234297,Центральний офіс,37279703,Україна,Публікація інформаційного матеріалу,26006580179,current,528.00,"КП ""Редакція газети ""Придунайські вісті""",02474392,юридична особа
РПЛ,"Одеська область, Любашівський район, Любашівка, вулиця Софіївська, 114",49,2018-12-22,4128,Публікування матеріалів у друкованих ЗМІ,Реклама в друкованих ЗМІ,234296,Центральний офіс,37279703,Україна,Публікація статті в газеті,26006580179,current,400.00,"Редакція газети ""Хлібороб""",02474433,юридична особа
РПЛ,"Луганська область, Сватівський район, Сватове, пров. Заводський",49,2018-12-22,4127,Публікування матеріалів у друкованих ЗМІ,Реклама в друкованих ЗМІ,234295,Центральний офіс,37279703,Україна,надання інформаційних послуг в №49,26006580179,current,1344.00,"ТОВ ""МЕДІА ""НОВИНИ СВАТІВЩИНИ""",02476830,юридична особа
РПЛ,"Луганська область, Новопсковський район, Новопсков, вулиця Партизанська",49,2018-12-22,4126,Публікування матеріалів у друкованих ЗМІ,Реклама в друкованих ЗМІ,234294,Центральний офіс,37279703,Україна,надання інформаційних послуг в №49,26006580179,current,600.00,"РГ ""Перемога""",02476853,юридична особа
РПЛ,"Волинська область, Нововолинськ, проспект Дружби, 27",49,2018-12-22,4125,Публікування матеріалів у друкованих ЗМІ,Реклама в друкованих ЗМІ,234293,Центральний офіс,37279703,Україна,Інформаційні послуги,26006580179,current,500.00,"РГ ""Наше місто""",20128222,юридична особа
РПЛ,"Київська обл., Бориспіль, вулиця Привокзальна, 76",49,2018-12-22,4124,Публікування матеріалів у друкованих ЗМІ,Реклама в друкованих ЗМІ,234292,Центральний офіс,37279703,Україна,Інформаційні послуги,26006580179,current,3900.00,"ТОВ РГ ""Вісті. Інформація. Реклама""",36077172,юридична особа
РПЛ,"Чернівецька область, Чернівці, вулиця Руська, 20",49,2018-12-22,4123,Публікування матеріалів у друкованих ЗМІ,Реклама в друкованих ЗМІ,234291,Центральний офіс,37279703,Україна,Інформаційні послуги,26006580179,current,800.00,"КП РГ ""Час""",30749802,юридична особа
РПЛ,"Миколаївська область, Єланецький район, Єланець, вулиця Соборна, 122",49,2018-12-22,4122,Публікування матеріалів у друкованих ЗМІ,Реклама в друкованих ЗМІ,234290,Центральний офіс,37279703,Україна,Інформаційні послуги,26006580179,current,1050.00,"РЕДАКЦІЯ ""ЄЛАНЕЦЬКИЙ ВІСНИК""",02474133,юридична особа
РПЛ,"Івано-Франківська область, Коломия, вулиця Романа Шухевича, 5",49,2018-12-22,4121,Публікування матеріалів у друкованих ЗМІ,Реклама в друкованих ЗМІ,234289,Центральний офіс,37279703,Україна,Інформаційні послуги в газеті №42,26006580179,current,2000.00,"ТОВ ""Редакція газети ""Вільний голос""",02472967,юридична особа
РПЛ,,66,2018-12-22,4163,Повернення внесків приватних внесків (донорам),Повернення приватних внесків (донорам),233598,Центральний офіс,37279703,Україна,ч.7ст 15 З У Про пол.партії,26006580179,current,100.00,Данильчук Тарас Миколайович,,фізична особа
РПЛ,,66,2018-12-22,4162,Повернення внесків приватних внесків (донорам),Повернення приватних внесків (донорам),233597,Центральний офіс,37279703,Україна,ч.7ст 15 З У Про пол.партії,26006580179,current,25000.00,Чайковський Дмитро Миколайович,,фізична особа
РПЛ,,66,2018-12-22,4161,Повернення внесків приватних внесків (донорам),Повернення приватних внесків (донорам),233596,Центральний офіс,37279703,Україна,ч.7ст 15 З У Про пол.партії,26006580179,current,25000.00,Асауленко Валерій Миколайович,,фізична особа
РПЛ,,66,2018-12-22,4160,Повернення внесків приватних внесків (донорам),Повернення приватних внесків (донорам),233595,Центральний офіс,37279703,Україна,ч.7ст 15 З У Про пол.партії,26006580179,current,25000.00,Асауленко Ірина Сергіївна,,фізична особа
РПЛ,,66,2018-12-22,4159,Повернення внесків приватних внесків (донорам),Повернення приватних внесків (донорам),233594,Центральний офіс,37279703,Україна,ч.7ст 15 З У Про пол.партії,26006580179,current,25000.00,Ващенок Інна Валеріївна,,фізична особа
РПЛ,,66,2018-12-22,4158,Повернення внесків приватних внесків (донорам),Повернення приватних внесків (донорам),233593,Центральний офіс,37279703,Україна,ч.7ст 15 З У Про пол.партії,26006580179,current,25000.00,Ващенок Борис Миколайович,,фізична особа
РПЛ,,66,2018-12-22,4157,Повернення внесків приватних внесків (донорам),Повернення приватних внесків (донорам),233592,Центральний офіс,37279703,Україна,ч.7ст 15 З У Про пол.партії,26006580179,current,50000.00,Галандаров Мурахтан Ідріс огли,,фізична особа
РПЛ,"Тернопільська область, Козівський район, Козова",66,2018-12-22,4156,Повернення внесків приватних внесків (донорам),Повернення приватних внесків (донорам),233591,Центральний офіс,37279703,Україна,ч.7ст 15 З У Про пол.партії,26006580179,current,200.00,Адамів Тетяна Іванівна,,фізична особа
РПЛ,,66,2018-12-22,4155,Повернення внесків приватних внесків (донорам),Повернення приватних внесків (донорам),233590,Центральний офіс,37279703,Україна,ч.7ст 15 З У Про пол.партії,26006580179,current,99000.00,Морозов Андрій Андрійович,,фізична особа
РПЛ,,66,2018-12-22,4154,Повернення внесків приватних внесків (донорам),Повернення приватних внесків (донорам),233589,Центральний офіс,37279703,Україна,ч.7ст 15 З У Про пол.партії,26006580179,current,99000.00,Сагайдак Олексій Миколайович,,фізична особа
РПЛ,,66,2018-12-22,4153,Повернення внесків приватних внесків (донорам),Повернення приватних внесків (донорам),233588,Центральний офіс,37279703,Україна,ч.7ст 15 З У Про пол.партії,26006580179,current,100.00,Гладчук Ірина Михайлівна,,фізична особа
РПЛ,,66,2018-12-22,4152,Повернення внесків приватних внесків (донорам),Повернення приватних внесків (донорам),233587,Центральний офіс,37279703,Україна,ч.7ст 15 З У Про пол.партії,26006580179,current,100.00,Віцинська Христина Олегівна,,фізична особа
РПЛ,,66,2018-12-22,4151,Повернення внесків приватних внесків (донорам),Повернення приватних внесків (донорам),233586,Центральний офіс,37279703,Україна,ч.7ст 15 З У Про пол.партії,26006580179,current,400.00,Пекарський Ярослав Анатолійович,,фізична особа
РПЛ,,66,2018-12-22,4150,Повернення внесків приватних внесків (донорам),Повернення приватних внесків (донорам),233585,Центральний офіс,37279703,Україна,ч.7ст 15 З У Про пол.партії,26006580179,current,500.00,Качубей Сергій Анатолійович,,фізична особа
РПЛ,,66,2018-12-22,4149,Повернення внесків приватних внесків (донорам),Повернення приватних внесків (донорам),233584,Центральний офіс,37279703,Україна,ч.7ст 15 З У Про пол.партії,26006580179,current,500.00,Ліповський Микола Васильович,,фізична особа
РПЛ,"Київ, вулиця Миколи Лєскова, 9",70,2018-12-21,4112,Банківські послуги,Інші витрати,236717,Центральний офіс,37279703,Україна,Комісія банку за зарахування коштів на СКР працівників,26009580176,state,3.19,"АТ ""Райффайзен банк Аваль""",14305909,юридична особа
РПЛ,"Київ, вулиця Миколи Лєскова, 4",62,2018-12-21,4110,Сплата ЄСВ,Податкові платежі,236716,Центральний офіс,37279703,Україна,Єдиний соціальний внесок нарахований на доходи громадян - відпускні за грудень,26009580176,state,436.00,ДПІ у Печерському районі ГУ ДФС у м. Києві,39669867,юридична особа
РПЛ,"Київ, вулиця Академіка Туполєва, 28А",61,2018-12-21,4109,Військовий збір,Податкові платежі,236715,Центральний офіс,37279703,Україна,Військовий збір нарахований на доходи громадян- відпускні за грудень,26009580176,state,30.00,УДКСУ у Шевченківському районі м. Києва,37995466,юридична особа
РПЛ,"Київ, вулиця Академіка Туполєва, 28А",63,2018-12-21,4108,Податок на доходи,Податкові платежі,236714,Центральний офіс,37279703,Україна,Податок на доходи фізичних осіб- відпускні за грудень,26009580176,state,357.00,УДКСУ у Шевченківському районі м. Києва,37995466,юридична особа
РПЛ,"Полтавська область, Полтава",83,2018-12-21,4111,"Виплати працівникам (не зарплата): лікарняні, вагітності, відрядження, компенсації ","Заробітна плата, лікарняні, вагітності, відрядження, компенсації",235718,Центральний офіс,37279703,Україна,Відпускні за грудень,26009580176,state,1593.74,Денисюк Юлія Демʼянівна,,фізична особа
РПЛ,"Київ, вулиця Героїв Космосу, 4",54,2018-12-21,4118,Виготовлення відеозаписів,Реклама (без класифікації),234288,Центральний офіс,37279703,Україна,виробництво об'єкта авторського права- аудіовізуальних творів,26006580179,current,263000.00,"ТОВ ""ТЕЛЕ ПРО""",37499304,юридична особа
РПЛ,"Житомирська область, Житомир, вулиця Чуднівська, 106",49,2018-12-21,4117,Публікування матеріалів у друкованих ЗМІ,Реклама в друкованих ЗМІ,234287,Центральний офіс,37279703,Україна,Розміщення інформаційних послуг в газеті,26006580179,current,7500.00,"ТОВ ""Видавництво та телерадіокомпанія ""Редакція газети ""Эхо""",13568663,юридична особа
РПЛ,"Житомирська область, Житомир, проспект Миру, 11",51,2018-12-21,4116,Оплата ефірного часу на ТБ,Телереклама,234286,Центральний офіс,37279703,Україна,Трансляція сюжету,26006580179,current,12156.00,"ТОВ ""ТРК ""СОЮЗ-ТВ""",25304801,юридична особа
РПЛ,"Київ, вулиця Ярославська, 4Б, 37",53,2018-12-21,4115,Витрати на розміщення зовнішньої реклами,Зовнішня реклама,234285,Центральний офіс,37279703,Україна,Друк постерів,26006580179,current,77832.00,"ТОВ ""РК ІДЕЯ ОУШЕН""",38536933,юридична особа
РПЛ,"Київ, вулиця Ярославська, 4Б, 37",53,2018-12-21,4114,Витрати на розміщення зовнішньої реклами,Зовнішня реклама,234284,Центральний офіс,37279703,Україна,розміщення зовнішньої реклами,26006580179,current,1422168.00,"ТОВ ""РК ІДЕЯ ОУШЕН""",38536933,юридична особа
РПЛ,"Київ, вулиця Героїв Космосу, 4",53,2018-12-21,4113,Витрати на розміщення зовнішньої реклами,Зовнішня реклама,234283,Центральний офіс,37279703,Україна,розміщення інформаційних матеріалів на спеціальних конструкціях,26006580179,current,1500000.00,"ТОВ ""Медіа парнерство баінг""",38990495,юридична особа
РПЛ,"Київ, вулиця Героїв Космосу, 4",51,2018-12-21,4105,Оплата ефірного часу на ТБ,Телереклама,234282,Центральний офіс,37279703,Україна,розміщення інформаційних матеріалів на телебаченні,26006580179,current,1000000.00,"ТОВ ""Медіа парнерство баінг""",38990495,юридична особа
РПЛ,"Луганська область, Лисичанськ",49,2018-12-21,4104,Публікування матеріалів у друкованих ЗМІ,Реклама в друкованих ЗМІ,234281,Центральний офіс,37279703,Україна,Інформаційні послуги,26006580179,current,2400.00,"ПП ""Редакція регіональної суспільно-політичної газети ""Новий путь""",02476793,юридична особа
РПЛ,"Дніпропетровська область, Дніпро́, вулиця Сергія Подолинського, 31",49,2018-12-21,4103,Публікування матеріалів у друкованих ЗМІ,Реклама в друкованих ЗМІ,234280,Центральний офіс,37279703,Україна,Інформаційні послуги,26006580179,current,9000.00,"ДФ ТОВ ""ВД Український Медіа Холдінг""",34839737,юридична особа
РПЛ,"Чернігівська область, Борзнянський район, Борзна, вул. Ганни Барвінок, 13",49,2018-12-21,4102,Публікування матеріалів у друкованих ЗМІ,Реклама в друкованих ЗМІ,234279,Центральний офіс,37279703,Україна,інформаційні послуги в газеті,26006580179,current,2160.00,"ТОВ ""Борзна-інфо""",02476118,юридична особа
РПЛ,"Харківська область, Ізюм, вулиця Соборна, 6",49,2018-12-21,4101,Публікування матеріалів у друкованих ЗМІ,Реклама в друкованих ЗМІ,234278,Центральний офіс,37279703,Україна,інформаційні послуги в газеті,26006580179,current,3800.00,"ТОВ ""Обрії 1919""",02476600,юридична особа
РПЛ,"Вінницька область, Вінниця, вулиця Соборна, 59",51,2018-12-21,4100,Оплата ефірного часу на ТБ,Телереклама,234277,Центральний офіс,37279703,Україна,трансляція інформаційних матеріалів,26006580179,current,179800.00,"Міське КП ""Інформаційно-телевізійне агентство ""Віта""",13341352,юридична особа
РПЛ,"Вінницька область, Вінниця, вулиця Соборна, 59",51,2018-12-21,4099,Оплата ефірного часу на ТБ,Телереклама,234276,Центральний офіс,37279703,Україна,трансляція інформаційних роликів,26006580179,current,75600.00,"Міське КП ""Інформаційно-телевізійне агентство ""Віта""",13341352,юридична особа
РПЛ,,66,2018-12-21,4120,Повернення внесків приватних внесків (донорам),Повернення приватних внесків (донорам),233583,Центральний офіс,37279703,Україна,ч.7ст 15 З У Про пол.партії,26006580179,current,99000.00,Риковцев Олексій Ігорович,,фізична особа
РПЛ,"Черкаська область, Жашківський район, Жашків",66,2018-12-21,4119,Повернення внесків приватних внесків (донорам),Повернення приватних внесків (донорам),233582,Центральний офіс,37279703,Україна,ч.7ст 15 З У Про пол.партії,26006580179,current,500.00,Присяжнюк Наталія Петрівна,,фізична особа
РПЛ,,66,2018-12-21,4107,Повернення внесків приватних внесків (донорам),Повернення приватних внесків (донорам),233581,Центральний офіс,37279703,Україна,ч.7ст 15 З У Про пол.партії,26006580179,current,1000.00,Криворучко Ігор Олегович,,фізична особа
РПЛ,,66,2018-12-21,4106,Повернення внесків приватних внесків (донорам),Повернення приватних внесків (донорам),233580,Центральний офіс,37279703,Україна,ч.7ст 15 З У Про пол.партії,26006580179,current,1000.00,Машир Олександр Іванович,,фізична особа
РПЛ,,66,2018-12-21,4098,Повернення внесків приватних внесків (донорам),Повернення приватних внесків (донорам),233579,Центральний офіс,37279703,Україна,ч.7ст 15 З У Про пол.партії,26006580179,current,500.00,Галушка Олександр Степанович,,фізична особа
РПЛ,,66,2018-12-21,4097,Повернення внесків приватних внесків (донорам),Повернення приватних внесків (донорам),233578,Центральний офіс,37279703,Україна,ч.7ст 15 З У Про пол.партії,26006580179,current,1000.00,Швець Юрій Борисович,,фізична особа
РПЛ,,66,2018-12-21,4096,Повернення внесків приватних внесків (донорам),Повернення приватних внесків (донорам),233577,Центральний офіс,37279703,Україна,ч.7ст 15 З У Про пол.партії,26006580179,current,1000.00,Волкотруб Назарій Васильович,,фізична особа
РПЛ,,66,2018-12-21,4095,Повернення внесків приватних внесків (донорам),Повернення приватних внесків (донорам),233576,Центральний офіс,37279703,Україна,ч.7ст 15 З У Про пол.партії,26006580179,current,14000.00,Воронкіна Тетяна Андріївна,,фізична особа
РПЛ,,66,2018-12-21,4094,Повернення внесків приватних внесків (донорам),Повернення приватних внесків (донорам),233575,Центральний офіс,37279703,Україна,ч.7ст 15 З У Про пол.партії,26006580179,current,14000.00,Масловський Володимир Михайлович,,фізична особа
РПЛ,,66,2018-12-21,4093,Повернення внесків приватних внесків (донорам),Повернення приватних внесків (донорам),233574,Центральний офіс,37279703,Україна,ч.7ст 15 З У Про пол.партії,26006580179,current,90.00,Пахольчук Олег Леонтійович,,фізична особа
РПЛ,,66,2018-12-21,4092,Повернення внесків приватних внесків (донорам),Повернення приватних внесків (донорам),233573,Центральний офіс,37279703,Україна,ч.7ст 15 З У Про пол.партії,26006580179,current,3000.00,Кавунник Дмитро Вікторович,,фізична особа
РПЛ,,66,2018-12-21,4091,Повернення внесків приватних внесків (донорам),Повернення приватних внесків (донорам),233572,Центральний офіс,37279703,Україна,ч.7ст 15 З У Про пол.партії,26006580179,current,49500.00,Шевчук Марія Олександрівна,,фізична особа
РПЛ,,66,2018-12-21,4090,Повернення внесків приватних внесків (донорам),Повернення приватних внесків (донорам),233571,Центральний офіс,37279703,Україна,ч.7ст 15 З У Про пол.партії,26006580179,current,49500.00,Сушіцька Яна Сергіївна,,фізична особа
РПЛ,,66,2018-12-21,4089,Повернення внесків приватних внесків (донорам),Повернення приватних внесків (донорам),233570,Центральний офіс,37279703,Україна,ч.7ст 15 З У Про пол.партії,26006580179,current,49504.95,Лісовол Юлія Анатоліївна,,фізична особа
РПЛ,,66,2018-12-21,4088,Повернення внесків приватних внесків (донорам),Повернення приватних внесків (донорам),233569,Центральний офіс,37279703,Україна,ч.7ст 15 З У Про пол.партії,26006580179,current,49504.95,Бабич Юрій Віталійович,,фізична особа
РПЛ,,66,2018-12-21,4087,Повернення внесків приватних внесків (донорам),Повернення приватних внесків (донорам),233568,Центральний офіс,37279703,Україна,ч.7ст 15 З У Про пол.партії,26006580179,current,49500.00,Сладкевич Юлія Вʼячеславівна,,фізична особа
РПЛ,,66,2018-12-21,4086,Повернення внесків приватних внесків (донорам),Повернення приватних внесків (донорам),233567,Центральний офіс,37279703,Україна,ч.7ст 15 З У Про пол.партії,26006580179,current,49500.00,Соколік Наталія Олегівна,,фізична особа
РПЛ,,66,2018-12-21,4085,Повернення внесків приватних внесків (донорам),Повернення приватних внесків (донорам),233566,Центральний офіс,37279703,Україна,ч.7ст 15 З У Про пол.партії,26006580179,current,5000.00,Арсенюк Петро Іванович,,фізична особа
РПЛ,"Черкаська область, Жашківський район, Жашків",66,2018-12-21,4084,Повернення внесків приватних внесків (донорам),Повернення приватних внесків (донорам),233565,Центральний офіс,37279703,Україна,ч.7ст 15 З У Про пол.партії,26006580179,current,500.00,Сович Ігор Петрович,,фізична особа
РПЛ,"Черкаська область, Жашківський район, Жашків",66,2018-12-21,4083,Повернення внесків приватних внесків (донорам),Повернення приватних внесків (донорам),233564,Центральний офіс,37279703,Україна,ч.7ст 15 З У Про пол.партії,26006580179,current,500.00,Толстов Андрій Васильович,,фізична особа
РПЛ,,66,2018-12-21,4082,Повернення внесків приватних внесків (донорам),Повернення приватних внесків (донорам),233563,Центральний офіс,37279703,Україна,ч.7ст 15 З У Про пол.партії,26006580179,current,500.00,Хвиль Юрій Андрійович,,фізична особа
РПЛ,,66,2018-12-21,4081,Повернення внесків приватних внесків (донорам),Повернення приватних внесків (донорам),233562,Центральний офіс,37279703,Україна,ч.7ст 15 З У Про пол.партії,26006580179,current,1000.00,Кременюк Михайло Володимирович,,фізична особа
РПЛ,,66,2018-12-21,4080,Повернення внесків приватних внесків (донорам),Повернення приватних внесків (донорам),233561,Центральний офіс,37279703,Україна,ч.7ст 15 З У Про пол.партії,26006580179,current,99010.00,Риковцев Олексій Ігорович,,фізична особа
РПЛ,,66,2018-12-21,4079,Повернення внесків приватних внесків (донорам),Повернення приватних внесків (донорам),233560,Центральний офіс,37279703,Україна,ч.7ст 15 З У Про пол.партії,26006580179,current,99010.00,Цховребашвілі В В,,фізична особа
РПЛ,,66,2018-12-21,4078,Повернення внесків приватних внесків (донорам),Повернення приватних внесків (донорам),233559,Центральний офіс,37279703,Україна,ч.7ст 15 З У Про пол.партії,26006580179,current,49500.00,Сагайдак Костянтин Олександрович,,фізична особа
РПЛ,"Дніпропетровська область, Кривий Ріг",66,2018-12-21,4077,Повернення внесків приватних внесків (донорам),Повернення приватних внесків (донорам),233558,Центральний офіс,37279703,Україна,ч.7ст 15 З У Про пол.партії,26006580179,current,49500.00,Сагайдак Наталія Вікторівна,,фізична особа
РПЛ,"Чернівецька область, Заставнівський район, Заставна, вулиця Чорновола, 4",49,2018-12-20,4070,Публікування матеріалів у друкованих ЗМІ,Реклама в друкованих ЗМІ,234275,Центральний офіс,37279703,Україна,інформаційні послуги в газеті,26006580179,current,2400.00,"ПП ""Заставнівська обласна редакція газети ""Голос краю""",02476347,юридична особа
РПЛ,"Чернівецька область, Заставнівський район, Заставна, вулиця Чорновола, 4",49,2018-12-20,4069,Публікування матеріалів у друкованих ЗМІ,Реклама в друкованих ЗМІ,234274,Центральний офіс,37279703,Україна,інформаційні послуги в газеті,26006580179,current,600.00,"ПП ""Заставнівська обласна редакція газети ""Голос краю""",02476347,юридична особа
РПЛ,"Сумська область, Суми, вулиця Герасима Кондратьєва, 27",49,2018-12-20,4068,Публікування матеріалів у друкованих ЗМІ,Реклама в друкованих ЗМІ,234273,Центральний офіс,37279703,Україна,Інформаційні послуги,26006580179,current,6400.00,"КП РГ ""Сумщина""",02475078,юридична особа
РПЛ,"Кіровоградська область, Гайворонський район, Гайворон",49,2018-12-20,4067,Публікування матеріалів у друкованих ЗМІ,Реклама в друкованих ЗМІ,234272,Центральний офіс,37279703,Україна,інформаційні послуги в газеті,26006580179,current,1650.00,"КП РГ ""Гайворонський курʼєр""",35879587,юридична особа
РПЛ,"Полтавська область, Семенівський район, Очеретувате, вул. Центральна",49,2018-12-20,4066,Публікування матеріалів у друкованих ЗМІ,Реклама в друкованих ЗМІ,234271,Центральний офіс,37279703,Україна,Публікація статті в газеті,26006580179,current,1500.00,"ТОВ ""ТРК-Інформ""",31432679,юридична особа
РПЛ,"Черкаська, Кам'янський район, Кам'янка, вулиця Пушкіна, 56",49,2018-12-20,4065,Публікування матеріалів у друкованих ЗМІ,Реклама в друкованих ЗМІ,234270,Центральний офіс,37279703,Україна,інформаційні послуги в газеті,26006580179,current,500.00,"ТОВ ""Редакція газети ""Трудова слава""",02475954,юридична особа
РПЛ,"Черкаська область, Черкаси, вулиця В'ячеслава Чорновола, 157",49,2018-12-20,4064,Публікування матеріалів у друкованих ЗМІ,Реклама в друкованих ЗМІ,234269,Центральний офіс,37279703,Україна,Інформаційні послуги,26006580179,current,1200.00,"ТОВ ""Редакція газети ""Сільські обрії""",02475842,юридична особа
РПЛ,"Черкаська область, Черкаси, бульвар Шевченка, 266/1",49,2018-12-20,4063,Публікування матеріалів у друкованих ЗМІ,Реклама в друкованих ЗМІ,234268,Центральний офіс,37279703,Україна,інформаційні послуги в газеті,26006580179,current,1920.00,Лимаренко Тетяна Олександрівна,2793810640,фізична особа
РПЛ,"Черкаська область, Черкаси, вулиця Хрещатик, 251",49,2018-12-20,4062,Публікування матеріалів у друкованих ЗМІ,Реклама в друкованих ЗМІ,234267,Центральний офіс,37279703,Україна,Інформаційні послуги,26006580179,current,840.00,"РГ ""Черкаський край""",02475813,юридична особа
РПЛ,"Черкаська область, Звенигородський район, Звенигородка, проспект Шевченка, 63",49,2018-12-20,4061,Публікування матеріалів у друкованих ЗМІ,Реклама в друкованих ЗМІ,234266,Центральний офіс,37279703,Україна,Інформаційні послуги,26006580179,current,2100.00,"РГ""Шевченківський край""",02475931,юридична особа
РПЛ,"Черкаська область, Чорнобаївський район, Чорнобай, вулиця Леніна, 211",49,2018-12-20,4060,Публікування матеріалів у друкованих ЗМІ,Реклама в друкованих ЗМІ,234265,Центральний офіс,37279703,Україна,Інформаційні послуги,26006580179,current,660.00,"Чорнобаївське КПП (Газета ""Наше слово"")",02469340,юридична особа
РПЛ,"Сумська область, Шостка, вулиця Садовий бульвар, 11",49,2018-12-20,4059,Публікування матеріалів у друкованих ЗМІ,Реклама в друкованих ЗМІ,234264,Центральний офіс,37279703,Україна,інформаційні послуги в газеті,26006580179,current,224.00,"ТОВ ""Редакція газети ""Полісся""",02475115,юридична особа
РПЛ,"Дніпропетровська область, Дніпро́, вулиця Сергія Подолинського, 31",49,2018-12-20,4058,Публікування матеріалів у друкованих ЗМІ,Реклама в друкованих ЗМІ,234263,Центральний офіс,37279703,Україна,Інформаційні послуги,26006580179,current,2769.23,"ДФ ТОВ ""ВД Український Медіа Холдінг""",34839737,юридична особа
РПЛ,"Житомирська область, Олевський район, Олевськ, вулиця Київська, 7",49,2018-12-20,4057,Публікування матеріалів у друкованих ЗМІ,Реклама в друкованих ЗМІ,234262,Центральний офіс,37279703,Україна,інформаційні послуги в газеті,26006580179,current,1200.00,"ГО ""ОЛЕВЩИНА-НАШ ДІМ""",36490447,юридична особа
РПЛ,"Чернівецька область, Вижницький район, Вижниця, вулиця Романа Шухевича, 14",49,2018-12-20,4056,Публікування матеріалів у друкованих ЗМІ,Реклама в друкованих ЗМІ,234261,Центральний офіс,37279703,Україна,інформаційні послуги в газеті,26006580179,current,700.00,"РГ ""Вижницькі обрії""",02476327,юридична особа
РПЛ,"Київська обл., Києво-Святошинський район, Чайки, вулиця Валерія Лобановського, 28, 30",49,2018-12-20,4055,Публікування матеріалів у друкованих ЗМІ,Реклама в друкованих ЗМІ,234260,Центральний офіс,37279703,Україна,інформаційні послуги в газеті,26006580179,current,3500.00,Журило Софія Станіславівна,3193320825,фізична особа
РПЛ,"Київ, вулиця Зодчих, 70, 66",72,2018-12-20,4054,"Придбання, ремонт офісної техніки та програмного забезпечення (Бухгалтерські програми, Ліга.закон, домени)",Придбання офісної техніки та програмного забезпечення,234259,Центральний офіс,37279703,Україна,надання в строкове платне користування віртуальної інфраструктури за грудень 2018р,26006580179,current,5819.18,Мельник Володимир Миколайович,2915401614,фізична особа
РПЛ,"Київ, вулиця Антоновича, 172",81,2018-12-20,4053,Аудит,"Гонорари, в тому числі за надані консультаційні послуги",234258,Центральний офіс,37279703,Україна,авансовий платіж 50% за надання послуг з аудиту,26006580179,current,120000.00,"ТОВ ""Крестон Джі Сі Джі Аудит""",31586485,юридична особа
РПЛ,"Львівська область, Львів, вулиця Володимира Винниченка, 8",49,2018-12-20,4052,Публікування матеріалів у друкованих ЗМІ,Реклама в друкованих ЗМІ,234257,Центральний офіс,37279703,Україна,Інформаційні послуги,26006580179,current,5880.00,"КП ""Редакція газети ЛМР ""Ратуша""",30918343,юридична особа
РПЛ,"Донецька область, Маріуполь, проспект Миру, 19",49,2018-12-20,4051,Публікування матеріалів у друкованих ЗМІ,Реклама в друкованих ЗМІ,234256,Центральний офіс,37279703,Україна,Інформаційні послуги,26006580179,current,3332.00,"ПрАТ ""Газета ""Приазовський робочий""",02472200,юридична особа
РПЛ,"Донецька область, Костянтинівка, вулиця О. Островського",49,2018-12-20,4050,Публікування матеріалів у друкованих ЗМІ,Реклама в друкованих ЗМІ,234255,Центральний офіс,37279703,Україна,Розміщення статті,26006580179,current,1636.80,"ПП ""ДЗМІ ""Газета ""Провінція""",23597348,юридична особа
РПЛ,"Донецька область, Бахмут",49,2018-12-20,4049,Публікування матеріалів у друкованих ЗМІ,Реклама в друкованих ЗМІ,234254,Центральний офіс,37279703,Україна,інформаційні послуги в газеті,26006580179,current,2730.00,"ДП РГ ""Собитія""",31132825,юридична особа
РПЛ,"Волинська область, Локачинський район, Локачі, вулиця Івана Франка, 6",49,2018-12-20,4048,Публікування матеріалів у друкованих ЗМІ,Реклама в друкованих ЗМІ,234253,Центральний офіс,37279703,Україна,Інформаційні послуги,26006580179,current,2500.00,"РГ ""Сільське життя""",02471689,юридична особа
РПЛ,"Волинська область, Володимир-Волинський, вулиця Драгоманова, 18",49,2018-12-20,4047,Публікування матеріалів у друкованих ЗМІ,Реклама в друкованих ЗМІ,234252,Центральний офіс,37279703,Україна,Інформаційні послуги,26006580179,current,2490.00,"РГ ""Слово правди""",02471761,юридична особа
РПЛ,"Волинська область, Нововолинськ, проспект Дружби, 27",49,2018-12-20,4046,Публікування матеріалів у друкованих ЗМІ,Реклама в друкованих ЗМІ,234251,Центральний офіс,37279703,Україна,Інформаційні послуги,26006580179,current,1600.00,"РГ ""Наше місто""",20128222,юридична особа
РПЛ,"Львівська область, Сокальський район, Сокаль",49,2018-12-20,4045,Публікування матеріалів у друкованих ЗМІ,Реклама в друкованих ЗМІ,234250,Центральний офіс,37279703,Україна,Інформаційні послуги,26006580179,current,2520.00,"КП РГ ""Голос з-над Бугу""",02473872,юридична особа
РПЛ,"Львівська область, Городоцький район, Городок, вулиця В'ячеслава Чорновола, 2",49,2018-12-20,4044,Публікування матеріалів у друкованих ЗМІ,Реклама в друкованих ЗМІ,234249,Центральний офіс,37279703,Україна,Публікація статті в газеті,26006580179,current,3200.00,"КП Редакція часопису Городоччини ""Народна думка""",02473955,юридична особа
РПЛ,"Волинська область, Луцьк, вулиця Лесі Українки, 9",49,2018-12-20,4043,Публікування матеріалів у друкованих ЗМІ,Реклама в друкованих ЗМІ,234248,Центральний офіс,37279703,Україна,Інформаційні послуги,26006580179,current,3200.00,"ТОВ ""Редакція обласної громадсько-політичної газети ""Волинська газета""",21733250,юридична особа
РПЛ,"Донецька область, Новогродівка, вулиця Донецька",49,2018-12-20,4042,Публікування матеріалів у друкованих ЗМІ,Реклама в друкованих ЗМІ,234247,Центральний офіс,37279703,Україна,Інформаційні послуги,26006580179,current,1059.57,Салаєв Олександр Володимирович,2338814458,фізична особа
РПЛ,"Львівська область, Червоноград, вулиця Будівельна, 22",49,2018-12-20,4041,Публікування матеріалів у друкованих ЗМІ,Реклама в друкованих ЗМІ,234246,Центральний офіс,37279703,Україна,інформаційні послуги в газеті,26006580179,current,1628.00,"КП РГ ""Новини Прибужжя""",02474015,юридична особа
РПЛ,"Дніпропетровська область, Синельниківський район",49,2018-12-20,4040,Публікування матеріалів у друкованих ЗМІ,Реклама в друкованих ЗМІ,234245,Центральний офіс,37279703,Україна,інформаційні послуги в газеті,26006580179,current,4125.00,"ПП ""Укрінтермедіагруп""",41887559,юридична особа
РПЛ,"Дніпропетровська область, Васильківський район, Васильківка",49,2018-12-20,4039,Публікування матеріалів у друкованих ЗМІ,Реклама в друкованих ЗМІ,234244,Центральний офіс,37279703,Україна,оголошення у газеті,26006580179,current,2400.00,"ТОВ ""Васильківський вісник""",02472007,юридична особа
РПЛ,"Запорізька область, Бердянськ, Мелітопольське шосе, 20",49,2018-12-20,4038,Публікування матеріалів у друкованих ЗМІ,Реклама в друкованих ЗМІ,234243,Центральний офіс,37279703,Україна,інформаційні послуги в газеті,26006580179,current,8500.00,"ТОВ ""Інформаційна група ""ПРО100""",32994164,юридична особа
РПЛ,"Київ, вулиця Героїв Космосу, 4",51,2018-12-20,4037,Оплата ефірного часу на ТБ,Телереклама,234242,Центральний офіс,37279703,Україна,розміщення інформаційних матеріалів на телебаченні,26006580179,current,1000000.00,"ТОВ ""Медіа парнерство баінг""",38990495,юридична особа
РПЛ,,66,2018-12-20,4076,Повернення внесків приватних внесків (донорам),Повернення приватних внесків (донорам),233557,Центральний офіс,37279703,Україна,ч.7ст 15 З У Про пол.партії,26006580179,current,49504.95,Бабич Юрій Віталійович,,фізична особа
РПЛ,,66,2018-12-20,4075,Повернення внесків приватних внесків (донорам),Повернення приватних внесків (донорам),233556,Центральний офіс,37279703,Україна,ч.7ст 15 З У Про пол.партії,26006580179,current,99000.00,Лісовол Юлія Анатоліївна,,фізична особа
РПЛ,"Черкаська область, Сміла",66,2018-12-20,4074,Повернення внесків приватних внесків (донорам),Повернення приватних внесків (донорам),233555,Центральний офіс,37279703,Україна,ч.7ст 15 З У Про пол.партії,26006580179,current,500.00,Кредзинський Ю А,,фізична особа
РПЛ,"Черкаська область, Сміла",66,2018-12-20,4074,Повернення внесків приватних внесків (донорам),Повернення приватних внесків (донорам),233554,Центральний офіс,37279703,Україна,ч.7ст 15 З У Про пол.партії,26006580179,current,500.00,Поліщук Б А,,фізична особа
РПЛ,,66,2018-12-20,4073,Повернення внесків приватних внесків (донорам),Повернення приватних внесків (донорам),233553,Центральний офіс,37279703,Україна,ч.7ст 15 З У Про пол.партії,26006580179,current,49700.00,Тюткало Олена Миколаївна,,фізична особа
РПЛ,,66,2018-12-20,4072,Повернення внесків приватних внесків (донорам),Повернення приватних внесків (донорам),233552,Центральний офіс,37279703,Україна,ч.7ст 15 З У Про пол.партії,26006580179,current,1000.00,Веселкова Галина Петрівна,,фізична особа
РПЛ,,66,2018-12-20,4071,Повернення внесків приватних внесків (донорам),Повернення приватних внесків (донорам),233551,Центральний офіс,37279703,Україна,ч.7ст 15 З У Про пол.партії,26006580179,current,49500.00,Долгов Валентина Володимирівна,,фізична особа
РПЛ,"Київ, вулиця Миколи Лєскова, 9",70,2018-12-19,4036,Банківські послуги,Інші витрати,236713,Центральний офіс,37279703,Україна,Комісія банку за зарахування коштів на СКР працівників,26009580176,state,11.16,"АТ ""Райффайзен банк Аваль""",14305909,юридична особа
РПЛ,"Київ, вулиця Академіка Туполєва, 28А",63,2018-12-19,4034,Податок на доходи,Податкові платежі,236712,Центральний офіс,37279703,Україна,Податок на доходи фізичних осіб- відпускні за грудень,26009580176,state,1248.00,УДКСУ у Шевченківському районі м. Києва,37995466,юридична особа
РПЛ,"Київ, вулиця Миколи Лєскова, 4",62,2018-12-19,4033,Сплата ЄСВ,Податкові платежі,236711,Центральний офіс,37279703,Україна,Єдиний соціальний внесок нарахований на доходи громадян - відпускні за грудень,26009580176,state,1526.00,ДПІ у Печерському районі ГУ ДФС у м. Києві,39669867,юридична особа
РПЛ,"Київ, вулиця Академіка Туполєва, 28А",61,2018-12-19,4032,Військовий збір,Податкові платежі,236710,Центральний офіс,37279703,Україна,Військовий збір нарахований на доходи громадян- відпускні за грудень,26009580176,state,104.00,УДКСУ у Шевченківському районі м. Києва,37995466,юридична особа
РПЛ,"Київ, вулиця Миколи Лєскова, 9",70,2018-12-19,4031,Банківські послуги,Інші витрати,236709,Центральний офіс,37279703,Україна,Комісія банку за зарахування коштів на СКР працівників,26009580176,state,5.32,"АТ ""Райффайзен банк Аваль""",14305909,юридична особа
РПЛ,"Київ, вулиця Миколи Лєскова, 9",70,2018-12-19,4029,Банківські послуги,Інші витрати,236708,Центральний офіс,37279703,Україна,Комісія банку за зарахування коштів на СКР працівників,26009580176,state,5.64,"АТ ""Райффайзен банк Аваль""",14305909,юридична особа
РПЛ,"Київ, вулиця Миколи Лєскова, 9",70,2018-12-19,4017,Банківські послуги,Інші витрати,236707,Центральний офіс,37279703,Україна,Комісія банку за зарахування коштів на СКР працівників,26009580176,state,1212.77,"АТ ""Райффайзен банк Аваль""",14305909,юридична особа
РПЛ,"Київ, вулиця Миколи Лєскова, 4",62,2018-12-19,4015,Сплата ЄСВ,Податкові платежі,236706,Центральний офіс,37279703,Україна,Єдиний соціальний внесок нарахований на зар.пл. за 1 пол. грудня,26009580176,state,167293.00,ДПІ у Печерському районі ГУ ДФС у м. Києві,39669867,юридична особа
РПЛ,"Київ, вулиця Академіка Туполєва, 28А",61,2018-12-19,4014,Військовий збір,Податкові платежі,236705,Центральний офіс,37279703,Україна,Військовий збір нарахований на доходи громадян- зар.пл. за 1 пол. грудня,26009580176,state,11407.00,УДКСУ у Шевченківському районі м. Києва,37995466,юридична особа
РПЛ,"Київ, вулиця Академіка Туполєва, 28А",63,2018-12-19,4013,Податок на доходи,Податкові платежі,236704,Центральний офіс,37279703,Україна,Податок на доходи фізичних осіб- зар.пл. за 1 пол. Грудня,26009580176,state,136877.00,УДКСУ у Шевченківському районі м. Києва,37995466,юридична особа
РПЛ,"Хмельницька область, Ізяславський район, Шекеринці",83,2018-12-19,4035,"Виплати працівникам (не зарплата): лікарняні, вагітності, відрядження, компенсації ","Заробітна плата, лікарняні, вагітності, відрядження, компенсації",235717,Центральний офіс,37279703,Україна,Відпускні за грудень,26009580176,state,5580.68,Андрощук Зоряна Юріївна,,фізична особа
РПЛ,"Сумська область, Сумський район, Суми",84,2018-12-19,4038,"Заробітна плата, премії","Заробітна плата, лікарняні, вагітності, відрядження, компенсації",235716,Центральний офіс,37279703,Україна,Заробітна плата за 1 пол. грудня,26009580176,state,1408.75,Левенко Марина Володимирівна,,фізична особа
РПЛ,"Тернопільська область, Тернопіль",84,2018-12-19,4028,"Заробітна плата, премії","Заробітна плата, лікарняні, вагітності, відрядження, компенсації",235715,Центральний офіс,37279703,Україна,Заробітна плата за 1 пол. грудня,26009580176,state,1408.75,Вінницька Ольга Анатоліївна,,фізична особа
РПЛ,"Полтавська область, Полтава",83,2018-12-19,4030,"Виплати працівникам (не зарплата): лікарняні, вагітності, відрядження, компенсації ","Заробітна плата, лікарняні, вагітності, відрядження, компенсації",235714,Центральний офіс,37279703,Україна,Аванс на відрядження,26009580176,state,760.00,Матяш Руслан Анатолійович,,фізична особа
РПЛ,"Київ, вулиця Максима Берлинського, 6",83,2018-12-19,4030,"Виплати працівникам (не зарплата): лікарняні, вагітності, відрядження, компенсації ","Заробітна плата, лікарняні, вагітності, відрядження, компенсації",235713,Центральний офіс,37279703,Україна,Аванс на відрядження,26009580176,state,1200.00,Самсонова Аліна Вікторівна,2947606863,фізична особа
РПЛ,"Київська обл., Обухівський район, Обухів",83,2018-12-19,4030,"Виплати працівникам (не зарплата): лікарняні, вагітності, відрядження, компенсації ","Заробітна плата, лікарняні, вагітності, відрядження, компенсації",235712,Центральний офіс,37279703,Україна,Аванс на відрядження,26009580176,state,700.00,Потеряйко Вадим Юрійович,,фізична особа
РПЛ,"Черкаська область, Черкаси",84,2018-12-19,4020,"Заробітна плата, премії","Заробітна плата, лікарняні, вагітності, відрядження, компенсації",235711,Центральний офіс,37279703,Україна,Заробітна плата за 1 пол. грудня,26009580176,state,724.50,Лянна Тетяна Валеріївна,,фізична особа
РПЛ,"Дніпропетровська область, Дніпро́",84,2018-12-19,4019,"Заробітна плата, премії","Заробітна плата, лікарняні, вагітності, відрядження, компенсації",235710,Центральний офіс,37279703,Україна,Заробітна плата за 1 пол. грудня,26009580176,state,2012.50,Холодний Вячеслав Анатолійович,,фізична особа
РПЛ,"Львівська область, Львів",84,2018-12-19,4018,"Заробітна плата, премії","Заробітна плата, лікарняні, вагітності, відрядження, компенсації",235709,Центральний офіс,37279703,Україна,Заробітна плата за 1 пол. грудня,26009580176,state,2213.75,Маліновський Володимир Степанович,,фізична особа
РПЛ,Київ,84,2018-12-19,4016,"Заробітна плата, премії","Заробітна плата, лікарняні, вагітності, відрядження, компенсації",235708,Центральний офіс,37279703,Україна,Заробітна плата за 1 пол. грудня,26009580176,state,3622.50,Яковлєва Вероніка Павлівна,,фізична особа
РПЛ,"Закарпатська область, Ужгород",84,2018-12-19,4016,"Заробітна плата, премії","Заробітна плата, лікарняні, вагітності, відрядження, компенсації",235707,Центральний офіс,37279703,Україна,Заробітна плата за 1 пол. грудня,26009580176,state,2213.75,Яворський Володимир Іванович,,фізична особа
РПЛ,"Чернівецька область, Чернівці",84,2018-12-19,4016,"Заробітна плата, премії","Заробітна плата, лікарняні, вагітності, відрядження, компенсації",235706,Центральний офіс,37279703,Україна,Заробітна плата за 1 пол. грудня,26009580176,state,2817.50,Юхимець Олександр Олександрович,,фізична особа
РПЛ,"Запорізька область, Запорізький район, Степне",84,2018-12-19,4016,"Заробітна плата, премії","Заробітна плата, лікарняні, вагітності, відрядження, компенсації",235705,Центральний офіс,37279703,Україна,Заробітна плата за 1 пол. грудня,26009580176,state,2213.75,Юргіна Юлія Володимирівна,,фізична особа
РПЛ,м. Кропивницький,84,2018-12-19,4016,"Заробітна плата, премії","Заробітна плата, лікарняні, вагітності, відрядження, компенсації",235704,Центральний офіс,37279703,Україна,Заробітна плата за 1 пол. грудня,26009580176,state,2213.75,Щуцька Тетяна Григорівна,,фізична особа
РПЛ,"Дніпропетровська область, Дніпро́",84,2018-12-19,4016,"Заробітна плата, премії","Заробітна плата, лікарняні, вагітності, відрядження, компенсації",235703,Центральний офіс,37279703,Україна,Заробітна плата за 1 пол. грудня,26009580176,state,2716.87,Штогрін Тетяна Миколаївна,,фізична особа
РПЛ,Київ,84,2018-12-19,4016,"Заробітна плата, премії","Заробітна плата, лікарняні, вагітності, відрядження, компенсації",235702,Центральний офіс,37279703,Україна,Заробітна плата за 1 пол. грудня,26009580176,state,2817.50,Шищенко Наталка Олександрівна,,фізична особа
РПЛ,м. Кропивницький,84,2018-12-19,4016,"Заробітна плата, премії","Заробітна плата, лікарняні, вагітності, відрядження, компенсації",235701,Центральний офіс,37279703,Україна,Заробітна плата за 1 пол. грудня,26009580176,state,2817.50,Шевченко Максим Леонідович,,фізична особа
РПЛ,"Донецька область, Донецьк",84,2018-12-19,4016,"Заробітна плата, премії","Заробітна плата, лікарняні, вагітності, відрядження, компенсації",235700,Центральний офіс,37279703,Україна,Заробітна плата за 1 пол. грудня,26009580176,state,6158.25,Чухляк Ольга Олегівна,,фізична особа
РПЛ,Івано-Франківська область,84,2018-12-19,4016,"Заробітна плата, премії","Заробітна плата, лікарняні, вагітності, відрядження, компенсації",235699,Центральний офіс,37279703,Україна,Заробітна плата за 1 пол. грудня,26009580176,state,1811.25,Цуркан Ольга Іванівна,,фізична особа
РПЛ,"Закарпатська область, Ужгород",84,2018-12-19,4016,"Заробітна плата, премії","Заробітна плата, лікарняні, вагітності, відрядження, компенсації",235698,Центральний офіс,37279703,Україна,Заробітна плата за 1 пол. грудня,26009580176,state,2817.50,Цуперяк Світлана Степанівна,,фізична особа
РПЛ,"Херсонська область, Херсон",84,2018-12-19,4016,"Заробітна плата, премії","Заробітна плата, лікарняні, вагітності, відрядження, компенсації",235697,Центральний офіс,37279703,Україна,Заробітна плата за 1 пол. грудня,26009580176,state,3018.75,Цивільський Андрій Миколайович,,фізична особа
РПЛ,"Дніпропетровська область, Дніпро́",84,2018-12-19,4016,"Заробітна плата, премії","Заробітна плата, лікарняні, вагітності, відрядження, компенсації",235696,Центральний офіс,37279703,Україна,Заробітна плата за 1 пол. грудня,26009580176,state,2817.50,Цаплін Євген Костянтинович,,фізична особа
РПЛ,"Чернівецька область, Кіцманський район, Витилівка",84,2018-12-19,4016,"Заробітна плата, премії","Заробітна плата, лікарняні, вагітності, відрядження, компенсації",235695,Центральний офіс,37279703,Україна,Заробітна плата за 1 пол. грудня,26009580176,state,2213.75,Худик Ірина Іванівна,,фізична особа
РПЛ,"Запорізька область, Запоріжжя",84,2018-12-19,4016,"Заробітна плата, премії","Заробітна плата, лікарняні, вагітності, відрядження, компенсації",235694,Центральний офіс,37279703,Україна,Заробітна плата за 1 пол. грудня,26009580176,state,2817.50,Хохлов Юрій Станіславович,,фізична особа
РПЛ,Київ,84,2018-12-19,4016,"Заробітна плата, премії","Заробітна плата, лікарняні, вагітності, відрядження, компенсації",235693,Центральний офіс,37279703,Україна,Заробітна плата за 1 пол. грудня,26009580176,state,2716.87,Хоменко Клим Миколайович,,фізична особа
РПЛ,"Чернівецька область, Чернівці",84,2018-12-19,4016,"Заробітна плата, премії","Заробітна плата, лікарняні, вагітності, відрядження, компенсації",235692,Центральний офіс,37279703,Україна,Заробітна плата за 1 пол. грудня,26009580176,state,1811.25,Фостій Олександр Олександрович,,фізична особа
РПЛ,"Донецька область, Маріуполь",84,2018-12-19,4016,"Заробітна плата, премії","Заробітна плата, лікарняні, вагітності, відрядження, компенсації",235691,Центральний офіс,37279703,Україна,Заробітна плата за 1 пол. грудня,26009580176,state,2817.50,Фіголь Ірина Петрівна,,фізична особа
РПЛ,"Київська обл., Бориспіль",84,2018-12-19,4016,"Заробітна плата, премії","Заробітна плата, лікарняні, вагітності, відрядження, компенсації",235690,Центральний офіс,37279703,Україна,Заробітна плата за 1 пол. грудня,26009580176,state,6721.75,Федун Юрій Степанович,,фізична особа
РПЛ,"Вінницька область, Вінниця",84,2018-12-19,4016,"Заробітна плата, премії","Заробітна плата, лікарняні, вагітності, відрядження, компенсації",235689,Центральний офіс,37279703,Україна,Заробітна плата за 1 пол. грудня,26009580176,state,2817.50,Федорова Ольга Іванівна,,фізична особа
РПЛ,"Івано-Франківська область, Долинський район, Долина",84,2018-12-19,4016,"Заробітна плата, премії","Заробітна плата, лікарняні, вагітності, відрядження, компенсації",235688,Центральний офіс,37279703,Україна,Заробітна плата за 1 пол. грудня,26009580176,state,2817.50,Федів Іван Ігорович,,фізична особа
РПЛ,"Луганська область, Сєвєродонецьк",84,2018-12-19,4016,"Заробітна плата, премії","Заробітна плата, лікарняні, вагітності, відрядження, компенсації",235687,Центральний офіс,37279703,Україна,Заробітна плата за 1 пол. грудня,26009580176,state,2213.75,Трощій Світлана Леонідівна,,фізична особа
РПЛ,Київ,84,2018-12-19,4016,"Заробітна плата, премії","Заробітна плата, лікарняні, вагітності, відрядження, компенсації",235686,Центральний офіс,37279703,Україна,Заробітна плата за 1 пол. грудня,26009580176,state,6842.50,Торговець Юлія Василівна,,фізична особа
РПЛ,"Чернігівська область, Чернігів",84,2018-12-19,4016,"Заробітна плата, премії","Заробітна плата, лікарняні, вагітності, відрядження, компенсації",235685,Центральний офіс,37279703,Україна,Заробітна плата за 1 пол. грудня,26009580176,state,1811.25,Ткаченко Тетяна Вадимівна,,фізична особа
РПЛ,Київ,84,2018-12-19,4016,"Заробітна плата, премії","Заробітна плата, лікарняні, вагітності, відрядження, компенсації",235684,Центральний офіс,37279703,Україна,Заробітна плата за 1 пол. грудня,26009580176,state,1358.44,Ткаченко Катерина Станіславівна,,фізична особа
РПЛ,"Київська обл., Володарський район, Володарка",84,2018-12-19,4016,"Заробітна плата, премії","Заробітна плата, лікарняні, вагітності, відрядження, компенсації",235683,Центральний офіс,37279703,Україна,Заробітна плата за 1 пол. грудня,26009580176,state,2716.87,Тихонова Світлана Ігорівна,,фізична особа
РПЛ,"Львівська область, Львів",84,2018-12-19,4016,"Заробітна плата, премії","Заробітна плата, лікарняні, вагітності, відрядження, компенсації",235682,Центральний офіс,37279703,Україна,Заробітна плата за 1 пол. грудня,26009580176,state,2716.87,Тернавський Віталій Богданович,,фізична особа
РПЛ,"Хмельницька область, Хмельницький",84,2018-12-19,4016,"Заробітна плата, премії","Заробітна плата, лікарняні, вагітності, відрядження, компенсації",235681,Центральний офіс,37279703,Україна,Заробітна плата за 1 пол. грудня,26009580176,state,1106.87,Тарасюк Валентина Михайлівна,,фізична особа
РПЛ,"Чернігівська область, Чернігів",84,2018-12-19,4016,"Заробітна плата, премії","Заробітна плата, лікарняні, вагітності, відрядження, компенсації",235680,Центральний офіс,37279703,Україна,Заробітна плата за 1 пол. грудня,26009580176,state,2817.50,Сухін Павло Сергійович,,фізична особа
РПЛ,"Полтавська область, Полтавський район, Розсошенці",84,2018-12-19,4016,"Заробітна плата, премії","Заробітна плата, лікарняні, вагітності, відрядження, компенсації",235679,Центральний офіс,37279703,Україна,Заробітна плата за 1 пол. грудня,26009580176,state,2213.75,Сухіна Юлія Олегівна,,фізична особа
РПЛ,"Чернігівська область, Корюківський район, Корюківка",84,2018-12-19,4016,"Заробітна плата, премії","Заробітна плата, лікарняні, вагітності, відрядження, компенсації",235678,Центральний офіс,37279703,Україна,Заробітна плата за 1 пол. грудня,26009580176,state,4789.75,Стукало Світлана Анатоліївна,,фізична особа
РПЛ,"Кіровоградська область, Кропивницький",84,2018-12-19,4016,"Заробітна плата, премії","Заробітна плата, лікарняні, вагітності, відрядження, компенсації",235677,Центральний офіс,37279703,Україна,Заробітна плата за 1 пол. грудня,26009580176,state,3018.75,Сторчаус Віталій Сергійович,,фізична особа
РПЛ,"Тернопільська область, Тернопіль",84,2018-12-19,4016,"Заробітна плата, премії","Заробітна плата, лікарняні, вагітності, відрядження, компенсації",235676,Центральний офіс,37279703,Україна,Заробітна плата за 1 пол. грудня,26009580176,state,2817.50,Стець Сергій Романович,,фізична особа
РПЛ,"Миколаївська область, Миколаїв",84,2018-12-19,4016,"Заробітна плата, премії","Заробітна плата, лікарняні, вагітності, відрядження, компенсації",235675,Центральний офіс,37279703,Україна,Заробітна плата за 1 пол. грудня,26009580176,state,3018.75,Степчик Лариса Володимирівна,,фізична особа
РПЛ,"Миколаївська область, Миколаїв",84,2018-12-19,4016,"Заробітна плата, премії","Заробітна плата, лікарняні, вагітності, відрядження, компенсації",235674,Центральний офіс,37279703,Україна,Заробітна плата за 1 пол. грудня,26009580176,state,1811.25,Стебліна Яна Валентинівна,,фізична особа
РПЛ,"Запорізька область, Запоріжжя",84,2018-12-19,4016,"Заробітна плата, премії","Заробітна плата, лікарняні, вагітності, відрядження, компенсації",235673,Центральний офіс,37279703,Україна,Заробітна плата за 1 пол. грудня,26009580176,state,1811.25,Статьєва Лілія Андріївна,,фізична особа
РПЛ,"Луганська область, Луганськ",84,2018-12-19,4016,"Заробітна плата, премії","Заробітна плата, лікарняні, вагітності, відрядження, компенсації",235672,Центральний офіс,37279703,Україна,Заробітна плата за 1 пол. грудня,26009580176,state,2817.50,Старицький Владислав Олександрович,,фізична особа
РПЛ,"Миколаївська область, Миколаїв",84,2018-12-19,4016,"Заробітна плата, премії","Заробітна плата, лікарняні, вагітності, відрядження, компенсації",235671,Центральний офіс,37279703,Україна,Заробітна плата за 1 пол. грудня,26009580176,state,2213.75,Спиридонова Тетяна Василівна,,фізична особа
РПЛ,"Кіровоградська область, Кропивницький",84,2018-12-19,4016,"Заробітна плата, премії","Заробітна плата, лікарняні, вагітності, відрядження, компенсації",235670,Центральний офіс,37279703,Україна,Заробітна плата за 1 пол. грудня,26009580176,state,1811.25,Софієнко Наталія Володимирівна,,фізична особа
РПЛ,"Чернігівська область, Чернігів",84,2018-12-19,4016,"Заробітна плата, премії","Заробітна плата, лікарняні, вагітності, відрядження, компенсації",235669,Центральний офіс,37279703,Україна,Заробітна плата за 1 пол. грудня,26009580176,state,2213.75,Соломаха Сергій Васильович,,фізична особа
РПЛ,"Вінницька область, Вінниця",84,2018-12-19,4016,"Заробітна плата, премії","Заробітна плата, лікарняні, вагітності, відрядження, компенсації",235668,Центральний офіс,37279703,Україна,Заробітна плата за 1 пол. грудня,26009580176,state,3018.75,Сокур Микола Миколайович,,фізична особа
РПЛ,"Чернігівська область, Чернігів",84,2018-12-19,4016,"Заробітна плата, премії","Заробітна плата, лікарняні, вагітності, відрядження, компенсації",235667,Центральний офіс,37279703,Україна,Заробітна плата за 1 пол. грудня,26009580176,state,2817.50,Соколова Ольга Вікторівна,,фізична особа
РПЛ,"Чернігівська область, Чернігів",84,2018-12-19,4016,"Заробітна плата, премії","Заробітна плата, лікарняні, вагітності, відрядження, компенсації",235666,Центральний офіс,37279703,Україна,Заробітна плата за 1 пол. грудня,26009580176,state,6721.75,Соколова Анжеліка Артурівна,,фізична особа
РПЛ,"Сумська область, Сумський район, Суми",84,2018-12-19,4016,"Заробітна плата, премії","Заробітна плата, лікарняні, вагітності, відрядження, компенсації",235665,Центральний офіс,37279703,Україна,Заробітна плата за 1 пол. грудня,26009580176,state,2817.50,Скляров Олександр Павлович,,фізична особа
РПЛ,Київ,84,2018-12-19,4016,"Заробітна плата, премії","Заробітна плата, лікарняні, вагітності, відрядження, компенсації",235664,Центральний офіс,37279703,Україна,Заробітна плата за 1 пол. грудня,26009580176,state,1501.32,Сірик Тетяна Василівна,,фізична особа
РПЛ,"Сумська область, Сумський район, Сад",84,2018-12-19,4016,"Заробітна плата, премії","Заробітна плата, лікарняні, вагітності, відрядження, компенсації",235663,Центральний офіс,37279703,Україна,Заробітна плата за 1 пол. грудня,26009580176,state,1811.25,Сич Ірина Олександрівна,,фізична особа
РПЛ,"Черкаська область, Черкаський район, Свидівок",84,2018-12-19,4016,"Заробітна плата, премії","Заробітна плата, лікарняні, вагітності, відрядження, компенсації",235662,Центральний офіс,37279703,Україна,Заробітна плата за 1 пол. грудня,26009580176,state,2213.75,Сирота Ігор Васильович,,фізична особа
РПЛ,"Івано-Франківська область, Тлумацький район, Нижнів",84,2018-12-19,4016,"Заробітна плата, премії","Заробітна плата, лікарняні, вагітності, відрядження, компенсації",235661,Центральний офіс,37279703,Україна,Заробітна плата за 1 пол. грудня,26009580176,state,2213.75,Симанишин Наталія Михайлівна,,фізична особа
РПЛ,"Сумська область, Сумський район, Суми",84,2018-12-19,4016,"Заробітна плата, премії","Заробітна плата, лікарняні, вагітності, відрядження, компенсації",235660,Центральний офіс,37279703,Україна,Заробітна плата за 1 пол. грудня,26009580176,state,3018.75,Сидоренко Дарʼя Олександрівна,,фізична особа
РПЛ,"Львівська область, Львів",84,2018-12-19,4016,"Заробітна плата, премії","Заробітна плата, лікарняні, вагітності, відрядження, компенсації",235659,Центральний офіс,37279703,Україна,Заробітна плата за 1 пол. грудня,26009580176,state,2817.50,Сидор Адріана Ігорівна,,фізична особа
РПЛ,"Волинська область, Луцьк",84,2018-12-19,4016,"Заробітна плата, премії","Заробітна плата, лікарняні, вагітності, відрядження, компенсації",235658,Центральний офіс,37279703,Україна,Заробітна плата за 1 пол. грудня,26009580176,state,3018.75,Семчук Юрій Анатолійович,,фізична особа
РПЛ,"Луганська область, Сєвєродонецьк",84,2018-12-19,4016,"Заробітна плата, премії","Заробітна плата, лікарняні, вагітності, відрядження, компенсації",235657,Центральний офіс,37279703,Україна,Заробітна плата за 1 пол. грудня,26009580176,state,2817.50,Семенюк Володимир Миколайович,,фізична особа
РПЛ,"Київ, вулиця Максима Берлинського, 6",84,2018-12-19,4016,"Заробітна плата, премії","Заробітна плата, лікарняні, вагітності, відрядження, компенсації",235656,Центральний офіс,37279703,Україна,Заробітна плата за 1 пол. грудня,26009580176,state,6158.25,Самсонова Аліна Вікторівна,2947606863,фізична особа
РПЛ,"Луганська область, Сєвєродонецьк",84,2018-12-19,4016,"Заробітна плата, премії","Заробітна плата, лікарняні, вагітності, відрядження, компенсації",235655,Центральний офіс,37279703,Україна,Заробітна плата за 1 пол. грудня,26009580176,state,3018.75,Руденко Ганна Володимирівна,,фізична особа
РПЛ,"Черкаська область, Черкаси",84,2018-12-19,4016,"Заробітна плата, премії","Заробітна плата, лікарняні, вагітності, відрядження, компенсації",235654,Центральний офіс,37279703,Україна,Заробітна плата за 1 пол. грудня,26009580176,state,2817.50,Романча Андрій Юрійович,,фізична особа
РПЛ,"Одеська область, Одеса",84,2018-12-19,4016,"Заробітна плата, премії","Заробітна плата, лікарняні, вагітності, відрядження, компенсації",235653,Центральний офіс,37279703,Україна,Заробітна плата за 1 пол. грудня,26009580176,state,2213.75,Розманін Олександр Петрович,,фізична особа
РПЛ,"Тернопільська область, Тернопільський район, Довжанка",84,2018-12-19,4016,"Заробітна плата, премії","Заробітна плата, лікарняні, вагітності, відрядження, компенсації",235652,Центральний офіс,37279703,Україна,Заробітна плата за 1 пол. грудня,26009580176,state,2213.75,Репко Євгенія Олексіївна,,фізична особа
РПЛ,"Дніпропетровська область, Дніпро́",84,2018-12-19,4016,"Заробітна плата, премії","Заробітна плата, лікарняні, вагітності, відрядження, компенсації",235651,Центральний офіс,37279703,Україна,Заробітна плата за 1 пол. грудня,26009580176,state,2817.50,Ревенко Юлія Сергіївна,,фізична особа
РПЛ,"Кіровоградська область, Кропивницький",84,2018-12-19,4016,"Заробітна плата, премії","Заробітна плата, лікарняні, вагітності, відрядження, компенсації",235650,Центральний офіс,37279703,Україна,Заробітна плата за 1 пол. грудня,26009580176,state,1106.87,Пустовойт Марина Едуардівна,,фізична особа
РПЛ,Київ,84,2018-12-19,4016,"Заробітна плата, премії","Заробітна плата, лікарняні, вагітності, відрядження, компенсації",235649,Центральний офіс,37279703,Україна,Заробітна плата за 1 пол. грудня,26009580176,state,6721.75,Пугачова Ярослава Павлівна,,фізична особа
РПЛ,"Донецька область, Маріуполь",84,2018-12-19,4016,"Заробітна плата, премії","Заробітна плата, лікарняні, вагітності, відрядження, компенсації",235648,Центральний офіс,37279703,Україна,Заробітна плата за 1 пол. грудня,26009580176,state,2817.50,Прудніченко Алла Дмитрівна,,фізична особа
РПЛ,"Хмельницька область, Красилівський район, Красилів",84,2018-12-19,4016,"Заробітна плата, премії","Заробітна плата, лікарняні, вагітності, відрядження, компенсації",235647,Центральний офіс,37279703,Україна,Заробітна плата за 1 пол. грудня,26009580176,state,1408.75,Процюк Наталія Юріївна,,фізична особа
РПЛ,"Київська обл., Обухівський район, Обухів",84,2018-12-19,4016,"Заробітна плата, премії","Заробітна плата, лікарняні, вагітності, відрядження, компенсації",235646,Центральний офіс,37279703,Україна,Заробітна плата за 1 пол. грудня,26009580176,state,6158.25,Потеряйко Вадим Юрійович,,фізична особа
РПЛ,"Закарпатська область, Ужгород",84,2018-12-19,4016,"Заробітна плата, премії","Заробітна плата, лікарняні, вагітності, відрядження, компенсації",235645,Центральний офіс,37279703,Україна,Заробітна плата за 1 пол. грудня,26009580176,state,1509.37,Попадюк Надія Іванівна,,фізична особа
РПЛ,Київ,84,2018-12-19,4016,"Заробітна плата, премії","Заробітна плата, лікарняні, вагітності, відрядження, компенсації",235644,Центральний офіс,37279703,Україна,Заробітна плата за 1 пол. грудня,26009580176,state,6077.75,Поліщук Анна Валентинівна,,фізична особа
РПЛ,"Рівненська область, Рівне",84,2018-12-19,4016,"Заробітна плата, премії","Заробітна плата, лікарняні, вагітності, відрядження, компенсації",235643,Центральний офіс,37279703,Україна,Заробітна плата за 1 пол. грудня,26009580176,state,3018.75,Пікарська Оксана Миколаївна,,фізична особа
РПЛ,"Одеська область, Одеса",84,2018-12-19,4016,"Заробітна плата, премії","Заробітна плата, лікарняні, вагітності, відрядження, компенсації",235642,Центральний офіс,37279703,Україна,Заробітна плата за 1 пол. грудня,26009580176,state,2716.87,Перчеклій Микола Васильович,,фізична особа
РПЛ,"Херсонська область, Херсон",84,2018-12-19,4016,"Заробітна плата, премії","Заробітна плата, лікарняні, вагітності, відрядження, компенсації",235641,Центральний офіс,37279703,Україна,Заробітна плата за 1 пол. грудня,26009580176,state,1811.25,Пермінов Артем Георгійович,,фізична особа
РПЛ,Київ,84,2018-12-19,4016,"Заробітна плата, премії","Заробітна плата, лікарняні, вагітності, відрядження, компенсації",235640,Центральний офіс,37279703,Україна,Заробітна плата за 1 пол. грудня,26009580176,state,2716.87,Пархоменко Аліна Петрівна,,фізична особа
РПЛ,Київ,84,2018-12-19,4016,"Заробітна плата, премії","Заробітна плата, лікарняні, вагітності, відрядження, компенсації",235639,Центральний офіс,37279703,Україна,Заробітна плата за 1 пол. грудня,26009580176,state,2817.50,Парака Ярослава Володимирівна,,фізична особа
РПЛ,"Київська обл., Васильків",84,2018-12-19,4016,"Заробітна плата, премії","Заробітна плата, лікарняні, вагітності, відрядження, компенсації",235638,Центральний офіс,37279703,Україна,Заробітна плата за 1 пол. грудня,26009580176,state,6077.75,Падурець Людмила Володимирівна,,фізична особа
РПЛ,"Харківська область, Харків",84,2018-12-19,4016,"Заробітна плата, премії","Заробітна плата, лікарняні, вагітності, відрядження, компенсації",235637,Центральний офіс,37279703,Україна,Заробітна плата за 1 пол. грудня,26009580176,state,2213.75,Павленко Олена Валеріївна,,фізична особа
РПЛ,"Дніпропетровська область, Дніпро́",84,2018-12-19,4016,"Заробітна плата, премії","Заробітна плата, лікарняні, вагітності, відрядження, компенсації",235636,Центральний офіс,37279703,Україна,Заробітна плата за 1 пол. грудня,26009580176,state,2716.87,Осташевська Наталія Василівна,,фізична особа
РПЛ,"Київська обл., Біла Церква",84,2018-12-19,4016,"Заробітна плата, премії","Заробітна плата, лікарняні, вагітності, відрядження, компенсації",235635,Центральний офіс,37279703,Україна,Заробітна плата за 1 пол. грудня,26009580176,state,2394.87,Остапенко Сергій Анатолійович,,фізична особа
РПЛ,"Рівненська область, Рівненський район, Кустин",84,2018-12-19,4016,"Заробітна плата, премії","Заробітна плата, лікарняні, вагітності, відрядження, компенсації",235634,Центральний офіс,37279703,Україна,Заробітна плата за 1 пол. грудня,26009580176,state,3320.62,Оксенюк Антон Олексійович,,фізична особа
РПЛ,Київ,84,2018-12-19,4016,"Заробітна плата, премії","Заробітна плата, лікарняні, вагітності, відрядження, компенсації",235633,Центральний офіс,37279703,Україна,Заробітна плата за 1 пол. грудня,26009580176,state,5474.00,Новохацька Олександра Вікторівна,,фізична особа
РПЛ,Київ,84,2018-12-19,4016,"Заробітна плата, премії","Заробітна плата, лікарняні, вагітності, відрядження, компенсації",235632,Центральний офіс,37279703,Україна,Заробітна плата за 1 пол. грудня,26009580176,state,6721.75,Нещерет Олександр Володимирович,,фізична особа
РПЛ,Київ,84,2018-12-19,4016,"Заробітна плата, премії","Заробітна плата, лікарняні, вагітності, відрядження, компенсації",235631,Центральний офіс,37279703,Україна,Заробітна плата за 1 пол. грудня,26009580176,state,6842.50,Нечипорук Олександр Григорович,,фізична особа
РПЛ,"Запорізька область, Запорізький район, Кушугум",84,2018-12-19,4016,"Заробітна плата, премії","Заробітна плата, лікарняні, вагітності, відрядження, компенсації",235630,Центральний офіс,37279703,Україна,Заробітна плата за 1 пол. грудня,26009580176,state,3018.75,Нежура Діана Андріївна,,фізична особа
РПЛ,"Одеська область, Одеса",84,2018-12-19,4016,"Заробітна плата, премії","Заробітна плата, лікарняні, вагітності, відрядження, компенсації",235629,Центральний офіс,37279703,Україна,Заробітна плата за 1 пол. грудня,26009580176,state,2213.75,Неводчікова Ганна Ігорівна,,фізична особа
РПЛ,"Рівненська область, Рівненський район, Городок",84,2018-12-19,4016,"Заробітна плата, премії","Заробітна плата, лікарняні, вагітності, відрядження, компенсації",235628,Центральний офіс,37279703,Україна,Заробітна плата за 1 пол. грудня,26009580176,state,1811.25,Наумець Надія Стефанівна,,фізична особа
РПЛ,"Рівненська область, Рівне",84,2018-12-19,4016,"Заробітна плата, премії","Заробітна плата, лікарняні, вагітності, відрядження, компенсації",235627,Центральний офіс,37279703,Україна,Заробітна плата за 1 пол. грудня,26009580176,state,2817.50,Назарчук Юлія Юріївна,,фізична особа
РПЛ,"Рівненська область, Рівне",84,2018-12-19,4016,"Заробітна плата, премії","Заробітна плата, лікарняні, вагітності, відрядження, компенсації",235626,Центральний офіс,37279703,Україна,Заробітна плата за 1 пол. грудня,26009580176,state,1408.75,Нагорна Олександра Олегівна,,фізична особа
РПЛ,"Дніпропетровська область, Дніпро́",84,2018-12-19,4016,"Заробітна плата, премії","Заробітна плата, лікарняні, вагітності, відрядження, компенсації",235625,Центральний офіс,37279703,Україна,Заробітна плата за 1 пол. грудня,26009580176,state,1811.25,Мунтян Катерина Олександрівна,,фізична особа
РПЛ,"Полтавська область, Полтава",84,2018-12-19,4016,"Заробітна плата, премії","Заробітна плата, лікарняні, вагітності, відрядження, компенсації",235624,Центральний офіс,37279703,Україна,Заробітна плата за 1 пол. грудня,26009580176,state,5031.25,Мороз Максим Вікторович,,фізична особа
РПЛ,"Полтавська область, Лубенський район, Новооріхівка",84,2018-12-19,4016,"Заробітна плата, премії","Заробітна плата, лікарняні, вагітності, відрядження, компенсації",235623,Центральний офіс,37279703,Україна,Заробітна плата за 1 пол. грудня,26009580176,state,1509.37,Моренко Лідія Сергіївна,,фізична особа
РПЛ,"Волинська область, Луцьк",84,2018-12-19,4016,"Заробітна плата, премії","Заробітна плата, лікарняні, вагітності, відрядження, компенсації",235622,Центральний офіс,37279703,Україна,Заробітна плата за 1 пол. грудня,26009580176,state,2213.75,Мозоль Віктор Володимирович,,фізична особа
РПЛ,"Полтавська область, Лубенський район, Новооріхівка",84,2018-12-19,4016,"Заробітна плата, премії","Заробітна плата, лікарняні, вагітності, відрядження, компенсації",235621,Центральний офіс,37279703,Україна,Заробітна плата за 1 пол. грудня,26009580176,state,1509.37,Мірошниченко Віталій Григорович,,фізична особа
РПЛ,"Запорізька область, Запоріжжя",84,2018-12-19,4016,"Заробітна плата, премії","Заробітна плата, лікарняні, вагітності, відрядження, компенсації",235620,Центральний офіс,37279703,Україна,Заробітна плата за 1 пол. грудня,26009580176,state,1106.87,Міненко Ірина Анатоліївна,,фізична особа
РПЛ,"Вінницька область, Вінниця",84,2018-12-19,4016,"Заробітна плата, премії","Заробітна плата, лікарняні, вагітності, відрядження, компенсації",235619,Центральний офіс,37279703,Україна,Заробітна плата за 1 пол. грудня,26009580176,state,1811.25,Мисака Дарʼя Вячеславівна,,фізична особа
